Workbook

Sheet Прайс лист
B2: Прайс лист: Лето (девочки) | H2: в достаточном количестве
H3: мало на складе
B4: Цена базовая | C4: =SUM($AA:$AA)/(1 - $F$9)*1 -> 0 | D4: Предоплата 70-120 т.р. скидка 18% | E4: =SUM($AA:$AA)/(1 - $F$9)*0.82 -> 0 | H4: нет на складе
B5: Предоплата 20-40 т.р. скидка 12% | C5: =SUM($AA:$AA)/(1 - $F$9)*0.88 -> 0 | D5: Предоплата 120-200 т.р. скидка 21% | E5: =SUM($AA:$AA)/(1 - $F$9)*0.79 -> 0 | H5: не производится
B6: Предоплата 40-70 т.р. скидка 15% | C6: =SUM($AA:$AA)/(1 - $F$9)*0.85 -> 0 | D6: Предоплата от 200 т.р. скидка 23% | E6: =SUM($AA:$AA)/(1 - $F$9)*0.77 -> 0 | H6: Цена не менялась с 2014 года
B8: Артикул | C8: Тип полотна / состав | D8: Цвет/Набивка/Печать/Цвет низа/ Цвет бейки/Цвет рукавов | E8: Цена базовая | F8: СКИДКА | G8: Рост-Размер | AA8: Сумма | BP8: Примечание
F9: 0.12 | G9: 48 | H9: 50 | I9: 52 | J9: 48-74 | K9: 48-86 | L9: 50-80 | M9: 50-92 | N9: 52-86 | O9: 52-98 | P9: 54-92 | Q9: 54-104 | R9: 56-98 | S9: 56-110 | T9: 60-116 | U9: 62-122 | V9: 64-128 | W9: 68-134 | X9: 72-140 | Y9: 76-146 | Z9: 84-158
B10: Коллекция "Вдохновение лета"
B11: [492848]Платье для девочки ДПК111001н | C11: кулир / хлопок 100% | D11: - / подсолнухи / - / - / - / - | E11: 330 | F11: =IF(MIN(AB11:AU11)=MAX(AB11:AU11),ROUND(MIN(AB11:AU11)*(1-$F$9),0),ROUND(MIN(AB11:AU11)*(1-$F$9),0)&"-"&ROUND(MAX(AB11:AU11)*(1-$F$9),0)) -> 290 | AA11: =(G11*AB11+H11*AC11+I11*AD11+J11*AE11+K11*AF11+L11*AG11+M11*AH11+N11*AI11+O11*AJ11+P11*AK11+Q11*AL11+R11*AM11+S11*AN11+T11*AO11+U11*AP11+V11*AQ11+W11*AR11+X11*AS11+Y11*AT11+Z11*AU11)*(1-$F$9) -> 0 | AJ11: 330 | AL11: 330 | AN11: 330 | AO11: 330 | AP11: 330 | AQ11: 330 | BD11: 368060 | BF11: 368061 | BH11: 368062 | BI11: 368063 | BJ11: 368064 | BK11: 368065
B12: [492850]Платье для девочки ДПК111001н | C12: кулир / хлопок 100% | D12: - / черный горох на белом 15+черный / - / - / - / - | E12: 330 | F12: =IF(MIN(AB12:AU12)=MAX(AB12:AU12),ROUND(MIN(AB12:AU12)*(1-$F$9),0),ROUND(MIN(AB12:AU12)*(1-$F$9),0)&"-"&ROUND(MAX(AB12:AU12)*(1-$F$9),0)) -> 290 | AA12: =(G12*AB12+H12*AC12+I12*AD12+J12*AE12+K12*AF12+L12*AG12+M12*AH12+N12*AI12+O12*AJ12+P12*AK12+Q12*AL12+R12*AM12+S12*AN12+T12*AO12+U12*AP12+V12*AQ12+W12*AR12+X12*AS12+Y12*AT12+Z12*AU12)*(1-$F$9) -> 0 | AL12: 330 | AN12: 330 | AO12: 330 | AP12: 330 | AQ12: 330 | BF12: 368072 | BH12: 368073 | BI12: 368074 | BJ12: 368075 | BK12: 368076
B13: [488373]Платье для девочки ДПК111804 | C13: кулир с лайкрой / хлопок 92% + лайкра 8% | D13: - / белый+клетка темно-синий / Долька арбуза / - / темно-синий / - | E13: 398 | F13: =IF(MIN(AB13:AU13)=MAX(AB13:AU13),ROUND(MIN(AB13:AU13)*(1-$F$9),0),ROUND(MIN(AB13:AU13)*(1-$F$9),0)&"-"&ROUND(MAX(AB13:AU13)*(1-$F$9),0)) -> 350 | AA13: =(G13*AB13+H13*AC13+I13*AD13+J13*AE13+K13*AF13+L13*AG13+M13*AH13+N13*AI13+O13*AJ13+P13*AK13+Q13*AL13+R13*AM13+S13*AN13+T13*AO13+U13*AP13+V13*AQ13+W13*AR13+X13*AS13+Y13*AT13+Z13*AU13)*(1-$F$9) -> 0 | AJ13: 398 | AL13: 398 | AN13: 398 | AO13: 398 | AP13: 398 | AQ13: 398 | BD13: 346592 | BF13: 346593 | BH13: 346594 | BI13: 346595 | BJ13: 346596 | BK13: 346597
B14: [488374]Платье для девочки ДПК111804 | C14: кулир с лайкрой / хлопок 92% + лайкра 8% | D14: - / белый+клетка темно-синий / Круглый апельсин / - / темно-синий / - | E14: 398 | F14: =IF(MIN(AB14:AU14)=MAX(AB14:AU14),ROUND(MIN(AB14:AU14)*(1-$F$9),0),ROUND(MIN(AB14:AU14)*(1-$F$9),0)&"-"&ROUND(MAX(AB14:AU14)*(1-$F$9),0)) -> 350 | AA14: =(G14*AB14+H14*AC14+I14*AD14+J14*AE14+K14*AF14+L14*AG14+M14*AH14+N14*AI14+O14*AJ14+P14*AK14+Q14*AL14+R14*AM14+S14*AN14+T14*AO14+U14*AP14+V14*AQ14+W14*AR14+X14*AS14+Y14*AT14+Z14*AU14)*(1-$F$9) -> 0 | AJ14: 398 | AL14: 398 | AN14: 398 | AO14: 398 | AP14: 398 | AQ14: 398 | BD14: 346598 | BF14: 346599 | BH14: 346600 | BI14: 346601 | BJ14: 346602 | BK14: 346603
B15: [492851]Платье для девочки ДПК111804н | C15: кулир с лайкрой / хлопок 92% + лайкра 8% | D15: - / белый горох на темно-синем 15 / - / - / - / - | E15: 430 | F15: =IF(MIN(AB15:AU15)=MAX(AB15:AU15),ROUND(MIN(AB15:AU15)*(1-$F$9),0),ROUND(MIN(AB15:AU15)*(1-$F$9),0)&"-"&ROUND(MAX(AB15:AU15)*(1-$F$9),0)) -> 378 | AA15: =(G15*AB15+H15*AC15+I15*AD15+J15*AE15+K15*AF15+L15*AG15+M15*AH15+N15*AI15+O15*AJ15+P15*AK15+Q15*AL15+R15*AM15+S15*AN15+T15*AO15+U15*AP15+V15*AQ15+W15*AR15+X15*AS15+Y15*AT15+Z15*AU15)*(1-$F$9) -> 0 | AL15: 430 | AN15: 430 | AO15: 430 | AP15: 430 | AQ15: 430 | BF15: 368077 | BH15: 368078 | BI15: 368079 | BJ15: 368080 | BK15: 368081
B16: [492900]Сарафан для девочки ДПС189001н | C16: кулир / хлопок 100% | D16: - / белый горох на темно-синем 35 / - / - / - / - | E16: 230 | F16: =IF(MIN(AB16:AU16)=MAX(AB16:AU16),ROUND(MIN(AB16:AU16)*(1-$F$9),0),ROUND(MIN(AB16:AU16)*(1-$F$9),0)&"-"&ROUND(MAX(AB16:AU16)*(1-$F$9),0)) -> 202 | AA16: =(G16*AB16+H16*AC16+I16*AD16+J16*AE16+K16*AF16+L16*AG16+M16*AH16+N16*AI16+O16*AJ16+P16*AK16+Q16*AL16+R16*AM16+S16*AN16+T16*AO16+U16*AP16+V16*AQ16+W16*AR16+X16*AS16+Y16*AT16+Z16*AU16)*(1-$F$9) -> 0 | AN16: 230 | AO16: 230 | AP16: 230 | AQ16: 230 | AR16: 230 | AS16: 230 | AT16: 230 | BH16: 368322 | BI16: 368323 | BJ16: 368324 | BK16: 368325 | BL16: 368326 | BM16: 368327 | BN16: 368328
B17: [492902]Сарафан для девочки ДПС189001н | C17: кулир / хлопок 100% | D17: - / подсолнухи / - / - / - / - | E17: 230 | F17: =IF(MIN(AB17:AU17)=MAX(AB17:AU17),ROUND(MIN(AB17:AU17)*(1-$F$9),0),ROUND(MIN(AB17:AU17)*(1-$F$9),0)&"-"&ROUND(MAX(AB17:AU17)*(1-$F$9),0)) -> 202 | AA17: =(G17*AB17+H17*AC17+I17*AD17+J17*AE17+K17*AF17+L17*AG17+M17*AH17+N17*AI17+O17*AJ17+P17*AK17+Q17*AL17+R17*AM17+S17*AN17+T17*AO17+U17*AP17+V17*AQ17+W17*AR17+X17*AS17+Y17*AT17+Z17*AU17)*(1-$F$9) -> 0 | AN17: 230 | AO17: 230 | AP17: 230 | AQ17: 230 | AR17: 230 | AS17: 230 | AT17: 230 | BH17: 368336 | BI17: 368337 | BJ17: 368338 | BK17: 368339 | BL17: 368340 | BM17: 368341 | BN17: 368342
B18: [492903]Сарафан для девочки ДПС189001н | C18: кулир / хлопок 100% | D18: - / ромашки и горошки на темно-синем / - / - / - / - | E18: 230 | F18: =IF(MIN(AB18:AU18)=MAX(AB18:AU18),ROUND(MIN(AB18:AU18)*(1-$F$9),0),ROUND(MIN(AB18:AU18)*(1-$F$9),0)&"-"&ROUND(MAX(AB18:AU18)*(1-$F$9),0)) -> 202 | AA18: =(G18*AB18+H18*AC18+I18*AD18+J18*AE18+K18*AF18+L18*AG18+M18*AH18+N18*AI18+O18*AJ18+P18*AK18+Q18*AL18+R18*AM18+S18*AN18+T18*AO18+U18*AP18+V18*AQ18+W18*AR18+X18*AS18+Y18*AT18+Z18*AU18)*(1-$F$9) -> 0 | AN18: 230 | AO18: 230 | AP18: 230 | AQ18: 230 | AR18: 230 | AS18: 230 | AT18: 230 | BH18: 368343 | BI18: 368344 | BJ18: 368345 | BK18: 368346 | BL18: 368347 | BM18: 368348 | BN18: 368349
B19: [492905]Сарафан для девочки ДПС189001н | C19: кулир / хлопок 100% | D19: - / черный горох на белом 15 / - / - / - / - | E19: 230 | F19: =IF(MIN(AB19:AU19)=MAX(AB19:AU19),ROUND(MIN(AB19:AU19)*(1-$F$9),0),ROUND(MIN(AB19:AU19)*(1-$F$9),0)&"-"&ROUND(MAX(AB19:AU19)*(1-$F$9),0)) -> 202 | AA19: =(G19*AB19+H19*AC19+I19*AD19+J19*AE19+K19*AF19+L19*AG19+M19*AH19+N19*AI19+O19*AJ19+P19*AK19+Q19*AL19+R19*AM19+S19*AN19+T19*AO19+U19*AP19+V19*AQ19+W19*AR19+X19*AS19+Y19*AT19+Z19*AU19)*(1-$F$9) -> 0 | AN19: 230 | AO19: 230 | AP19: 230 | AQ19: 230 | AR19: 230 | AS19: 230 | AT19: 230 | BH19: 368357 | BI19: 368358 | BJ19: 368359 | BK19: 368360 | BL19: 368361 | BM19: 368362 | BN19: 368363
B20: [492906]Сарафан для девочки ДПС189804н | C20: кулир с лайкрой / хлопок 92% + лайкра 8% | D20: - / белый горох на темно-синем 15 / - / - / - / - | E20: 330 | F20: =IF(MIN(AB20:AU20)=MAX(AB20:AU20),ROUND(MIN(AB20:AU20)*(1-$F$9),0),ROUND(MIN(AB20:AU20)*(1-$F$9),0)&"-"&ROUND(MAX(AB20:AU20)*(1-$F$9),0)) -> 290 | AA20: =(G20*AB20+H20*AC20+I20*AD20+J20*AE20+K20*AF20+L20*AG20+M20*AH20+N20*AI20+O20*AJ20+P20*AK20+Q20*AL20+R20*AM20+S20*AN20+T20*AO20+U20*AP20+V20*AQ20+W20*AR20+X20*AS20+Y20*AT20+Z20*AU20)*(1-$F$9) -> 0 | AN20: 330 | AO20: 330 | AP20: 330 | AQ20: 330 | AR20: 330 | AS20: 330 | AT20: 330 | BH20: 368364 | BI20: 368365 | BJ20: 368366 | BK20: 368367 | BL20: 368368 | BM20: 368369 | BN20: 368370
B21: Коллекция "Венок из незабудок"
B22: [492959]Боди ясельн. ДМК744001н | C22: кулир / хлопок 100% | D22: - / клетка голубой+незабудки / Божьи коровки на листе / - / - / - | E22: 420 | F22: =IF(MIN(AB22:AU22)=MAX(AB22:AU22),ROUND(MIN(AB22:AU22)*(1-$F$9),0),ROUND(MIN(AB22:AU22)*(1-$F$9),0)&"-"&ROUND(MAX(AB22:AU22)*(1-$F$9),0)) -> 370 | AA22: =(G22*AB22+H22*AC22+I22*AD22+J22*AE22+K22*AF22+L22*AG22+M22*AH22+N22*AI22+O22*AJ22+P22*AK22+Q22*AL22+R22*AM22+S22*AN22+T22*AO22+U22*AP22+V22*AQ22+W22*AR22+X22*AS22+Y22*AT22+Z22*AU22)*(1-$F$9) -> 0 | AE22: 420 | AG22: 420 | AI22: 420 | AK22: 420 | AY22: 368672 | BA22: 368673 | BC22: 368674 | BE22: 368675
B23: [492960]Боди ясельн. ДМК744001н | C23: кулир / хлопок 100% | D23: - / незабудки+клетка голубой / Божьи коровки на листе / - / - / - | E23: 420 | F23: =IF(MIN(AB23:AU23)=MAX(AB23:AU23),ROUND(MIN(AB23:AU23)*(1-$F$9),0),ROUND(MIN(AB23:AU23)*(1-$F$9),0)&"-"&ROUND(MAX(AB23:AU23)*(1-$F$9),0)) -> 370 | AA23: =(G23*AB23+H23*AC23+I23*AD23+J23*AE23+K23*AF23+L23*AG23+M23*AH23+N23*AI23+O23*AJ23+P23*AK23+Q23*AL23+R23*AM23+S23*AN23+T23*AO23+U23*AP23+V23*AQ23+W23*AR23+X23*AS23+Y23*AT23+Z23*AU23)*(1-$F$9) -> 0 | AE23: 420 | AG23: 420 | AI23: 420 | AK23: 420 | AY23: 368676 | BA23: 368677 | BC23: 368678 | BE23: 368679
B24: [492961]Бриджи ясельн. ДБР054804 | C24: кулир с лайкрой / хлопок 92% + лайкра 8% | D24: белый / - / Божья коровка / - / - / - | E24: 160 | F24: =IF(MIN(AB24:AU24)=MAX(AB24:AU24),ROUND(MIN(AB24:AU24)*(1-$F$9),0),ROUND(MIN(AB24:AU24)*(1-$F$9),0)&"-"&ROUND(MAX(AB24:AU24)*(1-$F$9),0)) -> 141 | AA24: =(G24*AB24+H24*AC24+I24*AD24+J24*AE24+K24*AF24+L24*AG24+M24*AH24+N24*AI24+O24*AJ24+P24*AK24+Q24*AL24+R24*AM24+S24*AN24+T24*AO24+U24*AP24+V24*AQ24+W24*AR24+X24*AS24+Y24*AT24+Z24*AU24)*(1-$F$9) -> 0 | AE24: 160 | AG24: 160 | AI24: 160 | AK24: 160 | AM24: 160 | AY24: 368680 | BA24: 368681 | BC24: 368682 | BE24: 368683 | BG24: 368684
B25: [490760]Бриджи ясельн. ДБР054804н | C25: кулир с лайкрой / хлопок 92% + лайкра 8% | D25: - / незабудки / - / - / - / - | E25: 160 | F25: =IF(MIN(AB25:AU25)=MAX(AB25:AU25),ROUND(MIN(AB25:AU25)*(1-$F$9),0),ROUND(MIN(AB25:AU25)*(1-$F$9),0)&"-"&ROUND(MAX(AB25:AU25)*(1-$F$9),0)) -> 141 | AA25: =(G25*AB25+H25*AC25+I25*AD25+J25*AE25+K25*AF25+L25*AG25+M25*AH25+N25*AI25+O25*AJ25+P25*AK25+Q25*AL25+R25*AM25+S25*AN25+T25*AO25+U25*AP25+V25*AQ25+W25*AR25+X25*AS25+Y25*AT25+Z25*AU25)*(1-$F$9) -> 0 | AE25: 160 | AG25: 160 | AI25: 160 | AK25: 160 | AM25: 160 | AY25: 358046 | BA25: 358047 | BC25: 358048 | BE25: 358049 | BG25: 358050
B26: [493598]Джемпер ясельн. ДДБ292001 | C26: кулир / хлопок 100% | D26: белый / - / Букет из незабудок / - / - / - | E26: 275 | F26: =IF(MIN(AB26:AU26)=MAX(AB26:AU26),ROUND(MIN(AB26:AU26)*(1-$F$9),0),ROUND(MIN(AB26:AU26)*(1-$F$9),0)&"-"&ROUND(MAX(AB26:AU26)*(1-$F$9),0)) -> 242 | AA26: =(G26*AB26+H26*AC26+I26*AD26+J26*AE26+K26*AF26+L26*AG26+M26*AH26+N26*AI26+O26*AJ26+P26*AK26+Q26*AL26+R26*AM26+S26*AN26+T26*AO26+U26*AP26+V26*AQ26+W26*AR26+X26*AS26+Y26*AT26+Z26*AU26)*(1-$F$9) -> 0 | AE26: 275 | AG26: 275 | AI26: 275 | AK26: 275 | AM26: 275 | AY26: 371709 | BA26: 371710 | BC26: 371711 | BE26: 371712 | BG26: 371713
B27: [493056]Джемпер ясельн. ДДБ292001н | C27: кулир / хлопок 100% | D27: - / клетка голубой+незабудки / Божьи коровки на листе / - / - / - | E27: 275 | F27: =IF(MIN(AB27:AU27)=MAX(AB27:AU27),ROUND(MIN(AB27:AU27)*(1-$F$9),0),ROUND(MIN(AB27:AU27)*(1-$F$9),0)&"-"&ROUND(MAX(AB27:AU27)*(1-$F$9),0)) -> 242 | AA27: =(G27*AB27+H27*AC27+I27*AD27+J27*AE27+K27*AF27+L27*AG27+M27*AH27+N27*AI27+O27*AJ27+P27*AK27+Q27*AL27+R27*AM27+S27*AN27+T27*AO27+U27*AP27+V27*AQ27+W27*AR27+X27*AS27+Y27*AT27+Z27*AU27)*(1-$F$9) -> 0 | AE27: 275 | AG27: 275 | AI27: 275 | AK27: 275 | AM27: 275 | AY27: 369182 | BA27: 369183 | BC27: 369184 | BE27: 369185 | BG27: 369186
B28: [492962]Джемпер ясельн. ДДБ292001н | C28: кулир / хлопок 100% | D28: - / незабудки+клетка голубой / Божьи коровки на листе / - / - / - | E28: 275 | F28: =IF(MIN(AB28:AU28)=MAX(AB28:AU28),ROUND(MIN(AB28:AU28)*(1-$F$9),0),ROUND(MIN(AB28:AU28)*(1-$F$9),0)&"-"&ROUND(MAX(AB28:AU28)*(1-$F$9),0)) -> 242 | AA28: =(G28*AB28+H28*AC28+I28*AD28+J28*AE28+K28*AF28+L28*AG28+M28*AH28+N28*AI28+O28*AJ28+P28*AK28+Q28*AL28+R28*AM28+S28*AN28+T28*AO28+U28*AP28+V28*AQ28+W28*AR28+X28*AS28+Y28*AT28+Z28*AU28)*(1-$F$9) -> 0 | AE28: 275 | AG28: 275 | AI28: 275 | AK28: 275 | AM28: 275 | AY28: 368685 | BA28: 368686 | BC28: 368687 | BE28: 368688 | BG28: 368689
B29: [490764]Джемпер ясельн. ДДК504001 | C29: кулир / хлопок 100% | D29: белый / - / Букет из незабудок / - / - / - | E29: 210 | F29: =IF(MIN(AB29:AU29)=MAX(AB29:AU29),ROUND(MIN(AB29:AU29)*(1-$F$9),0),ROUND(MIN(AB29:AU29)*(1-$F$9),0)&"-"&ROUND(MAX(AB29:AU29)*(1-$F$9),0)) -> 185 | AA29: =(G29*AB29+H29*AC29+I29*AD29+J29*AE29+K29*AF29+L29*AG29+M29*AH29+N29*AI29+O29*AJ29+P29*AK29+Q29*AL29+R29*AM29+S29*AN29+T29*AO29+U29*AP29+V29*AQ29+W29*AR29+X29*AS29+Y29*AT29+Z29*AU29)*(1-$F$9) -> 0 | AE29: 210 | AG29: 210 | AI29: 210 | AK29: 210 | AM29: 210 | AY29: 358066 | BA29: 358067 | BC29: 358068 | BE29: 358069 | BG29: 358070
B30: [492963]Джемпер ясельн. ДДК740001н | C30: кулир / хлопок 100% | D30: - / клетка голубой+незабудки / Божьи коровки на листе / - / - / - | E30: 310 | F30: =IF(MIN(AB30:AU30)=MAX(AB30:AU30),ROUND(MIN(AB30:AU30)*(1-$F$9),0),ROUND(MIN(AB30:AU30)*(1-$F$9),0)&"-"&ROUND(MAX(AB30:AU30)*(1-$F$9),0)) -> 273 | AA30: =(G30*AB30+H30*AC30+I30*AD30+J30*AE30+K30*AF30+L30*AG30+M30*AH30+N30*AI30+O30*AJ30+P30*AK30+Q30*AL30+R30*AM30+S30*AN30+T30*AO30+U30*AP30+V30*AQ30+W30*AR30+X30*AS30+Y30*AT30+Z30*AU30)*(1-$F$9) -> 0 | AE30: 310 | AG30: 310 | AI30: 310 | AK30: 310 | AM30: 310 | AY30: 368690 | BA30: 368691 | BC30: 368692 | BE30: 368693 | BG30: 368694
B31: [493600]Комплект верхний для девочки ДКР069804н | C31: кулир, кулир с лайкрой / хлопок 100%, хлопок 92% + лайкра 8% | D31: - / белый+незабудки василек / Букет из незабудок / - / - / - | E31: 435 | F31: =IF(MIN(AB31:AU31)=MAX(AB31:AU31),ROUND(MIN(AB31:AU31)*(1-$F$9),0),ROUND(MIN(AB31:AU31)*(1-$F$9),0)&"-"&ROUND(MAX(AB31:AU31)*(1-$F$9),0)) -> 383 | AA31: =(G31*AB31+H31*AC31+I31*AD31+J31*AE31+K31*AF31+L31*AG31+M31*AH31+N31*AI31+O31*AJ31+P31*AK31+Q31*AL31+R31*AM31+S31*AN31+T31*AO31+U31*AP31+V31*AQ31+W31*AR31+X31*AS31+Y31*AT31+Z31*AU31)*(1-$F$9) -> 0 | AE31: 435 | AG31: 435 | AI31: 435 | AK31: 435 | AM31: 435 | AY31: 371719 | BA31: 371720 | BC31: 371721 | BE31: 371722 | BG31: 371723
B32: [493306]Комплект верхний ясельн. ДКР069001н | C32: кулир / хлопок 100%, хлопок 92% + лайкра 8% | D32: - / незабудки+клетка голубой / Божьи коровки на листе / - / - / - | E32: 435 | F32: =IF(MIN(AB32:AU32)=MAX(AB32:AU32),ROUND(MIN(AB32:AU32)*(1-$F$9),0),ROUND(MIN(AB32:AU32)*(1-$F$9),0)&"-"&ROUND(MAX(AB32:AU32)*(1-$F$9),0)) -> 383 | AA32: =(G32*AB32+H32*AC32+I32*AD32+J32*AE32+K32*AF32+L32*AG32+M32*AH32+N32*AI32+O32*AJ32+P32*AK32+Q32*AL32+R32*AM32+S32*AN32+T32*AO32+U32*AP32+V32*AQ32+W32*AR32+X32*AS32+Y32*AT32+Z32*AU32)*(1-$F$9) -> 0 | AE32: 435 | AG32: 435 | AI32: 435 | AK32: 435 | AM32: 435 | AY32: 370332 | BA32: 370333 | BC32: 370334 | BE32: 370335 | BG32: 370336
B33: [493307]Комплект верхний ясельн. ДКШ070001н | C33: кулир / хлопок 100%, хлопок 92% + лайкра 8% | D33: - / клетка голубой+незабудки / Божьи коровки на листе / - / - / - | E33: 520 | F33: =IF(MIN(AB33:AU33)=MAX(AB33:AU33),ROUND(MIN(AB33:AU33)*(1-$F$9),0),ROUND(MIN(AB33:AU33)*(1-$F$9),0)&"-"&ROUND(MAX(AB33:AU33)*(1-$F$9),0)) -> 458 | AA33: =(G33*AB33+H33*AC33+I33*AD33+J33*AE33+K33*AF33+L33*AG33+M33*AH33+N33*AI33+O33*AJ33+P33*AK33+Q33*AL33+R33*AM33+S33*AN33+T33*AO33+U33*AP33+V33*AQ33+W33*AR33+X33*AS33+Y33*AT33+Z33*AU33)*(1-$F$9) -> 0 | AE33: 520 | AG33: 520 | AI33: 520 | AK33: 520 | AM33: 520 | AY33: 370337 | BA33: 370338 | BC33: 370339 | BE33: 370340 | BG33: 370341
B34: [492964]Платье ясельн. ДПК743001н | C34: кулир / хлопок 100% | D34: - / клетка голубой+незабудки / Божьи коровки на листе / - / - / - | E34: 398 | F34: =IF(MIN(AB34:AU34)=MAX(AB34:AU34),ROUND(MIN(AB34:AU34)*(1-$F$9),0),ROUND(MIN(AB34:AU34)*(1-$F$9),0)&"-"&ROUND(MAX(AB34:AU34)*(1-$F$9),0)) -> 350 | AA34: =(G34*AB34+H34*AC34+I34*AD34+J34*AE34+K34*AF34+L34*AG34+M34*AH34+N34*AI34+O34*AJ34+P34*AK34+Q34*AL34+R34*AM34+S34*AN34+T34*AO34+U34*AP34+V34*AQ34+W34*AR34+X34*AS34+Y34*AT34+Z34*AU34)*(1-$F$9) -> 0 | AE34: 398 | AG34: 398 | AI34: 398 | AK34: 398 | AM34: 398 | AY34: 368695 | BA34: 368696 | BC34: 368697 | BE34: 368698 | BG34: 368699
B35: [492965]Платье ясельн. ДПК743001н | C35: кулир / хлопок 100% | D35: - / незабудки+клетка голубой / Божьи коровки на листе / - / - / - | E35: 438 | F35: =IF(MIN(AB35:AU35)=MAX(AB35:AU35),ROUND(MIN(AB35:AU35)*(1-$F$9),0),ROUND(MIN(AB35:AU35)*(1-$F$9),0)&"-"&ROUND(MAX(AB35:AU35)*(1-$F$9),0)) -> 385 | AA35: =(G35*AB35+H35*AC35+I35*AD35+J35*AE35+K35*AF35+L35*AG35+M35*AH35+N35*AI35+O35*AJ35+P35*AK35+Q35*AL35+R35*AM35+S35*AN35+T35*AO35+U35*AP35+V35*AQ35+W35*AR35+X35*AS35+Y35*AT35+Z35*AU35)*(1-$F$9) -> 0 | AE35: 438 | AG35: 438 | AI35: 438 | AK35: 438 | AM35: 438 | AY35: 368700 | BA35: 368701 | BC35: 368702 | BE35: 368703 | BG35: 368704
B36: [492966]Трусы ясельн. ДНТ046001н | C36: кулир / хлопок 100% | D36: - / клетка голубой / Божьи коровки на листе / - / - / - | E36: 210 | F36: =IF(MIN(AB36:AU36)=MAX(AB36:AU36),ROUND(MIN(AB36:AU36)*(1-$F$9),0),ROUND(MIN(AB36:AU36)*(1-$F$9),0)&"-"&ROUND(MAX(AB36:AU36)*(1-$F$9),0)) -> 185 | AA36: =(G36*AB36+H36*AC36+I36*AD36+J36*AE36+K36*AF36+L36*AG36+M36*AH36+N36*AI36+O36*AJ36+P36*AK36+Q36*AL36+R36*AM36+S36*AN36+T36*AO36+U36*AP36+V36*AQ36+W36*AR36+X36*AS36+Y36*AT36+Z36*AU36)*(1-$F$9) -> 0 | AE36: 210 | AG36: 210 | AI36: 210 | AK36: 210 | AM36: 210 | AY36: 368705 | BA36: 368706 | BC36: 368707 | BE36: 368708 | BG36: 368709
B37: Коллекция "Гжель"
B38: [253141]Джемпер для девочки ДДК073804н | C38: кулир с лайкрой / хлопок 92% + лайкра 8% | D38: - / цветы гжель / - / - / - / - | E38: 240 | F38: =IF(MIN(AB38:AU38)=MAX(AB38:AU38),ROUND(MIN(AB38:AU38)*(1-$F$9),0),ROUND(MIN(AB38:AU38)*(1-$F$9),0)&"-"&ROUND(MAX(AB38:AU38)*(1-$F$9),0)) -> 211 | AA38: =(G38*AB38+H38*AC38+I38*AD38+J38*AE38+K38*AF38+L38*AG38+M38*AH38+N38*AI38+O38*AJ38+P38*AK38+Q38*AL38+R38*AM38+S38*AN38+T38*AO38+U38*AP38+V38*AQ38+W38*AR38+X38*AS38+Y38*AT38+Z38*AU38)*(1-$F$9) -> 0 | AF38: 240 | AH38: 240 | AJ38: 240 | AL38: 240 | AN38: 240 | AO38: 240 | AP38: 240 | AQ38: 240 | AZ38: 245900 | BB38: 245902 | BD38: 245903 | BF38: 245904 | BH38: 245905 | BI38: 245906 | BJ38: 245907 | BK38: 245908
B39: [233487]Платье для девочки ДПБ062804 | C39: кулир с лайкрой / хлопок 92% + лайкра 8% | D39: белый / - / - / - / - / - | E39: 650 | F39: =IF(MIN(AB39:AU39)=MAX(AB39:AU39),ROUND(MIN(AB39:AU39)*(1-$F$9),0),ROUND(MIN(AB39:AU39)*(1-$F$9),0)&"-"&ROUND(MAX(AB39:AU39)*(1-$F$9),0)) -> 572 | AA39: =(G39*AB39+H39*AC39+I39*AD39+J39*AE39+K39*AF39+L39*AG39+M39*AH39+N39*AI39+O39*AJ39+P39*AK39+Q39*AL39+R39*AM39+S39*AN39+T39*AO39+U39*AP39+V39*AQ39+W39*AR39+X39*AS39+Y39*AT39+Z39*AU39)*(1-$F$9) -> 0 | AF39: 650 | AH39: 650 | AJ39: 650 | AL39: 650 | AN39: 650 | AO39: 650 | AP39: 650 | AQ39: 650 | AZ39: 146182 | BB39: 146183 | BD39: 146184 | BF39: 146185 | BH39: 146186 | BI39: 245909 | BJ39: 245910 | BK39: 245911
B40: [253142]Платье для девочки ДПБ062804н | C40: кулир с лайкрой / хлопок 92% + лайкра 8% | D40: - / белый+цветы гжель / - / - / - / - | E40: 650 | F40: =IF(MIN(AB40:AU40)=MAX(AB40:AU40),ROUND(MIN(AB40:AU40)*(1-$F$9),0),ROUND(MIN(AB40:AU40)*(1-$F$9),0)&"-"&ROUND(MAX(AB40:AU40)*(1-$F$9),0)) -> 572 | AA40: =(G40*AB40+H40*AC40+I40*AD40+J40*AE40+K40*AF40+L40*AG40+M40*AH40+N40*AI40+O40*AJ40+P40*AK40+Q40*AL40+R40*AM40+S40*AN40+T40*AO40+U40*AP40+V40*AQ40+W40*AR40+X40*AS40+Y40*AT40+Z40*AU40)*(1-$F$9) -> 0 | AF40: 650 | AH40: 650 | AJ40: 650 | AL40: 650 | AN40: 650 | AO40: 650 | AP40: 650 | AQ40: 650 | AZ40: 245912 | BB40: 245914 | BD40: 245915 | BF40: 245916 | BH40: 245917 | BI40: 245918 | BJ40: 245919 | BK40: 245920
B41: [302458]Рейтузы для девочки ДРЛ894804 | C41: кулир / хлопок 92% + лайкра 8% | D41: василек / - / - / - / - / - | E41: 220-260 | F41: =IF(MIN(AB41:AU41)=MAX(AB41:AU41),ROUND(MIN(AB41:AU41)*(1-$F$9),0),ROUND(MIN(AB41:AU41)*(1-$F$9),0)&"-"&ROUND(MAX(AB41:AU41)*(1-$F$9),0)) -> 194-229 | AA41: =(G41*AB41+H41*AC41+I41*AD41+J41*AE41+K41*AF41+L41*AG41+M41*AH41+N41*AI41+O41*AJ41+P41*AK41+Q41*AL41+R41*AM41+S41*AN41+T41*AO41+U41*AP41+V41*AQ41+W41*AR41+X41*AS41+Y41*AT41+Z41*AU41)*(1-$F$9) -> 0 | AH41: 220 | AJ41: 220 | AL41: 220 | AN41: 220 | AO41: 260 | AP41: 260 | AQ41: 260 | BB41: 302457 | BD41: 302459 | BF41: 302460 | BH41: 302461 | BI41: 302462 | BJ41: 302463 | BK41: 302464
B42: [488445]Рейтузы для девочки ДРЛ894804н | C42: кулир с лайкрой / хлопок 92% + лайкра 8% | D42: - / новая гжель василек+бирюза / - / - / - / - | E42: 240-280 | F42: =IF(MIN(AB42:AU42)=MAX(AB42:AU42),ROUND(MIN(AB42:AU42)*(1-$F$9),0),ROUND(MIN(AB42:AU42)*(1-$F$9),0)&"-"&ROUND(MAX(AB42:AU42)*(1-$F$9),0)) -> 211-246 | AA42: =(G42*AB42+H42*AC42+I42*AD42+J42*AE42+K42*AF42+L42*AG42+M42*AH42+N42*AI42+O42*AJ42+P42*AK42+Q42*AL42+R42*AM42+S42*AN42+T42*AO42+U42*AP42+V42*AQ42+W42*AR42+X42*AS42+Y42*AT42+Z42*AU42)*(1-$F$9) -> 0 | AH42: 240 | AJ42: 240 | AL42: 240 | AN42: 240 | AO42: 280 | AP42: 280 | AQ42: 280 | BB42: 346901 | BD42: 346902 | BF42: 346903 | BH42: 346904 | BI42: 346905 | BJ42: 346906 | BK42: 346907
B43: [233494]Юбка для девочки ДЮК064804 | C43: кулир с лайкрой / хлопок 92% + лайкра 8% | D43: белый / - / печать справа / - / - / - | E43: 350 | F43: =IF(MIN(AB43:AU43)=MAX(AB43:AU43),ROUND(MIN(AB43:AU43)*(1-$F$9),0),ROUND(MIN(AB43:AU43)*(1-$F$9),0)&"-"&ROUND(MAX(AB43:AU43)*(1-$F$9),0)) -> 308 | AA43: =(G43*AB43+H43*AC43+I43*AD43+J43*AE43+K43*AF43+L43*AG43+M43*AH43+N43*AI43+O43*AJ43+P43*AK43+Q43*AL43+R43*AM43+S43*AN43+T43*AO43+U43*AP43+V43*AQ43+W43*AR43+X43*AS43+Y43*AT43+Z43*AU43)*(1-$F$9) -> 0 | AF43: 350 | AH43: 350 | AJ43: 350 | AL43: 350 | AN43: 350 | AO43: 350 | AP43: 350 | AQ43: 350 | AZ43: 155386 | BB43: 155387 | BD43: 155388 | BF43: 146190 | BH43: 146191 | BI43: 245960 | BJ43: 245961 | BK43: 245962
B44: [253146]Юбка для девочки ДЮК064804н | C44: кулир с лайкрой / хлопок 92% + лайкра 8% | D44: - / цветы гжель / - / - / - / - | E44: 398 | F44: =IF(MIN(AB44:AU44)=MAX(AB44:AU44),ROUND(MIN(AB44:AU44)*(1-$F$9),0),ROUND(MIN(AB44:AU44)*(1-$F$9),0)&"-"&ROUND(MAX(AB44:AU44)*(1-$F$9),0)) -> 350 | AA44: =(G44*AB44+H44*AC44+I44*AD44+J44*AE44+K44*AF44+L44*AG44+M44*AH44+N44*AI44+O44*AJ44+P44*AK44+Q44*AL44+R44*AM44+S44*AN44+T44*AO44+U44*AP44+V44*AQ44+W44*AR44+X44*AS44+Y44*AT44+Z44*AU44)*(1-$F$9) -> 0 | AF44: 398 | AH44: 398 | AJ44: 398 | AL44: 398 | AN44: 398 | AO44: 398 | AP44: 398 | AQ44: 398 | AZ44: 245963 | BB44: 245965 | BD44: 245966 | BF44: 245967 | BH44: 245968 | BI44: 245969 | BJ44: 245970 | BK44: 245971
B45: Коллекция "Дорога к морю"
B46: [322210]Джемпер для девочки ДДБ357804 | C46: кулир с лайкрой / хлопок 92% + лайкра 8% | D46: белый / - / Парусники / - / - / - | E46: 320 | F46: =IF(MIN(AB46:AU46)=MAX(AB46:AU46),ROUND(MIN(AB46:AU46)*(1-$F$9),0),ROUND(MIN(AB46:AU46)*(1-$F$9),0)&"-"&ROUND(MAX(AB46:AU46)*(1-$F$9),0)) -> 282 | AA46: =(G46*AB46+H46*AC46+I46*AD46+J46*AE46+K46*AF46+L46*AG46+M46*AH46+N46*AI46+O46*AJ46+P46*AK46+Q46*AL46+R46*AM46+S46*AN46+T46*AO46+U46*AP46+V46*AQ46+W46*AR46+X46*AS46+Y46*AT46+Z46*AU46)*(1-$F$9) -> 0 | AH46: 320 | AJ46: 320 | AL46: 320 | AN46: 320 | AO46: 320 | AP46: 320 | AQ46: 320 | BB46: 323591 | BD46: 322209 | BF46: 322211 | BH46: 322212 | BI46: 322213 | BJ46: 322214 | BK46: 322215
B47: [322217]Джемпер для девочки ДДБ357804 | C47: кулир с лайкрой / хлопок 92% + лайкра 8% | D47: темно-синий / - / Зонтик / - / - / - | E47: 320 | F47: =IF(MIN(AB47:AU47)=MAX(AB47:AU47),ROUND(MIN(AB47:AU47)*(1-$F$9),0),ROUND(MIN(AB47:AU47)*(1-$F$9),0)&"-"&ROUND(MAX(AB47:AU47)*(1-$F$9),0)) -> 282 | AA47: =(G47*AB47+H47*AC47+I47*AD47+J47*AE47+K47*AF47+L47*AG47+M47*AH47+N47*AI47+O47*AJ47+P47*AK47+Q47*AL47+R47*AM47+S47*AN47+T47*AO47+U47*AP47+V47*AQ47+W47*AR47+X47*AS47+Y47*AT47+Z47*AU47)*(1-$F$9) -> 0 | AH47: 320 | AJ47: 320 | AL47: 320 | AN47: 320 | AO47: 320 | AP47: 320 | AQ47: 320 | BB47: 323593 | BD47: 322216 | BF47: 322218 | BH47: 322219 | BI47: 322220 | BJ47: 322221 | BK47: 322222
B48: [486488]Джемпер для девочки ДДД361804 | C48: кулир с лайкрой / хлопок 92% + лайкра 8% | D48: - / белый+полоска синий 18 / Сен-тропе / - / - / - | E48: 330 | F48: =IF(MIN(AB48:AU48)=MAX(AB48:AU48),ROUND(MIN(AB48:AU48)*(1-$F$9),0),ROUND(MIN(AB48:AU48)*(1-$F$9),0)&"-"&ROUND(MAX(AB48:AU48)*(1-$F$9),0)) -> 290 | AA48: =(G48*AB48+H48*AC48+I48*AD48+J48*AE48+K48*AF48+L48*AG48+M48*AH48+N48*AI48+O48*AJ48+P48*AK48+Q48*AL48+R48*AM48+S48*AN48+T48*AO48+U48*AP48+V48*AQ48+W48*AR48+X48*AS48+Y48*AT48+Z48*AU48)*(1-$F$9) -> 0 | AJ48: 330 | AL48: 330 | AN48: 330 | AO48: 330 | AP48: 330 | AQ48: 330 | BD48: 337243 | BF48: 337244 | BH48: 337245 | BI48: 337246 | BJ48: 337247 | BK48: 337248
B49: [486489]Джемпер для девочки ДДД361804 | C49: кулир с лайкрой / хлопок 92% + лайкра 8% | D49: - / темно-синий+полоска синий 18 / Сен-тропе / - / - / - | E49: 330 | F49: =IF(MIN(AB49:AU49)=MAX(AB49:AU49),ROUND(MIN(AB49:AU49)*(1-$F$9),0),ROUND(MIN(AB49:AU49)*(1-$F$9),0)&"-"&ROUND(MAX(AB49:AU49)*(1-$F$9),0)) -> 290 | AA49: =(G49*AB49+H49*AC49+I49*AD49+J49*AE49+K49*AF49+L49*AG49+M49*AH49+N49*AI49+O49*AJ49+P49*AK49+Q49*AL49+R49*AM49+S49*AN49+T49*AO49+U49*AP49+V49*AQ49+W49*AR49+X49*AS49+Y49*AT49+Z49*AU49)*(1-$F$9) -> 0 | AJ49: 330 | AL49: 330 | AN49: 330 | AO49: 330 | AP49: 330 | AQ49: 330 | BD49: 337249 | BF49: 337250 | BH49: 337251 | BI49: 337252 | BJ49: 337253 | BK49: 337254
B50: [489412]Джемпер для девочки ДДД364139 | C50: футер / хлопок 75%+полиэстер 20%+лайкра 5% | D50: - / белый+полоска синий 11 / Парусники / - / - / - | E50: 430 | F50: =IF(MIN(AB50:AU50)=MAX(AB50:AU50),ROUND(MIN(AB50:AU50)*(1-$F$9),0),ROUND(MIN(AB50:AU50)*(1-$F$9),0)&"-"&ROUND(MAX(AB50:AU50)*(1-$F$9),0)) -> 378 | AA50: =(G50*AB50+H50*AC50+I50*AD50+J50*AE50+K50*AF50+L50*AG50+M50*AH50+N50*AI50+O50*AJ50+P50*AK50+Q50*AL50+R50*AM50+S50*AN50+T50*AO50+U50*AP50+V50*AQ50+W50*AR50+X50*AS50+Y50*AT50+Z50*AU50)*(1-$F$9) -> 0 | AJ50: 430 | AL50: 430 | AN50: 430 | AO50: 430 | AP50: 430 | AQ50: 430 | BD50: 351633 | BF50: 351634 | BH50: 351635 | BI50: 351636 | BJ50: 351637 | BK50: 351638
B51: [489413]Джемпер для девочки ДДД366259 | C51: футер / хлопок 95% + лайкра 5% | D51: - / полоска синий 11 / - / - / - / - | E51: 498 | F51: =IF(MIN(AB51:AU51)=MAX(AB51:AU51),ROUND(MIN(AB51:AU51)*(1-$F$9),0),ROUND(MIN(AB51:AU51)*(1-$F$9),0)&"-"&ROUND(MAX(AB51:AU51)*(1-$F$9),0)) -> 438 | AA51: =(G51*AB51+H51*AC51+I51*AD51+J51*AE51+K51*AF51+L51*AG51+M51*AH51+N51*AI51+O51*AJ51+P51*AK51+Q51*AL51+R51*AM51+S51*AN51+T51*AO51+U51*AP51+V51*AQ51+W51*AR51+X51*AS51+Y51*AT51+Z51*AU51)*(1-$F$9) -> 0 | AJ51: 498 | AL51: 498 | AN51: 498 | AO51: 498 | AP51: 498 | AQ51: 498 | BD51: 351639 | BF51: 351640 | BH51: 351641 | BI51: 351642 | BJ51: 351643 | BK51: 351644
B52: [488369]Джемпер для девочки ДДК343001н | C52: кулир / хлопок 100% | D52: - / полоска красный 18 / Подчерк / - / - / - | E52: 410 | F52: =IF(MIN(AB52:AU52)=MAX(AB52:AU52),ROUND(MIN(AB52:AU52)*(1-$F$9),0),ROUND(MIN(AB52:AU52)*(1-$F$9),0)&"-"&ROUND(MAX(AB52:AU52)*(1-$F$9),0)) -> 361 | AA52: =(G52*AB52+H52*AC52+I52*AD52+J52*AE52+K52*AF52+L52*AG52+M52*AH52+N52*AI52+O52*AJ52+P52*AK52+Q52*AL52+R52*AM52+S52*AN52+T52*AO52+U52*AP52+V52*AQ52+W52*AR52+X52*AS52+Y52*AT52+Z52*AU52)*(1-$F$9) -> 0 | AH52: 410 | AJ52: 410 | AL52: 410 | AN52: 410 | AO52: 410 | AP52: 410 | AQ52: 410 | BB52: 346571 | BD52: 346565 | BF52: 346566 | BH52: 346567 | BI52: 346568 | BJ52: 346569 | BK52: 346570
B53: [322175]Джемпер для девочки ДДК343804н | C53: кулир с лайкрой / хлопок 92% + лайкра 8% | D53: - / полоска синий 18 / Подчерк / - / - / - | E53: 410 | F53: =IF(MIN(AB53:AU53)=MAX(AB53:AU53),ROUND(MIN(AB53:AU53)*(1-$F$9),0),ROUND(MIN(AB53:AU53)*(1-$F$9),0)&"-"&ROUND(MAX(AB53:AU53)*(1-$F$9),0)) -> 361 | AA53: =(G53*AB53+H53*AC53+I53*AD53+J53*AE53+K53*AF53+L53*AG53+M53*AH53+N53*AI53+O53*AJ53+P53*AK53+Q53*AL53+R53*AM53+S53*AN53+T53*AO53+U53*AP53+V53*AQ53+W53*AR53+X53*AS53+Y53*AT53+Z53*AU53)*(1-$F$9) -> 0 | AH53: 410 | AJ53: 410 | AL53: 410 | AN53: 410 | AO53: 410 | AP53: 410 | AQ53: 410 | BB53: 323581 | BD53: 322174 | BF53: 322176 | BH53: 322177 | BI53: 322178 | BJ53: 322179 | BK53: 322180
B54: [322189]Джемпер для девочки ДДК344804 | C54: кулир с лайкрой / хлопок 92% + лайкра 8% | D54: белый / - / Парусники / - / - / - | E54: 320 | F54: =IF(MIN(AB54:AU54)=MAX(AB54:AU54),ROUND(MIN(AB54:AU54)*(1-$F$9),0),ROUND(MIN(AB54:AU54)*(1-$F$9),0)&"-"&ROUND(MAX(AB54:AU54)*(1-$F$9),0)) -> 282 | AA54: =(G54*AB54+H54*AC54+I54*AD54+J54*AE54+K54*AF54+L54*AG54+M54*AH54+N54*AI54+O54*AJ54+P54*AK54+Q54*AL54+R54*AM54+S54*AN54+T54*AO54+U54*AP54+V54*AQ54+W54*AR54+X54*AS54+Y54*AT54+Z54*AU54)*(1-$F$9) -> 0 | AH54: 320 | AJ54: 320 | AL54: 320 | AN54: 320 | AO54: 320 | AP54: 320 | AQ54: 320 | BB54: 323585 | BD54: 322188 | BF54: 322190 | BH54: 322191 | BI54: 322192 | BJ54: 322193 | BK54: 322194
B55: [322196]Джемпер для девочки ДДК344804 | C55: кулир с лайкрой / хлопок 92% + лайкра 8% | D55: белый / - / Сен-тропе / - / - / - | E55: 320 | F55: =IF(MIN(AB55:AU55)=MAX(AB55:AU55),ROUND(MIN(AB55:AU55)*(1-$F$9),0),ROUND(MIN(AB55:AU55)*(1-$F$9),0)&"-"&ROUND(MAX(AB55:AU55)*(1-$F$9),0)) -> 282 | AA55: =(G55*AB55+H55*AC55+I55*AD55+J55*AE55+K55*AF55+L55*AG55+M55*AH55+N55*AI55+O55*AJ55+P55*AK55+Q55*AL55+R55*AM55+S55*AN55+T55*AO55+U55*AP55+V55*AQ55+W55*AR55+X55*AS55+Y55*AT55+Z55*AU55)*(1-$F$9) -> 0 | AH55: 320 | AJ55: 320 | AL55: 320 | AN55: 320 | AO55: 320 | AP55: 320 | AQ55: 320 | BB55: 323587 | BD55: 322195 | BF55: 322197 | BH55: 322198 | BI55: 322199 | BJ55: 322200 | BK55: 322201
B56: [322203]Джемпер для девочки ДДК344804 | C56: кулир с лайкрой / хлопок 92% + лайкра 8% | D56: темно-синий / - / Сен-тропе / - / - / - | E56: 320 | F56: =IF(MIN(AB56:AU56)=MAX(AB56:AU56),ROUND(MIN(AB56:AU56)*(1-$F$9),0),ROUND(MIN(AB56:AU56)*(1-$F$9),0)&"-"&ROUND(MAX(AB56:AU56)*(1-$F$9),0)) -> 282 | AA56: =(G56*AB56+H56*AC56+I56*AD56+J56*AE56+K56*AF56+L56*AG56+M56*AH56+N56*AI56+O56*AJ56+P56*AK56+Q56*AL56+R56*AM56+S56*AN56+T56*AO56+U56*AP56+V56*AQ56+W56*AR56+X56*AS56+Y56*AT56+Z56*AU56)*(1-$F$9) -> 0 | AH56: 320 | AJ56: 320 | AL56: 320 | AN56: 320 | AO56: 320 | AP56: 320 | AQ56: 320 | BB56: 323589 | BD56: 322202 | BF56: 322204 | BH56: 322205 | BI56: 322206 | BJ56: 322207 | BK56: 322208
B57: [322273]Платье для девочки ДПК360804н | C57: кулир с лайкрой / хлопок 92% + лайкра 8% | D57: - / полоска красный 18 / Море / - / - / - | E57: 590 | F57: =IF(MIN(AB57:AU57)=MAX(AB57:AU57),ROUND(MIN(AB57:AU57)*(1-$F$9),0),ROUND(MIN(AB57:AU57)*(1-$F$9),0)&"-"&ROUND(MAX(AB57:AU57)*(1-$F$9),0)) -> 519 | AA57: =(G57*AB57+H57*AC57+I57*AD57+J57*AE57+K57*AF57+L57*AG57+M57*AH57+N57*AI57+O57*AJ57+P57*AK57+Q57*AL57+R57*AM57+S57*AN57+T57*AO57+U57*AP57+V57*AQ57+W57*AR57+X57*AS57+Y57*AT57+Z57*AU57)*(1-$F$9) -> 0 | AH57: 590 | AJ57: 590 | AL57: 590 | AN57: 590 | AO57: 590 | AP57: 590 | AQ57: 590 | BB57: 323609 | BD57: 322272 | BF57: 322274 | BH57: 322275 | BI57: 322276 | BJ57: 322277 | BK57: 322278
B58: [322266]Платье для девочки ДПК360804н | C58: кулир с лайкрой / хлопок 92% + лайкра 8% | D58: - / полоска синий 18 / Море / - / - / - | E58: 590 | F58: =IF(MIN(AB58:AU58)=MAX(AB58:AU58),ROUND(MIN(AB58:AU58)*(1-$F$9),0),ROUND(MIN(AB58:AU58)*(1-$F$9),0)&"-"&ROUND(MAX(AB58:AU58)*(1-$F$9),0)) -> 519 | AA58: =(G58*AB58+H58*AC58+I58*AD58+J58*AE58+K58*AF58+L58*AG58+M58*AH58+N58*AI58+O58*AJ58+P58*AK58+Q58*AL58+R58*AM58+S58*AN58+T58*AO58+U58*AP58+V58*AQ58+W58*AR58+X58*AS58+Y58*AT58+Z58*AU58)*(1-$F$9) -> 0 | AH58: 590 | AJ58: 590 | AL58: 590 | AN58: 590 | AO58: 590 | AP58: 590 | AQ58: 590 | BB58: 323607 | BD58: 322265 | BF58: 322267 | BH58: 322268 | BI58: 322269 | BJ58: 322270 | BK58: 322271
B59: [322280]Платье для девочки ДПК360804н | C59: кулир с лайкрой / хлопок 92% + лайкра 8% | D59: - / цветы / Море / - / - / - | E59: 590 | F59: =IF(MIN(AB59:AU59)=MAX(AB59:AU59),ROUND(MIN(AB59:AU59)*(1-$F$9),0),ROUND(MIN(AB59:AU59)*(1-$F$9),0)&"-"&ROUND(MAX(AB59:AU59)*(1-$F$9),0)) -> 519 | AA59: =(G59*AB59+H59*AC59+I59*AD59+J59*AE59+K59*AF59+L59*AG59+M59*AH59+N59*AI59+O59*AJ59+P59*AK59+Q59*AL59+R59*AM59+S59*AN59+T59*AO59+U59*AP59+V59*AQ59+W59*AR59+X59*AS59+Y59*AT59+Z59*AU59)*(1-$F$9) -> 0 | AH59: 590 | AJ59: 590 | AL59: 590 | AN59: 590 | AO59: 590 | AP59: 590 | AQ59: 590 | BB59: 323611 | BD59: 322279 | BF59: 322281 | BH59: 322282 | BI59: 322283 | BJ59: 322284 | BK59: 322285
B60: [322259]Рейтузы для девочки ДРЛ894804 | C60: кулир / хлопок 92% + лайкра 8% | D60: темно-синий / - / - / - / - / - | E60: 220-260 | F60: =IF(MIN(AB60:AU60)=MAX(AB60:AU60),ROUND(MIN(AB60:AU60)*(1-$F$9),0),ROUND(MIN(AB60:AU60)*(1-$F$9),0)&"-"&ROUND(MAX(AB60:AU60)*(1-$F$9),0)) -> 194-229 | AA60: =(G60*AB60+H60*AC60+I60*AD60+J60*AE60+K60*AF60+L60*AG60+M60*AH60+N60*AI60+O60*AJ60+P60*AK60+Q60*AL60+R60*AM60+S60*AN60+T60*AO60+U60*AP60+V60*AQ60+W60*AR60+X60*AS60+Y60*AT60+Z60*AU60)*(1-$F$9) -> 0 | AH60: 220 | AJ60: 220 | AL60: 220 | AN60: 220 | AO60: 260 | AP60: 260 | AQ60: 260 | BB60: 323605 | BD60: 322258 | BF60: 322260 | BH60: 322261 | BI60: 322262 | BJ60: 322263 | BK60: 322264
B61: [322252]Рейтузы для девочки ДРЛ894804н | C61: кулир / хлопок 92% + лайкра 8% | D61: - / полоска синий 18 / - / - / - / - | E61: 280 | F61: =IF(MIN(AB61:AU61)=MAX(AB61:AU61),ROUND(MIN(AB61:AU61)*(1-$F$9),0),ROUND(MIN(AB61:AU61)*(1-$F$9),0)&"-"&ROUND(MAX(AB61:AU61)*(1-$F$9),0)) -> 246 | AA61: =(G61*AB61+H61*AC61+I61*AD61+J61*AE61+K61*AF61+L61*AG61+M61*AH61+N61*AI61+O61*AJ61+P61*AK61+Q61*AL61+R61*AM61+S61*AN61+T61*AO61+U61*AP61+V61*AQ61+W61*AR61+X61*AS61+Y61*AT61+Z61*AU61)*(1-$F$9) -> 0 | AH61: 280 | AJ61: 280 | AL61: 280 | AN61: 280 | AO61: 280 | AP61: 280 | AQ61: 280 | BB61: 323603 | BD61: 322251 | BF61: 322253 | BH61: 322254 | BI61: 322255 | BJ61: 322256 | BK61: 322257
B62: [322245]Рейтузы для девочки ДРЛ894804н | C62: кулир / хлопок 92% + лайкра 8% | D62: - / цветы / - / - / - / - | E62: 240-280 | F62: =IF(MIN(AB62:AU62)=MAX(AB62:AU62),ROUND(MIN(AB62:AU62)*(1-$F$9),0),ROUND(MIN(AB62:AU62)*(1-$F$9),0)&"-"&ROUND(MAX(AB62:AU62)*(1-$F$9),0)) -> 211-246 | AA62: =(G62*AB62+H62*AC62+I62*AD62+J62*AE62+K62*AF62+L62*AG62+M62*AH62+N62*AI62+O62*AJ62+P62*AK62+Q62*AL62+R62*AM62+S62*AN62+T62*AO62+U62*AP62+V62*AQ62+W62*AR62+X62*AS62+Y62*AT62+Z62*AU62)*(1-$F$9) -> 0 | AH62: 240 | AJ62: 240 | AL62: 240 | AN62: 240 | AO62: 280 | AP62: 280 | AQ62: 280 | BB62: 323601 | BD62: 322244 | BF62: 322246 | BH62: 322247 | BI62: 322248 | BJ62: 322249 | BK62: 322250
B63: [322238]Шорты для девочки ДШК359804 | C63: кулир с лайкрой / хлопок 92% + лайкра 8% | D63: темно-синий / - / - / - / - / - | E63: 350 | F63: =IF(MIN(AB63:AU63)=MAX(AB63:AU63),ROUND(MIN(AB63:AU63)*(1-$F$9),0),ROUND(MIN(AB63:AU63)*(1-$F$9),0)&"-"&ROUND(MAX(AB63:AU63)*(1-$F$9),0)) -> 308 | AA63: =(G63*AB63+H63*AC63+I63*AD63+J63*AE63+K63*AF63+L63*AG63+M63*AH63+N63*AI63+O63*AJ63+P63*AK63+Q63*AL63+R63*AM63+S63*AN63+T63*AO63+U63*AP63+V63*AQ63+W63*AR63+X63*AS63+Y63*AT63+Z63*AU63)*(1-$F$9) -> 0 | AH63: 350 | AJ63: 350 | AL63: 350 | AN63: 350 | AO63: 350 | AP63: 350 | AQ63: 350 | BB63: 323599 | BD63: 322237 | BF63: 322239 | BH63: 322240 | BI63: 322241 | BJ63: 322242 | BK63: 322243
B64: [322231]Юбка для девочки ДЮК358804 | C64: кулир с лайкрой / хлопок 92% + лайкра 8% | D64: темно-синий / - / - / - / - / - | E64: 398 | F64: =IF(MIN(AB64:AU64)=MAX(AB64:AU64),ROUND(MIN(AB64:AU64)*(1-$F$9),0),ROUND(MIN(AB64:AU64)*(1-$F$9),0)&"-"&ROUND(MAX(AB64:AU64)*(1-$F$9),0)) -> 350 | AA64: =(G64*AB64+H64*AC64+I64*AD64+J64*AE64+K64*AF64+L64*AG64+M64*AH64+N64*AI64+O64*AJ64+P64*AK64+Q64*AL64+R64*AM64+S64*AN64+T64*AO64+U64*AP64+V64*AQ64+W64*AR64+X64*AS64+Y64*AT64+Z64*AU64)*(1-$F$9) -> 0 | AH64: 398 | AJ64: 398 | AL64: 398 | AN64: 398 | AO64: 398 | AP64: 398 | AQ64: 398 | BB64: 323597 | BD64: 322230 | BF64: 322232 | BH64: 322233 | BI64: 322234 | BJ64: 322235 | BK64: 322236
B65: [322224]Юбка для девочки ДЮК358804н | C65: кулир с лайкрой / хлопок 92% + лайкра 8% | D65: - / цветы / - / - / - / - | E65: 450 | F65: =IF(MIN(AB65:AU65)=MAX(AB65:AU65),ROUND(MIN(AB65:AU65)*(1-$F$9),0),ROUND(MIN(AB65:AU65)*(1-$F$9),0)&"-"&ROUND(MAX(AB65:AU65)*(1-$F$9),0)) -> 396 | AA65: =(G65*AB65+H65*AC65+I65*AD65+J65*AE65+K65*AF65+L65*AG65+M65*AH65+N65*AI65+O65*AJ65+P65*AK65+Q65*AL65+R65*AM65+S65*AN65+T65*AO65+U65*AP65+V65*AQ65+W65*AR65+X65*AS65+Y65*AT65+Z65*AU65)*(1-$F$9) -> 0 | AH65: 450 | AJ65: 450 | AL65: 450 | AN65: 450 | AO65: 450 | AP65: 450 | AQ65: 450 | BB65: 323595 | BD65: 322223 | BF65: 322225 | BH65: 322226 | BI65: 322227 | BJ65: 322228 | BK65: 322229
B66: Коллекция "Дух свободы"
B67: [492549]Джемпер для девочки ДДД162067 | C67: интерлок / хлопок 100% | D67: черный / - / Камуфляжный карман / - / - / - | E67: 310 | F67: =IF(MIN(AB67:AU67)=MAX(AB67:AU67),ROUND(MIN(AB67:AU67)*(1-$F$9),0),ROUND(MIN(AB67:AU67)*(1-$F$9),0)&"-"&ROUND(MAX(AB67:AU67)*(1-$F$9),0)) -> 273 | AA67: =(G67*AB67+H67*AC67+I67*AD67+J67*AE67+K67*AF67+L67*AG67+M67*AH67+N67*AI67+O67*AJ67+P67*AK67+Q67*AL67+R67*AM67+S67*AN67+T67*AO67+U67*AP67+V67*AQ67+W67*AR67+X67*AS67+Y67*AT67+Z67*AU67)*(1-$F$9) -> 0 | AJ67: 310 | AL67: 310 | AN67: 310 | AO67: 310 | AP67: 310 | AQ67: 310 | BD67: 366800 | BF67: 366801 | BH67: 366802 | BI67: 366803 | BJ67: 366804 | BK67: 366805
B68: [492548]Комплект верхний для девочки ДКЮ079067н | C68: интерлок / хлопок 100% | D68: - / черный+камуфляж бежевый+темно-зеленый / Камуфляжный карман / - / - / - | E68: 740 | F68: =IF(MIN(AB68:AU68)=MAX(AB68:AU68),ROUND(MIN(AB68:AU68)*(1-$F$9),0),ROUND(MIN(AB68:AU68)*(1-$F$9),0)&"-"&ROUND(MAX(AB68:AU68)*(1-$F$9),0)) -> 651 | AA68: =(G68*AB68+H68*AC68+I68*AD68+J68*AE68+K68*AF68+L68*AG68+M68*AH68+N68*AI68+O68*AJ68+P68*AK68+Q68*AL68+R68*AM68+S68*AN68+T68*AO68+U68*AP68+V68*AQ68+W68*AR68+X68*AS68+Y68*AT68+Z68*AU68)*(1-$F$9) -> 0 | AJ68: 740 | AL68: 740 | AN68: 740 | AO68: 740 | AP68: 740 | AQ68: 740 | BD68: 366794 | BF68: 366795 | BH68: 366796 | BI68: 366797 | BJ68: 366798 | BK68: 366799
B69: [492550]Платье для девочки ДПД836067н | C69: интерлок / хлопок 100% | D69: - / черный+камуфляж бежевый+темно-зеленый / Камуфляжный карман / - / - / - | E69: 398 | F69: =IF(MIN(AB69:AU69)=MAX(AB69:AU69),ROUND(MIN(AB69:AU69)*(1-$F$9),0),ROUND(MIN(AB69:AU69)*(1-$F$9),0)&"-"&ROUND(MAX(AB69:AU69)*(1-$F$9),0)) -> 350 | AA69: =(G69*AB69+H69*AC69+I69*AD69+J69*AE69+K69*AF69+L69*AG69+M69*AH69+N69*AI69+O69*AJ69+P69*AK69+Q69*AL69+R69*AM69+S69*AN69+T69*AO69+U69*AP69+V69*AQ69+W69*AR69+X69*AS69+Y69*AT69+Z69*AU69)*(1-$F$9) -> 0 | AJ69: 398 | AL69: 398 | AN69: 398 | AO69: 398 | AP69: 398 | AQ69: 398 | BD69: 366806 | BF69: 366807 | BH69: 366808 | BI69: 366809 | BJ69: 366810 | BK69: 366811
B70: [492551]Юбка для девочки ДЮК591067н | C70: интерлок / хлопок 100% | D70: - / камуфляж бежевый+темно-зеленый / - / - / - / - | E70: 430 | F70: =IF(MIN(AB70:AU70)=MAX(AB70:AU70),ROUND(MIN(AB70:AU70)*(1-$F$9),0),ROUND(MIN(AB70:AU70)*(1-$F$9),0)&"-"&ROUND(MAX(AB70:AU70)*(1-$F$9),0)) -> 378 | AA70: =(G70*AB70+H70*AC70+I70*AD70+J70*AE70+K70*AF70+L70*AG70+M70*AH70+N70*AI70+O70*AJ70+P70*AK70+Q70*AL70+R70*AM70+S70*AN70+T70*AO70+U70*AP70+V70*AQ70+W70*AR70+X70*AS70+Y70*AT70+Z70*AU70)*(1-$F$9) -> 0 | AJ70: 430 | AL70: 430 | AN70: 430 | AO70: 430 | AP70: 430 | AQ70: 430 | BD70: 366812 | BF70: 366813 | BH70: 366814 | BI70: 366815 | BJ70: 366816 | BK70: 366817
B71: Коллекция "Лазурный берег"
B72: [490387]Бриджи для девочки ДБР116804н | C72: кулир с лайкрой / хлопок 92% + лайкра 8% | D72: - / белый горошек на красном 2 / - / - / - / - | E72: 190 | F72: =IF(MIN(AB72:AU72)=MAX(AB72:AU72),ROUND(MIN(AB72:AU72)*(1-$F$9),0),ROUND(MIN(AB72:AU72)*(1-$F$9),0)&"-"&ROUND(MAX(AB72:AU72)*(1-$F$9),0)) -> 167 | AA72: =(G72*AB72+H72*AC72+I72*AD72+J72*AE72+K72*AF72+L72*AG72+M72*AH72+N72*AI72+O72*AJ72+P72*AK72+Q72*AL72+R72*AM72+S72*AN72+T72*AO72+U72*AP72+V72*AQ72+W72*AR72+X72*AS72+Y72*AT72+Z72*AU72)*(1-$F$9) -> 0 | AF72: 190 | AH72: 190 | AJ72: 190 | AL72: 190 | AN72: 190 | AO72: 190 | AZ72: 355822 | BB72: 355823 | BD72: 355824 | BF72: 355825 | BH72: 355826 | BI72: 355827
B73: [490382]Джемпер для девочки ДДБ765005 | C73: кулир / хлопок 100% | D73: - / белый+полоска голубой 7 / Девочка с пуделем / - / - / - | E73: 210 | F73: =IF(MIN(AB73:AU73)=MAX(AB73:AU73),ROUND(MIN(AB73:AU73)*(1-$F$9),0),ROUND(MIN(AB73:AU73)*(1-$F$9),0)&"-"&ROUND(MAX(AB73:AU73)*(1-$F$9),0)) -> 185 | AA73: =(G73*AB73+H73*AC73+I73*AD73+J73*AE73+K73*AF73+L73*AG73+M73*AH73+N73*AI73+O73*AJ73+P73*AK73+Q73*AL73+R73*AM73+S73*AN73+T73*AO73+U73*AP73+V73*AQ73+W73*AR73+X73*AS73+Y73*AT73+Z73*AU73)*(1-$F$9) -> 0 | AF73: 210 | AH73: 210 | AJ73: 210 | AL73: 210 | AN73: 210 | AO73: 210 | AZ73: 355792 | BB73: 355793 | BD73: 355794 | BF73: 355795 | BH73: 355796 | BI73: 355797
B74: [490384]Джемпер для девочки ДДК766005 | C74: кулир / хлопок 100% | D74: - / полоска голубой 7+белый / Девочка с пуделем / - / - / - | E74: 320 | F74: =IF(MIN(AB74:AU74)=MAX(AB74:AU74),ROUND(MIN(AB74:AU74)*(1-$F$9),0),ROUND(MIN(AB74:AU74)*(1-$F$9),0)&"-"&ROUND(MAX(AB74:AU74)*(1-$F$9),0)) -> 282 | AA74: =(G74*AB74+H74*AC74+I74*AD74+J74*AE74+K74*AF74+L74*AG74+M74*AH74+N74*AI74+O74*AJ74+P74*AK74+Q74*AL74+R74*AM74+S74*AN74+T74*AO74+U74*AP74+V74*AQ74+W74*AR74+X74*AS74+Y74*AT74+Z74*AU74)*(1-$F$9) -> 0 | AF74: 320 | AH74: 320 | AJ74: 320 | AL74: 320 | AN74: 320 | AO74: 320 | AZ74: 355804 | BB74: 355805 | BD74: 355806 | BF74: 355807 | BH74: 355808 | BI74: 355809
B75: [490383]Джемпер для девочки ДДК766005 | C75: кулир / хлопок 100% | D75: - / полоска голубой 7+белый / Сливки / - / - / - | E75: 320 | F75: =IF(MIN(AB75:AU75)=MAX(AB75:AU75),ROUND(MIN(AB75:AU75)*(1-$F$9),0),ROUND(MIN(AB75:AU75)*(1-$F$9),0)&"-"&ROUND(MAX(AB75:AU75)*(1-$F$9),0)) -> 282 | AA75: =(G75*AB75+H75*AC75+I75*AD75+J75*AE75+K75*AF75+L75*AG75+M75*AH75+N75*AI75+O75*AJ75+P75*AK75+Q75*AL75+R75*AM75+S75*AN75+T75*AO75+U75*AP75+V75*AQ75+W75*AR75+X75*AS75+Y75*AT75+Z75*AU75)*(1-$F$9) -> 0 | AF75: 320 | AH75: 320 | AJ75: 320 | AL75: 320 | AN75: 320 | AO75: 320 | AZ75: 355798 | BB75: 355799 | BD75: 355800 | BF75: 355801 | BH75: 355802 | BI75: 355803
B76: [490385]Джемпер для девочки ДДК767005 | C76: кулир / хлопок 100% | D76: - / полоска голубой 7 / Цветы уголком / - / - / - | E76: 430 | F76: =IF(MIN(AB76:AU76)=MAX(AB76:AU76),ROUND(MIN(AB76:AU76)*(1-$F$9),0),ROUND(MIN(AB76:AU76)*(1-$F$9),0)&"-"&ROUND(MAX(AB76:AU76)*(1-$F$9),0)) -> 378 | AA76: =(G76*AB76+H76*AC76+I76*AD76+J76*AE76+K76*AF76+L76*AG76+M76*AH76+N76*AI76+O76*AJ76+P76*AK76+Q76*AL76+R76*AM76+S76*AN76+T76*AO76+U76*AP76+V76*AQ76+W76*AR76+X76*AS76+Y76*AT76+Z76*AU76)*(1-$F$9) -> 0 | AF76: 430 | AH76: 430 | AJ76: 430 | AL76: 430 | AN76: 430 | AO76: 430 | AZ76: 355810 | BB76: 355811 | BD76: 355812 | BF76: 355813 | BH76: 355814 | BI76: 355815
B77: [493283]Комплект верхний для девочки ДКР044804н | C77: кулир / хлопок 100%, хлопок 92% + лайкра 8% | D77: - / белый+полоска голубой 7 / Девочка с пуделем+Цветы уголком / - / - / - | E77: 440 | F77: =IF(MIN(AB77:AU77)=MAX(AB77:AU77),ROUND(MIN(AB77:AU77)*(1-$F$9),0),ROUND(MIN(AB77:AU77)*(1-$F$9),0)&"-"&ROUND(MAX(AB77:AU77)*(1-$F$9),0)) -> 387 | AA77: =(G77*AB77+H77*AC77+I77*AD77+J77*AE77+K77*AF77+L77*AG77+M77*AH77+N77*AI77+O77*AJ77+P77*AK77+Q77*AL77+R77*AM77+S77*AN77+T77*AO77+U77*AP77+V77*AQ77+W77*AR77+X77*AS77+Y77*AT77+Z77*AU77)*(1-$F$9) -> 0 | AF77: 440 | AH77: 440 | AJ77: 440 | AL77: 440 | AN77: 440 | AO77: 440 | AZ77: 370198 | BB77: 370199 | BD77: 370200 | BF77: 370201 | BH77: 370202 | BI77: 370203
B78: [493284]Комплект верхний для девочки ДКЮ046005 | C78: кулир / хлопок 100% | D78: - / полоска голубой 7+белый / Сливки / - / - / - | E78: 618 | F78: =IF(MIN(AB78:AU78)=MAX(AB78:AU78),ROUND(MIN(AB78:AU78)*(1-$F$9),0),ROUND(MIN(AB78:AU78)*(1-$F$9),0)&"-"&ROUND(MAX(AB78:AU78)*(1-$F$9),0)) -> 544 | AA78: =(G78*AB78+H78*AC78+I78*AD78+J78*AE78+K78*AF78+L78*AG78+M78*AH78+N78*AI78+O78*AJ78+P78*AK78+Q78*AL78+R78*AM78+S78*AN78+T78*AO78+U78*AP78+V78*AQ78+W78*AR78+X78*AS78+Y78*AT78+Z78*AU78)*(1-$F$9) -> 0 | AF78: 618 | AH78: 618 | AJ78: 618 | AL78: 618 | AN78: 618 | AO78: 618 | AZ78: 370204 | BB78: 370205 | BD78: 370206 | BF78: 370207 | BH78: 370208 | BI78: 370209
B79: [490386]Платье для девочки ДПК768005 | C79: кулир / хлопок 100% | D79: - / полоска голубой 7 / Оплечье из цветов / - / - / - | E79: 290 | F79: =IF(MIN(AB79:AU79)=MAX(AB79:AU79),ROUND(MIN(AB79:AU79)*(1-$F$9),0),ROUND(MIN(AB79:AU79)*(1-$F$9),0)&"-"&ROUND(MAX(AB79:AU79)*(1-$F$9),0)) -> 255 | AA79: =(G79*AB79+H79*AC79+I79*AD79+J79*AE79+K79*AF79+L79*AG79+M79*AH79+N79*AI79+O79*AJ79+P79*AK79+Q79*AL79+R79*AM79+S79*AN79+T79*AO79+U79*AP79+V79*AQ79+W79*AR79+X79*AS79+Y79*AT79+Z79*AU79)*(1-$F$9) -> 0 | AF79: 290 | AH79: 290 | AJ79: 290 | AL79: 290 | AN79: 290 | AO79: 290 | AZ79: 355816 | BB79: 355817 | BD79: 355818 | BF79: 355819 | BH79: 355820 | BI79: 355821
B80: [490388]Рейтузы для девочки ДРЛ894804н | C80: кулир с лайкрой / хлопок 92% + лайкра 8% | D80: - / полоска голубой 7 / Цветы уголком / - / - / - | E80: 230 | F80: =IF(MIN(AB80:AU80)=MAX(AB80:AU80),ROUND(MIN(AB80:AU80)*(1-$F$9),0),ROUND(MIN(AB80:AU80)*(1-$F$9),0)&"-"&ROUND(MAX(AB80:AU80)*(1-$F$9),0)) -> 202 | AA80: =(G80*AB80+H80*AC80+I80*AD80+J80*AE80+K80*AF80+L80*AG80+M80*AH80+N80*AI80+O80*AJ80+P80*AK80+Q80*AL80+R80*AM80+S80*AN80+T80*AO80+U80*AP80+V80*AQ80+W80*AR80+X80*AS80+Y80*AT80+Z80*AU80)*(1-$F$9) -> 0 | AF80: 230 | AH80: 230 | AJ80: 230 | AL80: 230 | AN80: 230 | AO80: 230 | AZ80: 355828 | BB80: 355829 | BD80: 355830 | BF80: 355831 | BH80: 355832 | BI80: 355833
B81: [490389]Шорты для девочки ДШК778804 | C81: кулир с лайкрой / хлопок 92% + лайкра 8% | D81: голубой / - / - / - / - / - | E81: 260 | F81: =IF(MIN(AB81:AU81)=MAX(AB81:AU81),ROUND(MIN(AB81:AU81)*(1-$F$9),0),ROUND(MIN(AB81:AU81)*(1-$F$9),0)&"-"&ROUND(MAX(AB81:AU81)*(1-$F$9),0)) -> 229 | AA81: =(G81*AB81+H81*AC81+I81*AD81+J81*AE81+K81*AF81+L81*AG81+M81*AH81+N81*AI81+O81*AJ81+P81*AK81+Q81*AL81+R81*AM81+S81*AN81+T81*AO81+U81*AP81+V81*AQ81+W81*AR81+X81*AS81+Y81*AT81+Z81*AU81)*(1-$F$9) -> 0 | AF81: 260 | AH81: 260 | AJ81: 260 | AL81: 260 | AN81: 260 | AO81: 260 | AZ81: 355834 | BB81: 355835 | BD81: 355836 | BF81: 355837 | BH81: 355838 | BI81: 355839
B82: [490391]Юбка для девочки ДЮК769001н | C82: кулир / хлопок 100% | D82: - / белый горошек на красном 2 / - / - / - / - | E82: 298 | F82: =IF(MIN(AB82:AU82)=MAX(AB82:AU82),ROUND(MIN(AB82:AU82)*(1-$F$9),0),ROUND(MIN(AB82:AU82)*(1-$F$9),0)&"-"&ROUND(MAX(AB82:AU82)*(1-$F$9),0)) -> 262 | AA82: =(G82*AB82+H82*AC82+I82*AD82+J82*AE82+K82*AF82+L82*AG82+M82*AH82+N82*AI82+O82*AJ82+P82*AK82+Q82*AL82+R82*AM82+S82*AN82+T82*AO82+U82*AP82+V82*AQ82+W82*AR82+X82*AS82+Y82*AT82+Z82*AU82)*(1-$F$9) -> 0 | AF82: 298 | AH82: 298 | AJ82: 298 | AL82: 298 | AN82: 298 | AO82: 298 | AZ82: 355846 | BB82: 355847 | BD82: 355848 | BF82: 355849 | BH82: 355850 | BI82: 355851
B83: [490390]Юбка для девочки ДЮК769005 | C83: кулир / хлопок 100% | D83: - / полоска голубой 7+белый / - / - / - / - | E83: 298 | F83: =IF(MIN(AB83:AU83)=MAX(AB83:AU83),ROUND(MIN(AB83:AU83)*(1-$F$9),0),ROUND(MIN(AB83:AU83)*(1-$F$9),0)&"-"&ROUND(MAX(AB83:AU83)*(1-$F$9),0)) -> 262 | AA83: =(G83*AB83+H83*AC83+I83*AD83+J83*AE83+K83*AF83+L83*AG83+M83*AH83+N83*AI83+O83*AJ83+P83*AK83+Q83*AL83+R83*AM83+S83*AN83+T83*AO83+U83*AP83+V83*AQ83+W83*AR83+X83*AS83+Y83*AT83+Z83*AU83)*(1-$F$9) -> 0 | AF83: 298 | AH83: 298 | AJ83: 298 | AL83: 298 | AN83: 298 | AO83: 298 | AZ83: 355840 | BB83: 355841 | BD83: 355842 | BF83: 355843 | BH83: 355844 | BI83: 355845
B84: Коллекция "Лимонный фреш"
B85: [322765]Брюки для девочки ДББ779258н | C85: футер / хлопок 95% + лайкра 5% | D85: - / клетка темно-синий / - / - / - / - | E85: 680 | F85: =IF(MIN(AB85:AU85)=MAX(AB85:AU85),ROUND(MIN(AB85:AU85)*(1-$F$9),0),ROUND(MIN(AB85:AU85)*(1-$F$9),0)&"-"&ROUND(MAX(AB85:AU85)*(1-$F$9),0)) -> 598 | AA85: =(G85*AB85+H85*AC85+I85*AD85+J85*AE85+K85*AF85+L85*AG85+M85*AH85+N85*AI85+O85*AJ85+P85*AK85+Q85*AL85+R85*AM85+S85*AN85+T85*AO85+U85*AP85+V85*AQ85+W85*AR85+X85*AS85+Y85*AT85+Z85*AU85)*(1-$F$9) -> 0 | AJ85: 680 | AL85: 680 | AN85: 680 | AO85: 680 | AP85: 680 | AQ85: 680 | BD85: 322764 | BF85: 322766 | BH85: 322767 | BI85: 322768 | BJ85: 322769 | BK85: 322770
B86: [322702]Джемпер для девочки ДДБ772804 | C86: кулир с лайкрой / хлопок 92% + лайкра 8% | D86: белый / - / Три лимона / - / - / - | E86: 280 | F86: =IF(MIN(AB86:AU86)=MAX(AB86:AU86),ROUND(MIN(AB86:AU86)*(1-$F$9),0),ROUND(MIN(AB86:AU86)*(1-$F$9),0)&"-"&ROUND(MAX(AB86:AU86)*(1-$F$9),0)) -> 246 | AA86: =(G86*AB86+H86*AC86+I86*AD86+J86*AE86+K86*AF86+L86*AG86+M86*AH86+N86*AI86+O86*AJ86+P86*AK86+Q86*AL86+R86*AM86+S86*AN86+T86*AO86+U86*AP86+V86*AQ86+W86*AR86+X86*AS86+Y86*AT86+Z86*AU86)*(1-$F$9) -> 0 | AJ86: 280 | AL86: 280 | AN86: 280 | AO86: 280 | AP86: 280 | AQ86: 280 | BD86: 322701 | BF86: 322703 | BH86: 322704 | BI86: 322705 | BJ86: 322706 | BK86: 322707
B87: [322716]Джемпер для девочки ДДБ773001н | C87: кулир / хлопок 100% | D87: - / клетка темно-синий / Витамины / - / - / - | E87: 298 | F87: =IF(MIN(AB87:AU87)=MAX(AB87:AU87),ROUND(MIN(AB87:AU87)*(1-$F$9),0),ROUND(MIN(AB87:AU87)*(1-$F$9),0)&"-"&ROUND(MAX(AB87:AU87)*(1-$F$9),0)) -> 262 | AA87: =(G87*AB87+H87*AC87+I87*AD87+J87*AE87+K87*AF87+L87*AG87+M87*AH87+N87*AI87+O87*AJ87+P87*AK87+Q87*AL87+R87*AM87+S87*AN87+T87*AO87+U87*AP87+V87*AQ87+W87*AR87+X87*AS87+Y87*AT87+Z87*AU87)*(1-$F$9) -> 0 | AJ87: 298 | AL87: 298 | AN87: 298 | AO87: 298 | AP87: 298 | AQ87: 298 | BD87: 322715 | BF87: 322717 | BH87: 322718 | BI87: 322719 | BJ87: 322720 | BK87: 322721
B88: [322695]Джемпер для девочки ДДК771804 | C88: кулир с лайкрой / хлопок 92% + лайкра 8% | D88: белый / - / Лимоны / - / - / - | E88: 280 | F88: =IF(MIN(AB88:AU88)=MAX(AB88:AU88),ROUND(MIN(AB88:AU88)*(1-$F$9),0),ROUND(MIN(AB88:AU88)*(1-$F$9),0)&"-"&ROUND(MAX(AB88:AU88)*(1-$F$9),0)) -> 246 | AA88: =(G88*AB88+H88*AC88+I88*AD88+J88*AE88+K88*AF88+L88*AG88+M88*AH88+N88*AI88+O88*AJ88+P88*AK88+Q88*AL88+R88*AM88+S88*AN88+T88*AO88+U88*AP88+V88*AQ88+W88*AR88+X88*AS88+Y88*AT88+Z88*AU88)*(1-$F$9) -> 0 | AJ88: 280 | AL88: 280 | AN88: 280 | AO88: 280 | AP88: 280 | AQ88: 280 | BD88: 322694 | BF88: 322696 | BH88: 322697 | BI88: 322698 | BJ88: 322699 | BK88: 322700
B89: [322723]Джемпер для девочки ДДК774804 | C89: кулир с лайкрой / хлопок 92% + лайкра 8% | D89: белый / - / Большой лимон / - / - / - | E89: 598 | F89: =IF(MIN(AB89:AU89)=MAX(AB89:AU89),ROUND(MIN(AB89:AU89)*(1-$F$9),0),ROUND(MIN(AB89:AU89)*(1-$F$9),0)&"-"&ROUND(MAX(AB89:AU89)*(1-$F$9),0)) -> 526 | AA89: =(G89*AB89+H89*AC89+I89*AD89+J89*AE89+K89*AF89+L89*AG89+M89*AH89+N89*AI89+O89*AJ89+P89*AK89+Q89*AL89+R89*AM89+S89*AN89+T89*AO89+U89*AP89+V89*AQ89+W89*AR89+X89*AS89+Y89*AT89+Z89*AU89)*(1-$F$9) -> 0 | AJ89: 598 | AL89: 598 | AN89: 598 | AO89: 598 | AP89: 598 | AQ89: 598 | BD89: 322722 | BF89: 322724 | BH89: 322725 | BI89: 322726 | BJ89: 322727 | BK89: 322728
B90: [322730]Джемпер для девочки ДДК775001н | C90: кулир / хлопок 100% | D90: - / лимоны / - / - / - / - | E90: 450 | F90: =IF(MIN(AB90:AU90)=MAX(AB90:AU90),ROUND(MIN(AB90:AU90)*(1-$F$9),0),ROUND(MIN(AB90:AU90)*(1-$F$9),0)&"-"&ROUND(MAX(AB90:AU90)*(1-$F$9),0)) -> 396 | AA90: =(G90*AB90+H90*AC90+I90*AD90+J90*AE90+K90*AF90+L90*AG90+M90*AH90+N90*AI90+O90*AJ90+P90*AK90+Q90*AL90+R90*AM90+S90*AN90+T90*AO90+U90*AP90+V90*AQ90+W90*AR90+X90*AS90+Y90*AT90+Z90*AU90)*(1-$F$9) -> 0 | AJ90: 450 | AL90: 450 | AN90: 450 | AO90: 450 | AP90: 450 | AQ90: 450 | BD90: 322729 | BF90: 322731 | BH90: 322732 | BI90: 322733 | BJ90: 322734 | BK90: 322735
B91: [322751]Куртка для девочки ДДД777258 | C91: футер / хлопок 95% + лайкра 5% | D91: белый / - / Лимоны с буквами / - / - / - | E91: 798 | F91: =IF(MIN(AB91:AU91)=MAX(AB91:AU91),ROUND(MIN(AB91:AU91)*(1-$F$9),0),ROUND(MIN(AB91:AU91)*(1-$F$9),0)&"-"&ROUND(MAX(AB91:AU91)*(1-$F$9),0)) -> 702 | AA91: =(G91*AB91+H91*AC91+I91*AD91+J91*AE91+K91*AF91+L91*AG91+M91*AH91+N91*AI91+O91*AJ91+P91*AK91+Q91*AL91+R91*AM91+S91*AN91+T91*AO91+U91*AP91+V91*AQ91+W91*AR91+X91*AS91+Y91*AT91+Z91*AU91)*(1-$F$9) -> 0 | AJ91: 798 | AL91: 798 | AN91: 798 | AO91: 798 | AP91: 798 | AQ91: 798 | BD91: 322750 | BF91: 322752 | BH91: 322753 | BI91: 322754 | BJ91: 322755 | BK91: 322756
B92: [322737]Платье для девочки ДПБ176001н | C92: кулир / хлопок 100% | D92: - / лимоны / - / - / - / - | E92: 590 | F92: =IF(MIN(AB92:AU92)=MAX(AB92:AU92),ROUND(MIN(AB92:AU92)*(1-$F$9),0),ROUND(MIN(AB92:AU92)*(1-$F$9),0)&"-"&ROUND(MAX(AB92:AU92)*(1-$F$9),0)) -> 519 | AA92: =(G92*AB92+H92*AC92+I92*AD92+J92*AE92+K92*AF92+L92*AG92+M92*AH92+N92*AI92+O92*AJ92+P92*AK92+Q92*AL92+R92*AM92+S92*AN92+T92*AO92+U92*AP92+V92*AQ92+W92*AR92+X92*AS92+Y92*AT92+Z92*AU92)*(1-$F$9) -> 0 | AJ92: 590 | AL92: 590 | AN92: 590 | AO92: 590 | AP92: 590 | AQ92: 590 | BD92: 322736 | BF92: 322738 | BH92: 322739 | BI92: 322740 | BJ92: 322741 | BK92: 322742
B93: [322744]Юбка для девочки ДЮК776001н | C93: кулир / хлопок 100% | D93: - / лимоны / - / - / - / - | E93: 450 | F93: =IF(MIN(AB93:AU93)=MAX(AB93:AU93),ROUND(MIN(AB93:AU93)*(1-$F$9),0),ROUND(MIN(AB93:AU93)*(1-$F$9),0)&"-"&ROUND(MAX(AB93:AU93)*(1-$F$9),0)) -> 396 | AA93: =(G93*AB93+H93*AC93+I93*AD93+J93*AE93+K93*AF93+L93*AG93+M93*AH93+N93*AI93+O93*AJ93+P93*AK93+Q93*AL93+R93*AM93+S93*AN93+T93*AO93+U93*AP93+V93*AQ93+W93*AR93+X93*AS93+Y93*AT93+Z93*AU93)*(1-$F$9) -> 0 | AJ93: 450 | AL93: 450 | AN93: 450 | AO93: 450 | AP93: 450 | AQ93: 450 | BD93: 322743 | BF93: 322745 | BH93: 322746 | BI93: 322747 | BJ93: 322748 | BK93: 322749
B94: Коллекция "Маки"
B95: [292665]Джемпер для девочки ДДБ169804 | C95: кулир / хлопок 92% + лайкра 8% | D95: белый+красный / - / - / - / - / - | E95: 520 | F95: =IF(MIN(AB95:AU95)=MAX(AB95:AU95),ROUND(MIN(AB95:AU95)*(1-$F$9),0),ROUND(MIN(AB95:AU95)*(1-$F$9),0)&"-"&ROUND(MAX(AB95:AU95)*(1-$F$9),0)) -> 458 | AA95: =(G95*AB95+H95*AC95+I95*AD95+J95*AE95+K95*AF95+L95*AG95+M95*AH95+N95*AI95+O95*AJ95+P95*AK95+Q95*AL95+R95*AM95+S95*AN95+T95*AO95+U95*AP95+V95*AQ95+W95*AR95+X95*AS95+Y95*AT95+Z95*AU95)*(1-$F$9) -> 0 | AN95: 520 | AO95: 520 | AP95: 520 | AQ95: 520 | AR95: 520 | AS95: 520 | AT95: 520 | BH95: 292664 | BI95: 292666 | BJ95: 292667 | BK95: 292668 | BL95: 292669 | BM95: 292670 | BN95: 292671
B96: [484721]Джемпер для девочки ДДД337258 | C96: футер / хлопок 95% + лайкра 5% | D96: темно-синий / - / Мак с божьей коровкой / - / - / - | E96: 460 | F96: =IF(MIN(AB96:AU96)=MAX(AB96:AU96),ROUND(MIN(AB96:AU96)*(1-$F$9),0),ROUND(MIN(AB96:AU96)*(1-$F$9),0)&"-"&ROUND(MAX(AB96:AU96)*(1-$F$9),0)) -> 405 | AA96: =(G96*AB96+H96*AC96+I96*AD96+J96*AE96+K96*AF96+L96*AG96+M96*AH96+N96*AI96+O96*AJ96+P96*AK96+Q96*AL96+R96*AM96+S96*AN96+T96*AO96+U96*AP96+V96*AQ96+W96*AR96+X96*AS96+Y96*AT96+Z96*AU96)*(1-$F$9) -> 0 | AN96: 460 | AO96: 460 | AP96: 460 | AQ96: 460 | AR96: 460 | AS96: 460 | AT96: 460 | BH96: 334161 | BI96: 334162 | BJ96: 334163 | BK96: 334164 | BL96: 334165 | BM96: 334166 | BN96: 334167
B97: [484722]Джемпер для девочки ДДД885804 | C97: кулир / хлопок 92% + лайкра 8% | D97: белый / - / Мак с божьей коровкой / - / белый / - | E97: 345 | F97: =IF(MIN(AB97:AU97)=MAX(AB97:AU97),ROUND(MIN(AB97:AU97)*(1-$F$9),0),ROUND(MIN(AB97:AU97)*(1-$F$9),0)&"-"&ROUND(MAX(AB97:AU97)*(1-$F$9),0)) -> 304 | AA97: =(G97*AB97+H97*AC97+I97*AD97+J97*AE97+K97*AF97+L97*AG97+M97*AH97+N97*AI97+O97*AJ97+P97*AK97+Q97*AL97+R97*AM97+S97*AN97+T97*AO97+U97*AP97+V97*AQ97+W97*AR97+X97*AS97+Y97*AT97+Z97*AU97)*(1-$F$9) -> 0 | AN97: 345 | AO97: 345 | AP97: 345 | AQ97: 345 | AR97: 345 | AS97: 345 | AT97: 345 | BH97: 334168 | BI97: 334169 | BJ97: 334170 | BK97: 334171 | BL97: 334172 | BM97: 334173 | BN97: 334174
B98: [292673]Джемпер для девочки ДДК145804 | C98: кулир / хлопок 92% + лайкра 8% | D98: белый+красный / - / - / - / - / - | E98: 420 | F98: =IF(MIN(AB98:AU98)=MAX(AB98:AU98),ROUND(MIN(AB98:AU98)*(1-$F$9),0),ROUND(MIN(AB98:AU98)*(1-$F$9),0)&"-"&ROUND(MAX(AB98:AU98)*(1-$F$9),0)) -> 370 | AA98: =(G98*AB98+H98*AC98+I98*AD98+J98*AE98+K98*AF98+L98*AG98+M98*AH98+N98*AI98+O98*AJ98+P98*AK98+Q98*AL98+R98*AM98+S98*AN98+T98*AO98+U98*AP98+V98*AQ98+W98*AR98+X98*AS98+Y98*AT98+Z98*AU98)*(1-$F$9) -> 0 | AN98: 420 | AO98: 420 | AP98: 420 | AQ98: 420 | AR98: 420 | AS98: 420 | AT98: 420 | BH98: 292672 | BI98: 292674 | BJ98: 292675 | BK98: 292676 | BL98: 292677 | BM98: 292678 | BN98: 292679
B99: [292681]Джемпер для девочки ДДК146804 | C99: кулир / хлопок 92% + лайкра 8% | D99: белый / - / - / - / - / - | E99: 398 | F99: =IF(MIN(AB99:AU99)=MAX(AB99:AU99),ROUND(MIN(AB99:AU99)*(1-$F$9),0),ROUND(MIN(AB99:AU99)*(1-$F$9),0)&"-"&ROUND(MAX(AB99:AU99)*(1-$F$9),0)) -> 350 | AA99: =(G99*AB99+H99*AC99+I99*AD99+J99*AE99+K99*AF99+L99*AG99+M99*AH99+N99*AI99+O99*AJ99+P99*AK99+Q99*AL99+R99*AM99+S99*AN99+T99*AO99+U99*AP99+V99*AQ99+W99*AR99+X99*AS99+Y99*AT99+Z99*AU99)*(1-$F$9) -> 0 | AN99: 398 | AO99: 398 | AP99: 398 | AQ99: 398 | AR99: 398 | AS99: 398 | AT99: 398 | BH99: 292680 | BI99: 292682 | BJ99: 292683 | BK99: 292684 | BL99: 292685 | BM99: 292686 | BN99: 292687
B100: [488959]Платье для девочки ДПД144804 | C100: кулир с лайкрой / хлопок 92% + лайкра 8% | D100: темно-синий+белый / - / Семь маков / - / - / - | E100: 650-698 | F100: =IF(MIN(AB100:AU100)=MAX(AB100:AU100),ROUND(MIN(AB100:AU100)*(1-$F$9),0),ROUND(MIN(AB100:AU100)*(1-$F$9),0)&"-"&ROUND(MAX(AB100:AU100)*(1-$F$9),0)) -> 572-614 | AA100: =(G100*AB100+H100*AC100+I100*AD100+J100*AE100+K100*AF100+L100*AG100+M100*AH100+N100*AI100+O100*AJ100+P100*AK100+Q100*AL100+R100*AM100+S100*AN100+T100*AO100+U100*AP100+V100*AQ100+W100*AR100+X100*AS100+Y100*AT100+Z100*AU100)*(1-$F$9) -> 0 | AN100: 650 | AO100: 650 | AP100: 650 | AQ100: 650 | AR100: 650 | AS100: 698 | AT100: 698 | AU100: 698 | BH100: 349542 | BI100: 349543 | BJ100: 349544 | BK100: 349545 | BL100: 349546 | BM100: 349547 | BN100: 349548 | BO100: 349550
B101: [321106]Платье для девочки ДПД147804 | C101: кулир с лайкрой / хлопок 92% + лайкра 8% | D101: темно-синий+белый / - / Семь маков / - / - / - | E101: 650 | F101: =IF(MIN(AB101:AU101)=MAX(AB101:AU101),ROUND(MIN(AB101:AU101)*(1-$F$9),0),ROUND(MIN(AB101:AU101)*(1-$F$9),0)&"-"&ROUND(MAX(AB101:AU101)*(1-$F$9),0)) -> 572 | AA101: =(G101*AB101+H101*AC101+I101*AD101+J101*AE101+K101*AF101+L101*AG101+M101*AH101+N101*AI101+O101*AJ101+P101*AK101+Q101*AL101+R101*AM101+S101*AN101+T101*AO101+U101*AP101+V101*AQ101+W101*AR101+X101*AS101+Y101*AT101+Z101*AU101)*(1-$F$9) -> 0 | AN101: 650 | AO101: 650 | AP101: 650 | AQ101: 650 | AR101: 650 | AS101: 650 | AT101: 650 | AU101: 650 | BH101: 332221 | BI101: 321105 | BJ101: 321107 | BK101: 321108 | BL101: 321109 | BM101: 321110 | BN101: 321111 | BO101: 321113
B102: [292713]Рейтузы для девочки ДРЛ894804 | C102: кулир / хлопок 92% + лайкра 8% | D102: белый / - / - / - / - / - | E102: 295 | F102: =IF(MIN(AB102:AU102)=MAX(AB102:AU102),ROUND(MIN(AB102:AU102)*(1-$F$9),0),ROUND(MIN(AB102:AU102)*(1-$F$9),0)&"-"&ROUND(MAX(AB102:AU102)*(1-$F$9),0)) -> 260 | AA102: =(G102*AB102+H102*AC102+I102*AD102+J102*AE102+K102*AF102+L102*AG102+M102*AH102+N102*AI102+O102*AJ102+P102*AK102+Q102*AL102+R102*AM102+S102*AN102+T102*AO102+U102*AP102+V102*AQ102+W102*AR102+X102*AS102+Y102*AT102+Z102*AU102)*(1-$F$9) -> 0 | AN102: 295 | AO102: 295 | AP102: 295 | AQ102: 295 | AR102: 295 | AS102: 295 | AT102: 295 | BH102: 292712 | BI102: 292714 | BJ102: 292715 | BK102: 292716 | BL102: 292717 | BM102: 292718 | BN102: 292719
B103: [292721]Рейтузы для девочки ДРЛ894804 | C103: кулир / хлопок 92% + лайкра 8% | D103: темно-синий / - / - / - / - / - | E103: 295 | F103: =IF(MIN(AB103:AU103)=MAX(AB103:AU103),ROUND(MIN(AB103:AU103)*(1-$F$9),0),ROUND(MIN(AB103:AU103)*(1-$F$9),0)&"-"&ROUND(MAX(AB103:AU103)*(1-$F$9),0)) -> 260 | AA103: =(G103*AB103+H103*AC103+I103*AD103+J103*AE103+K103*AF103+L103*AG103+M103*AH103+N103*AI103+O103*AJ103+P103*AK103+Q103*AL103+R103*AM103+S103*AN103+T103*AO103+U103*AP103+V103*AQ103+W103*AR103+X103*AS103+Y103*AT103+Z103*AU103)*(1-$F$9) -> 0 | AN103: 295 | AO103: 295 | AP103: 295 | AQ103: 295 | AR103: 295 | AS103: 295 | AT103: 295 | BH103: 292720 | BI103: 292722 | BJ103: 292723 | BK103: 292724 | BL103: 292725 | BM103: 292726 | BN103: 292727
B104: [323703]Сарафан для девочки ДПС188804 | C104: кулир с лайкрой / хлопок 92% + лайкра 8% | D104: белый+красный / - / Мак с божьей коровкой / - / - / - | E104: 620 | F104: =IF(MIN(AB104:AU104)=MAX(AB104:AU104),ROUND(MIN(AB104:AU104)*(1-$F$9),0),ROUND(MIN(AB104:AU104)*(1-$F$9),0)&"-"&ROUND(MAX(AB104:AU104)*(1-$F$9),0)) -> 546 | AA104: =(G104*AB104+H104*AC104+I104*AD104+J104*AE104+K104*AF104+L104*AG104+M104*AH104+N104*AI104+O104*AJ104+P104*AK104+Q104*AL104+R104*AM104+S104*AN104+T104*AO104+U104*AP104+V104*AQ104+W104*AR104+X104*AS104+Y104*AT104+Z104*AU104)*(1-$F$9) -> 0 | AO104: 620 | AP104: 620 | AQ104: 620 | AR104: 620 | AS104: 620 | AT104: 620 | BI104: 323702 | BJ104: 323704 | BK104: 323705 | BL104: 323706 | BM104: 323707 | BN104: 323708
B105: [292729]Сарафан для девочки ДПС189804 | C105: кулир / хлопок 92% + лайкра 8% | D105: темно-синий / - / - / - / - / - | E105: 280 | F105: =IF(MIN(AB105:AU105)=MAX(AB105:AU105),ROUND(MIN(AB105:AU105)*(1-$F$9),0),ROUND(MIN(AB105:AU105)*(1-$F$9),0)&"-"&ROUND(MAX(AB105:AU105)*(1-$F$9),0)) -> 246 | AA105: =(G105*AB105+H105*AC105+I105*AD105+J105*AE105+K105*AF105+L105*AG105+M105*AH105+N105*AI105+O105*AJ105+P105*AK105+Q105*AL105+R105*AM105+S105*AN105+T105*AO105+U105*AP105+V105*AQ105+W105*AR105+X105*AS105+Y105*AT105+Z105*AU105)*(1-$F$9) -> 0 | AN105: 280 | AO105: 280 | AP105: 280 | AQ105: 280 | AR105: 280 | AS105: 280 | AT105: 280 | BH105: 292728 | BI105: 292730 | BJ105: 292731 | BK105: 292732 | BL105: 292733 | BM105: 292734 | BN105: 292735
B106: [292737]Сарафан для девочки ДПС195804 | C106: кулир / хлопок 92% + лайкра 8% | D106: белый / - / - / - / - / - | E106: 650 | F106: =IF(MIN(AB106:AU106)=MAX(AB106:AU106),ROUND(MIN(AB106:AU106)*(1-$F$9),0),ROUND(MIN(AB106:AU106)*(1-$F$9),0)&"-"&ROUND(MAX(AB106:AU106)*(1-$F$9),0)) -> 572 | AA106: =(G106*AB106+H106*AC106+I106*AD106+J106*AE106+K106*AF106+L106*AG106+M106*AH106+N106*AI106+O106*AJ106+P106*AK106+Q106*AL106+R106*AM106+S106*AN106+T106*AO106+U106*AP106+V106*AQ106+W106*AR106+X106*AS106+Y106*AT106+Z106*AU106)*(1-$F$9) -> 0 | AN106: 650 | AO106: 650 | AP106: 650 | AQ106: 650 | AR106: 650 | AS106: 650 | AT106: 650 | BH106: 292736 | BI106: 292738 | BJ106: 292739 | BK106: 292740 | BL106: 292741 | BM106: 292742 | BN106: 292743
B107: [292753]Юбка для девочки ДЮК191804 | C107: кулир / хлопок 92% + лайкра 8% | D107: красный / - / - / - / - / - | E107: 750 | F107: =IF(MIN(AB107:AU107)=MAX(AB107:AU107),ROUND(MIN(AB107:AU107)*(1-$F$9),0),ROUND(MIN(AB107:AU107)*(1-$F$9),0)&"-"&ROUND(MAX(AB107:AU107)*(1-$F$9),0)) -> 660 | AA107: =(G107*AB107+H107*AC107+I107*AD107+J107*AE107+K107*AF107+L107*AG107+M107*AH107+N107*AI107+O107*AJ107+P107*AK107+Q107*AL107+R107*AM107+S107*AN107+T107*AO107+U107*AP107+V107*AQ107+W107*AR107+X107*AS107+Y107*AT107+Z107*AU107)*(1-$F$9) -> 0 | AN107: 750 | AO107: 750 | AP107: 750 | AQ107: 750 | AR107: 750 | AS107: 750 | AT107: 750 | BH107: 292752 | BI107: 292754 | BJ107: 292755 | BK107: 292756 | BL107: 292757 | BM107: 292758 | BN107: 292759
B108: Коллекция "Маковая росинка"
B109: [488416]Джемпер для девочки ДДБ325001н | C109: кулир / хлопок 100% | D109: - / маки и васильки / - / - / - / - | E109: 250 | F109: =IF(MIN(AB109:AU109)=MAX(AB109:AU109),ROUND(MIN(AB109:AU109)*(1-$F$9),0),ROUND(MIN(AB109:AU109)*(1-$F$9),0)&"-"&ROUND(MAX(AB109:AU109)*(1-$F$9),0)) -> 220 | AA109: =(G109*AB109+H109*AC109+I109*AD109+J109*AE109+K109*AF109+L109*AG109+M109*AH109+N109*AI109+O109*AJ109+P109*AK109+Q109*AL109+R109*AM109+S109*AN109+T109*AO109+U109*AP109+V109*AQ109+W109*AR109+X109*AS109+Y109*AT109+Z109*AU109)*(1-$F$9) -> 0 | AJ109: 250 | AL109: 250 | AN109: 250 | AO109: 250 | AP109: 250 | AQ109: 250 | BD109: 346794 | BF109: 346795 | BH109: 346796 | BI109: 346797 | BJ109: 346798 | BK109: 346799
B110: [488417]Джемпер для девочки ДДБ780001н | C110: кулир / хлопок 100% | D110: - / маки и васильки / - / - / красный / - | E110: 290 | F110: =IF(MIN(AB110:AU110)=MAX(AB110:AU110),ROUND(MIN(AB110:AU110)*(1-$F$9),0),ROUND(MIN(AB110:AU110)*(1-$F$9),0)&"-"&ROUND(MAX(AB110:AU110)*(1-$F$9),0)) -> 255 | AA110: =(G110*AB110+H110*AC110+I110*AD110+J110*AE110+K110*AF110+L110*AG110+M110*AH110+N110*AI110+O110*AJ110+P110*AK110+Q110*AL110+R110*AM110+S110*AN110+T110*AO110+U110*AP110+V110*AQ110+W110*AR110+X110*AS110+Y110*AT110+Z110*AU110)*(1-$F$9) -> 0 | AR110: 290 | AS110: 290 | AT110: 290 | BL110: 346800 | BM110: 346801 | BN110: 346802
B111: [488446]Джемпер для девочки ДДК063001 | C111: кулир / хлопок 100% | D111: белый / - / Букет маки и васильки / - / красный / - | E111: 265 | F111: =IF(MIN(AB111:AU111)=MAX(AB111:AU111),ROUND(MIN(AB111:AU111)*(1-$F$9),0),ROUND(MIN(AB111:AU111)*(1-$F$9),0)&"-"&ROUND(MAX(AB111:AU111)*(1-$F$9),0)) -> 233 | AA111: =(G111*AB111+H111*AC111+I111*AD111+J111*AE111+K111*AF111+L111*AG111+M111*AH111+N111*AI111+O111*AJ111+P111*AK111+Q111*AL111+R111*AM111+S111*AN111+T111*AO111+U111*AP111+V111*AQ111+W111*AR111+X111*AS111+Y111*AT111+Z111*AU111)*(1-$F$9) -> 0 | AO111: 265 | AP111: 265 | AQ111: 265 | AR111: 265 | AS111: 265 | AT111: 265 | BI111: 346908 | BJ111: 346909 | BK111: 346910 | BL111: 346911 | BM111: 346912 | BN111: 346913
B112: [488447]Джемпер для девочки ДДК063001н | C112: кулир / хлопок 100% | D112: - / маки и васильки / - / - / красный / - | E112: 265 | F112: =IF(MIN(AB112:AU112)=MAX(AB112:AU112),ROUND(MIN(AB112:AU112)*(1-$F$9),0),ROUND(MIN(AB112:AU112)*(1-$F$9),0)&"-"&ROUND(MAX(AB112:AU112)*(1-$F$9),0)) -> 233 | AA112: =(G112*AB112+H112*AC112+I112*AD112+J112*AE112+K112*AF112+L112*AG112+M112*AH112+N112*AI112+O112*AJ112+P112*AK112+Q112*AL112+R112*AM112+S112*AN112+T112*AO112+U112*AP112+V112*AQ112+W112*AR112+X112*AS112+Y112*AT112+Z112*AU112)*(1-$F$9) -> 0 | AO112: 265 | AP112: 265 | AQ112: 265 | AR112: 265 | AS112: 265 | AT112: 265 | BI112: 346914 | BJ112: 346915 | BK112: 346916 | BL112: 346917 | BM112: 346918 | BN112: 346919
B113: [488422]Платье для девочки ДПК101001н | C113: кулир / хлопок 100% | D113: - / маки и васильки / - / - / красный / - | E113: 405 | F113: =IF(MIN(AB113:AU113)=MAX(AB113:AU113),ROUND(MIN(AB113:AU113)*(1-$F$9),0),ROUND(MIN(AB113:AU113)*(1-$F$9),0)&"-"&ROUND(MAX(AB113:AU113)*(1-$F$9),0)) -> 356 | AA113: =(G113*AB113+H113*AC113+I113*AD113+J113*AE113+K113*AF113+L113*AG113+M113*AH113+N113*AI113+O113*AJ113+P113*AK113+Q113*AL113+R113*AM113+S113*AN113+T113*AO113+U113*AP113+V113*AQ113+W113*AR113+X113*AS113+Y113*AT113+Z113*AU113)*(1-$F$9) -> 0 | AO113: 405 | AP113: 405 | AQ113: 405 | AR113: 405 | AS113: 405 | AT113: 405 | BI113: 346827 | BJ113: 346828 | BK113: 346829 | BL113: 346830 | BM113: 346831 | BN113: 346832
B114: [488425]Рейтузы для девочки ДРЛ894804 | C114: кулир с лайкрой / хлопок 92% + лайкра 8% | D114: красный / - / - / - / - / - | E114: 240-260 | F114: =IF(MIN(AB114:AU114)=MAX(AB114:AU114),ROUND(MIN(AB114:AU114)*(1-$F$9),0),ROUND(MIN(AB114:AU114)*(1-$F$9),0)&"-"&ROUND(MAX(AB114:AU114)*(1-$F$9),0)) -> 211-229 | AA114: =(G114*AB114+H114*AC114+I114*AD114+J114*AE114+K114*AF114+L114*AG114+M114*AH114+N114*AI114+O114*AJ114+P114*AK114+Q114*AL114+R114*AM114+S114*AN114+T114*AO114+U114*AP114+V114*AQ114+W114*AR114+X114*AS114+Y114*AT114+Z114*AU114)*(1-$F$9) -> 0 | AJ114: 240 | AL114: 240 | AN114: 240 | AO114: 240 | AP114: 240 | AQ114: 240 | AR114: 260 | AS114: 260 | AT114: 260 | BD114: 346845 | BF114: 346846 | BH114: 346847 | BI114: 346848 | BJ114: 346849 | BK114: 346850 | BL114: 346851 | BM114: 346852 | BN114: 346853
B115: [488426]Сарафан для девочки ДПС189001н | C115: кулир / хлопок 100% | D115: - / маки и васильки / - / - / - / - | E115: 340 | F115: =IF(MIN(AB115:AU115)=MAX(AB115:AU115),ROUND(MIN(AB115:AU115)*(1-$F$9),0),ROUND(MIN(AB115:AU115)*(1-$F$9),0)&"-"&ROUND(MAX(AB115:AU115)*(1-$F$9),0)) -> 299 | AA115: =(G115*AB115+H115*AC115+I115*AD115+J115*AE115+K115*AF115+L115*AG115+M115*AH115+N115*AI115+O115*AJ115+P115*AK115+Q115*AL115+R115*AM115+S115*AN115+T115*AO115+U115*AP115+V115*AQ115+W115*AR115+X115*AS115+Y115*AT115+Z115*AU115)*(1-$F$9) -> 0 | AO115: 340 | AP115: 340 | AQ115: 340 | AR115: 340 | AS115: 340 | AT115: 340 | BI115: 346854 | BJ115: 346855 | BK115: 346856 | BL115: 346857 | BM115: 346858 | BN115: 346859
B116: [488427]Юбка для девочки ДЮК175001н | C116: кулир / хлопок 100% | D116: - / маки и васильки / - / - / - / - | E116: 405 | F116: =IF(MIN(AB116:AU116)=MAX(AB116:AU116),ROUND(MIN(AB116:AU116)*(1-$F$9),0),ROUND(MIN(AB116:AU116)*(1-$F$9),0)&"-"&ROUND(MAX(AB116:AU116)*(1-$F$9),0)) -> 356 | AA116: =(G116*AB116+H116*AC116+I116*AD116+J116*AE116+K116*AF116+L116*AG116+M116*AH116+N116*AI116+O116*AJ116+P116*AK116+Q116*AL116+R116*AM116+S116*AN116+T116*AO116+U116*AP116+V116*AQ116+W116*AR116+X116*AS116+Y116*AT116+Z116*AU116)*(1-$F$9) -> 0 | AO116: 405 | AP116: 405 | AQ116: 405 | AR116: 405 | AS116: 405 | AT116: 405 | BI116: 346860 | BJ116: 346861 | BK116: 346862 | BL116: 346863 | BM116: 346864 | BN116: 346865
B117: Коллекция "Новая Алиса"
B118: [323309]Джемпер для девочки ДДБ958804 | C118: кулир с лайкрой / хлопок 92% + лайкра 8% | D118: - / малина+цветы розовый / - / - / - / - | E118: 450 | F118: =IF(MIN(AB118:AU118)=MAX(AB118:AU118),ROUND(MIN(AB118:AU118)*(1-$F$9),0),ROUND(MIN(AB118:AU118)*(1-$F$9),0)&"-"&ROUND(MAX(AB118:AU118)*(1-$F$9),0)) -> 396 | AA118: =(G118*AB118+H118*AC118+I118*AD118+J118*AE118+K118*AF118+L118*AG118+M118*AH118+N118*AI118+O118*AJ118+P118*AK118+Q118*AL118+R118*AM118+S118*AN118+T118*AO118+U118*AP118+V118*AQ118+W118*AR118+X118*AS118+Y118*AT118+Z118*AU118)*(1-$F$9) -> 0 | AJ118: 450 | AL118: 450 | AN118: 450 | AO118: 450 | AP118: 450 | AQ118: 450 | BD118: 323308 | BF118: 323310 | BH118: 323311 | BI118: 323312 | BJ118: 323313 | BK118: 323314
B119: [323302]Джемпер для девочки ДДБ958804 | C119: кулир с лайкрой / хлопок 92% + лайкра 8% | D119: - / сливки+цветы розовый / - / - / - / - | E119: 450 | F119: =IF(MIN(AB119:AU119)=MAX(AB119:AU119),ROUND(MIN(AB119:AU119)*(1-$F$9),0),ROUND(MIN(AB119:AU119)*(1-$F$9),0)&"-"&ROUND(MAX(AB119:AU119)*(1-$F$9),0)) -> 396 | AA119: =(G119*AB119+H119*AC119+I119*AD119+J119*AE119+K119*AF119+L119*AG119+M119*AH119+N119*AI119+O119*AJ119+P119*AK119+Q119*AL119+R119*AM119+S119*AN119+T119*AO119+U119*AP119+V119*AQ119+W119*AR119+X119*AS119+Y119*AT119+Z119*AU119)*(1-$F$9) -> 0 | AJ119: 450 | AL119: 450 | AN119: 450 | AO119: 450 | AP119: 450 | AQ119: 450 | BD119: 323301 | BF119: 323303 | BH119: 323304 | BI119: 323305 | BJ119: 323306 | BK119: 323307
B120: [486421]Джемпер для девочки ДДД548067 | C120: интерлок / хлопок 100% | D120: малина / - / Кролик в лесу / - / - / - | E120: 310 | F120: =IF(MIN(AB120:AU120)=MAX(AB120:AU120),ROUND(MIN(AB120:AU120)*(1-$F$9),0),ROUND(MIN(AB120:AU120)*(1-$F$9),0)&"-"&ROUND(MAX(AB120:AU120)*(1-$F$9),0)) -> 273 | AA120: =(G120*AB120+H120*AC120+I120*AD120+J120*AE120+K120*AF120+L120*AG120+M120*AH120+N120*AI120+O120*AJ120+P120*AK120+Q120*AL120+R120*AM120+S120*AN120+T120*AO120+U120*AP120+V120*AQ120+W120*AR120+X120*AS120+Y120*AT120+Z120*AU120)*(1-$F$9) -> 0 | AJ120: 310 | AL120: 310 | AN120: 310 | AO120: 310 | AP120: 310 | AQ120: 310 | BD120: 336872 | BF120: 336873 | BH120: 336874 | BI120: 336875 | BJ120: 336876 | BK120: 336877
B121: [486422]Джемпер для девочки ДДД548067 | C121: интерлок / хлопок 100% | D121: сливки / - / Алиса с бантом / - / - / - | E121: 310 | F121: =IF(MIN(AB121:AU121)=MAX(AB121:AU121),ROUND(MIN(AB121:AU121)*(1-$F$9),0),ROUND(MIN(AB121:AU121)*(1-$F$9),0)&"-"&ROUND(MAX(AB121:AU121)*(1-$F$9),0)) -> 273 | AA121: =(G121*AB121+H121*AC121+I121*AD121+J121*AE121+K121*AF121+L121*AG121+M121*AH121+N121*AI121+O121*AJ121+P121*AK121+Q121*AL121+R121*AM121+S121*AN121+T121*AO121+U121*AP121+V121*AQ121+W121*AR121+X121*AS121+Y121*AT121+Z121*AU121)*(1-$F$9) -> 0 | AJ121: 310 | AL121: 310 | AN121: 310 | AO121: 310 | AP121: 310 | AQ121: 310 | BD121: 336878 | BF121: 336879 | BH121: 336880 | BI121: 336881 | BJ121: 336882 | BK121: 336883
B122: [486423]Джемпер для девочки ДДД960720 | C122: капитония / хлопок 100% | D122: сливки / - / - / - / - / - | E122: 598 | F122: =IF(MIN(AB122:AU122)=MAX(AB122:AU122),ROUND(MIN(AB122:AU122)*(1-$F$9),0),ROUND(MIN(AB122:AU122)*(1-$F$9),0)&"-"&ROUND(MAX(AB122:AU122)*(1-$F$9),0)) -> 526 | AA122: =(G122*AB122+H122*AC122+I122*AD122+J122*AE122+K122*AF122+L122*AG122+M122*AH122+N122*AI122+O122*AJ122+P122*AK122+Q122*AL122+R122*AM122+S122*AN122+T122*AO122+U122*AP122+V122*AQ122+W122*AR122+X122*AS122+Y122*AT122+Z122*AU122)*(1-$F$9) -> 0 | AJ122: 598 | AL122: 598 | AN122: 598 | AO122: 598 | AP122: 598 | AQ122: 598 | BD122: 336884 | BF122: 336885 | BH122: 336886 | BI122: 336887 | BJ122: 336888 | BK122: 336889
B123: [323330]Джемпер для девочки ДДК981804 | C123: кулир с лайкрой / хлопок 92% + лайкра 8% | D123: малина / - / Одуванчики / - / - / - | E123: 410 | F123: =IF(MIN(AB123:AU123)=MAX(AB123:AU123),ROUND(MIN(AB123:AU123)*(1-$F$9),0),ROUND(MIN(AB123:AU123)*(1-$F$9),0)&"-"&ROUND(MAX(AB123:AU123)*(1-$F$9),0)) -> 361 | AA123: =(G123*AB123+H123*AC123+I123*AD123+J123*AE123+K123*AF123+L123*AG123+M123*AH123+N123*AI123+O123*AJ123+P123*AK123+Q123*AL123+R123*AM123+S123*AN123+T123*AO123+U123*AP123+V123*AQ123+W123*AR123+X123*AS123+Y123*AT123+Z123*AU123)*(1-$F$9) -> 0 | AJ123: 410 | AL123: 410 | AN123: 410 | AO123: 410 | AP123: 410 | AQ123: 410 | BD123: 323329 | BF123: 323331 | BH123: 323332 | BI123: 323333 | BJ123: 323334 | BK123: 323335
B124: [323323]Джемпер для девочки ДДК981804 | C124: кулир с лайкрой / хлопок 92% + лайкра 8% | D124: сливки / - / Одуванчики / - / - / - | E124: 410 | F124: =IF(MIN(AB124:AU124)=MAX(AB124:AU124),ROUND(MIN(AB124:AU124)*(1-$F$9),0),ROUND(MIN(AB124:AU124)*(1-$F$9),0)&"-"&ROUND(MAX(AB124:AU124)*(1-$F$9),0)) -> 361 | AA124: =(G124*AB124+H124*AC124+I124*AD124+J124*AE124+K124*AF124+L124*AG124+M124*AH124+N124*AI124+O124*AJ124+P124*AK124+Q124*AL124+R124*AM124+S124*AN124+T124*AO124+U124*AP124+V124*AQ124+W124*AR124+X124*AS124+Y124*AT124+Z124*AU124)*(1-$F$9) -> 0 | AJ124: 410 | AL124: 410 | AN124: 410 | AO124: 410 | AP124: 410 | AQ124: 410 | BD124: 323322 | BF124: 323324 | BH124: 323325 | BI124: 323326 | BJ124: 323327 | BK124: 323328
B125: [323344]Платье для девочки ДПК957001н | C125: кулир / хлопок 100% | D125: - / сливки+цветы розовый / Кролик в лесу / - / - / - | E125: 670 | F125: =IF(MIN(AB125:AU125)=MAX(AB125:AU125),ROUND(MIN(AB125:AU125)*(1-$F$9),0),ROUND(MIN(AB125:AU125)*(1-$F$9),0)&"-"&ROUND(MAX(AB125:AU125)*(1-$F$9),0)) -> 590 | AA125: =(G125*AB125+H125*AC125+I125*AD125+J125*AE125+K125*AF125+L125*AG125+M125*AH125+N125*AI125+O125*AJ125+P125*AK125+Q125*AL125+R125*AM125+S125*AN125+T125*AO125+U125*AP125+V125*AQ125+W125*AR125+X125*AS125+Y125*AT125+Z125*AU125)*(1-$F$9) -> 0 | AJ125: 670 | AL125: 670 | AN125: 670 | AO125: 670 | AP125: 670 | AQ125: 670 | BD125: 323343 | BF125: 323345 | BH125: 323346 | BI125: 323347 | BJ125: 323348 | BK125: 323349
B126: [323358]Рейтузы для девочки ДРЛ894804 | C126: кулир / хлопок 92% + лайкра 8% | D126: малина / - / Маленькие одуванчики / - / - / - | E126: 260 | F126: =IF(MIN(AB126:AU126)=MAX(AB126:AU126),ROUND(MIN(AB126:AU126)*(1-$F$9),0),ROUND(MIN(AB126:AU126)*(1-$F$9),0)&"-"&ROUND(MAX(AB126:AU126)*(1-$F$9),0)) -> 229 | AA126: =(G126*AB126+H126*AC126+I126*AD126+J126*AE126+K126*AF126+L126*AG126+M126*AH126+N126*AI126+O126*AJ126+P126*AK126+Q126*AL126+R126*AM126+S126*AN126+T126*AO126+U126*AP126+V126*AQ126+W126*AR126+X126*AS126+Y126*AT126+Z126*AU126)*(1-$F$9) -> 0 | AJ126: 260 | AL126: 260 | AN126: 260 | AO126: 260 | AP126: 260 | AQ126: 260 | BD126: 323357 | BF126: 323359 | BH126: 323360 | BI126: 323361 | BJ126: 323362 | BK126: 323363
B127: [486428]Юбка для девочки ДЮК556001н | C127: кулир / хлопок 100% | D127: - / цветы розовый / - / - / - / - | E127: 460 | F127: =IF(MIN(AB127:AU127)=MAX(AB127:AU127),ROUND(MIN(AB127:AU127)*(1-$F$9),0),ROUND(MIN(AB127:AU127)*(1-$F$9),0)&"-"&ROUND(MAX(AB127:AU127)*(1-$F$9),0)) -> 405 | AA127: =(G127*AB127+H127*AC127+I127*AD127+J127*AE127+K127*AF127+L127*AG127+M127*AH127+N127*AI127+O127*AJ127+P127*AK127+Q127*AL127+R127*AM127+S127*AN127+T127*AO127+U127*AP127+V127*AQ127+W127*AR127+X127*AS127+Y127*AT127+Z127*AU127)*(1-$F$9) -> 0 | AJ127: 460 | AL127: 460 | AN127: 460 | AO127: 460 | AP127: 460 | AQ127: 460 | BD127: 336909 | BF127: 336910 | BH127: 336911 | BI127: 336912 | BJ127: 336913 | BK127: 336914
B128: [323365]Юбка для девочки ДЮК965001н | C128: кулир / хлопок 100% | D128: - / цветы розовый / - / - / - / - | E128: 450 | F128: =IF(MIN(AB128:AU128)=MAX(AB128:AU128),ROUND(MIN(AB128:AU128)*(1-$F$9),0),ROUND(MIN(AB128:AU128)*(1-$F$9),0)&"-"&ROUND(MAX(AB128:AU128)*(1-$F$9),0)) -> 396 | AA128: =(G128*AB128+H128*AC128+I128*AD128+J128*AE128+K128*AF128+L128*AG128+M128*AH128+N128*AI128+O128*AJ128+P128*AK128+Q128*AL128+R128*AM128+S128*AN128+T128*AO128+U128*AP128+V128*AQ128+W128*AR128+X128*AS128+Y128*AT128+Z128*AU128)*(1-$F$9) -> 0 | AJ128: 450 | AL128: 450 | AN128: 450 | AO128: 450 | AP128: 450 | AQ128: 450 | BD128: 323364 | BF128: 323366 | BH128: 323367 | BI128: 323368 | BJ128: 323369 | BK128: 323370
B129: Коллекция "Песочница"
B130: [315280]Полукомбинезон для девочки ДЗК978024 | C130: ластик / хлопок 100% | D130: светлая бирюза / - / Панда с бантиком / - / светлая бирюза / - | E130: 280 | F130: =IF(MIN(AB130:AU130)=MAX(AB130:AU130),ROUND(MIN(AB130:AU130)*(1-$F$9),0),ROUND(MIN(AB130:AU130)*(1-$F$9),0)&"-"&ROUND(MAX(AB130:AU130)*(1-$F$9),0)) -> 246 | AA130: =(G130*AB130+H130*AC130+I130*AD130+J130*AE130+K130*AF130+L130*AG130+M130*AH130+N130*AI130+O130*AJ130+P130*AK130+Q130*AL130+R130*AM130+S130*AN130+T130*AO130+U130*AP130+V130*AQ130+W130*AR130+X130*AS130+Y130*AT130+Z130*AU130)*(1-$F$9) -> 0 | AE130: 280 | AG130: 280 | AI130: 280 | AK130: 280 | AY130: 315279 | BA130: 315281 | BC130: 315282 | BE130: 315283
B131: [321364]Полукомбинезон ясельн. ЮЗБ979024 | C131: ластик / хлопок 100% | D131: светлая бирюза / - / Панда с бантиком / - / - / - | E131: 250 | F131: =IF(MIN(AB131:AU131)=MAX(AB131:AU131),ROUND(MIN(AB131:AU131)*(1-$F$9),0),ROUND(MIN(AB131:AU131)*(1-$F$9),0)&"-"&ROUND(MAX(AB131:AU131)*(1-$F$9),0)) -> 220 | AA131: =(G131*AB131+H131*AC131+I131*AD131+J131*AE131+K131*AF131+L131*AG131+M131*AH131+N131*AI131+O131*AJ131+P131*AK131+Q131*AL131+R131*AM131+S131*AN131+T131*AO131+U131*AP131+V131*AQ131+W131*AR131+X131*AS131+Y131*AT131+Z131*AU131)*(1-$F$9) -> 0 | AE131: 250 | AG131: 250 | AI131: 250 | AK131: 250 | AY131: 321363 | BA131: 321366 | BC131: 321368 | BE131: 321370
B132: [315375]Полукомбинезон ясельн. ЮЗК977024 | C132: ластик / хлопок 100% | D132: светлая бирюза / - / Панда с бантиком / - / светлая бирюза / - | E132: 275 | F132: =IF(MIN(AB132:AU132)=MAX(AB132:AU132),ROUND(MIN(AB132:AU132)*(1-$F$9),0),ROUND(MIN(AB132:AU132)*(1-$F$9),0)&"-"&ROUND(MAX(AB132:AU132)*(1-$F$9),0)) -> 242 | AA132: =(G132*AB132+H132*AC132+I132*AD132+J132*AE132+K132*AF132+L132*AG132+M132*AH132+N132*AI132+O132*AJ132+P132*AK132+Q132*AL132+R132*AM132+S132*AN132+T132*AO132+U132*AP132+V132*AQ132+W132*AR132+X132*AS132+Y132*AT132+Z132*AU132)*(1-$F$9) -> 0 | AE132: 275 | AG132: 275 | AI132: 275 | AK132: 275 | AY132: 315374 | BA132: 315376 | BC132: 315377 | BE132: 315378
B133: Коллекция "Принцесса"
B134: [490409]Бриджи для девочки ДБР059804 | C134: кулир с лайкрой / хлопок 92% + лайкра 8% | D134: фуксия / - / - / - / - / - | E134: 190 | F134: =IF(MIN(AB134:AU134)=MAX(AB134:AU134),ROUND(MIN(AB134:AU134)*(1-$F$9),0),ROUND(MIN(AB134:AU134)*(1-$F$9),0)&"-"&ROUND(MAX(AB134:AU134)*(1-$F$9),0)) -> 167 | AA134: =(G134*AB134+H134*AC134+I134*AD134+J134*AE134+K134*AF134+L134*AG134+M134*AH134+N134*AI134+O134*AJ134+P134*AK134+Q134*AL134+R134*AM134+S134*AN134+T134*AO134+U134*AP134+V134*AQ134+W134*AR134+X134*AS134+Y134*AT134+Z134*AU134)*(1-$F$9) -> 0 | AF134: 190 | AH134: 190 | AJ134: 190 | AL134: 190 | AN134: 190 | AO134: 190 | AZ134: 355949 | BB134: 355950 | BD134: 355951 | BF134: 355952 | BH134: 355953 | BI134: 355954
B135: [490410]Бриджи для девочки ДБР059804н | C135: кулир с лайкрой / хлопок 92% + лайкра 8% | D135: - / сердечки на фуксии / - / - / - / - | E135: 220 | F135: =IF(MIN(AB135:AU135)=MAX(AB135:AU135),ROUND(MIN(AB135:AU135)*(1-$F$9),0),ROUND(MIN(AB135:AU135)*(1-$F$9),0)&"-"&ROUND(MAX(AB135:AU135)*(1-$F$9),0)) -> 194 | AA135: =(G135*AB135+H135*AC135+I135*AD135+J135*AE135+K135*AF135+L135*AG135+M135*AH135+N135*AI135+O135*AJ135+P135*AK135+Q135*AL135+R135*AM135+S135*AN135+T135*AO135+U135*AP135+V135*AQ135+W135*AR135+X135*AS135+Y135*AT135+Z135*AU135)*(1-$F$9) -> 0 | AF135: 220 | AH135: 220 | AJ135: 220 | AL135: 220 | AN135: 220 | AO135: 220 | AZ135: 355955 | BB135: 355956 | BD135: 355957 | BF135: 355958 | BH135: 355959 | BI135: 355960
B136: [490411]Головной убор для девочки ДГК062001н | C136: кулир / хлопок 100% | D136: - / сердечки на фуксии / - / - / - / - | E136: 140 | F136: =IF(MIN(AB136:AU136)=MAX(AB136:AU136),ROUND(MIN(AB136:AU136)*(1-$F$9),0),ROUND(MIN(AB136:AU136)*(1-$F$9),0)&"-"&ROUND(MAX(AB136:AU136)*(1-$F$9),0)) -> 123 | AA136: =(G136*AB136+H136*AC136+I136*AD136+J136*AE136+K136*AF136+L136*AG136+M136*AH136+N136*AI136+O136*AJ136+P136*AK136+Q136*AL136+R136*AM136+S136*AN136+T136*AO136+U136*AP136+V136*AQ136+W136*AR136+X136*AS136+Y136*AT136+Z136*AU136)*(1-$F$9) -> 0 | AB136: 140 | AC136: 140 | AD136: 140 | AV136: 355961 | AW136: 355962 | AX136: 355963
B137: [490413]Джемпер для девочки ДДБ060001 | C137: кулир / хлопок 100% | D137: белый / - / Принцесса в сердце / - / - / - | E137: 420 | F137: =IF(MIN(AB137:AU137)=MAX(AB137:AU137),ROUND(MIN(AB137:AU137)*(1-$F$9),0),ROUND(MIN(AB137:AU137)*(1-$F$9),0)&"-"&ROUND(MAX(AB137:AU137)*(1-$F$9),0)) -> 370 | AA137: =(G137*AB137+H137*AC137+I137*AD137+J137*AE137+K137*AF137+L137*AG137+M137*AH137+N137*AI137+O137*AJ137+P137*AK137+Q137*AL137+R137*AM137+S137*AN137+T137*AO137+U137*AP137+V137*AQ137+W137*AR137+X137*AS137+Y137*AT137+Z137*AU137)*(1-$F$9) -> 0 | AF137: 420 | AH137: 420 | AJ137: 420 | AL137: 420 | AN137: 420 | AO137: 420 | AZ137: 355970 | BB137: 355971 | BD137: 355972 | BF137: 355973 | BH137: 355974 | BI137: 355975
B138: [490412]Джемпер для девочки ДДБ060001н | C138: кулир / хлопок 100% | D138: - / сердечки на фуксии / Золотые буквы / - / - / - | E138: 450 | F138: =IF(MIN(AB138:AU138)=MAX(AB138:AU138),ROUND(MIN(AB138:AU138)*(1-$F$9),0),ROUND(MIN(AB138:AU138)*(1-$F$9),0)&"-"&ROUND(MAX(AB138:AU138)*(1-$F$9),0)) -> 396 | AA138: =(G138*AB138+H138*AC138+I138*AD138+J138*AE138+K138*AF138+L138*AG138+M138*AH138+N138*AI138+O138*AJ138+P138*AK138+Q138*AL138+R138*AM138+S138*AN138+T138*AO138+U138*AP138+V138*AQ138+W138*AR138+X138*AS138+Y138*AT138+Z138*AU138)*(1-$F$9) -> 0 | AF138: 450 | AH138: 450 | AJ138: 450 | AL138: 450 | AN138: 450 | AO138: 450 | AZ138: 355964 | BB138: 355965 | BD138: 355966 | BF138: 355967 | BH138: 355968 | BI138: 355969
B139: [490415]Джемпер для девочки ДДК065001 | C139: кулир / хлопок 100% | D139: белый / - / Рыжая девочка / - / - / - | E139: 320 | F139: =IF(MIN(AB139:AU139)=MAX(AB139:AU139),ROUND(MIN(AB139:AU139)*(1-$F$9),0),ROUND(MIN(AB139:AU139)*(1-$F$9),0)&"-"&ROUND(MAX(AB139:AU139)*(1-$F$9),0)) -> 282 | AA139: =(G139*AB139+H139*AC139+I139*AD139+J139*AE139+K139*AF139+L139*AG139+M139*AH139+N139*AI139+O139*AJ139+P139*AK139+Q139*AL139+R139*AM139+S139*AN139+T139*AO139+U139*AP139+V139*AQ139+W139*AR139+X139*AS139+Y139*AT139+Z139*AU139)*(1-$F$9) -> 0 | AF139: 320 | AH139: 320 | AJ139: 320 | AL139: 320 | AN139: 320 | AO139: 320 | AZ139: 355982 | BB139: 355983 | BD139: 355984 | BF139: 355985 | BH139: 355986 | BI139: 355987
B140: [490414]Джемпер для девочки ДДК065001н | C140: кулир / хлопок 100% | D140: - / сердечки на фуксии / Золотое сердце / - / - / - | E140: 320 | F140: =IF(MIN(AB140:AU140)=MAX(AB140:AU140),ROUND(MIN(AB140:AU140)*(1-$F$9),0),ROUND(MIN(AB140:AU140)*(1-$F$9),0)&"-"&ROUND(MAX(AB140:AU140)*(1-$F$9),0)) -> 282 | AA140: =(G140*AB140+H140*AC140+I140*AD140+J140*AE140+K140*AF140+L140*AG140+M140*AH140+N140*AI140+O140*AJ140+P140*AK140+Q140*AL140+R140*AM140+S140*AN140+T140*AO140+U140*AP140+V140*AQ140+W140*AR140+X140*AS140+Y140*AT140+Z140*AU140)*(1-$F$9) -> 0 | AF140: 320 | AH140: 320 | AJ140: 320 | AL140: 320 | AN140: 320 | AO140: 320 | AZ140: 355976 | BB140: 355977 | BD140: 355978 | BF140: 355979 | BH140: 355980 | BI140: 355981
B141: [490416]Джемпер для девочки ДДК164001 | C141: кулир / хлопок 100% | D141: светло-розовый / - / Принцесса сидит / - / - / - | E141: 198 | F141: =IF(MIN(AB141:AU141)=MAX(AB141:AU141),ROUND(MIN(AB141:AU141)*(1-$F$9),0),ROUND(MIN(AB141:AU141)*(1-$F$9),0)&"-"&ROUND(MAX(AB141:AU141)*(1-$F$9),0)) -> 174 | AA141: =(G141*AB141+H141*AC141+I141*AD141+J141*AE141+K141*AF141+L141*AG141+M141*AH141+N141*AI141+O141*AJ141+P141*AK141+Q141*AL141+R141*AM141+S141*AN141+T141*AO141+U141*AP141+V141*AQ141+W141*AR141+X141*AS141+Y141*AT141+Z141*AU141)*(1-$F$9) -> 0 | AF141: 198 | AH141: 198 | AJ141: 198 | AL141: 198 | AN141: 198 | AO141: 198 | AZ141: 355988 | BB141: 355989 | BD141: 355990 | BF141: 355991 | BH141: 355992 | BI141: 355993
B142: [490770]Джемпер для девочки ДДК164001 | C142: кулир / хлопок 100% | D142: ярко-розовый / - / Принцесса сидит / - / - / - | E142: 198 | F142: =IF(MIN(AB142:AU142)=MAX(AB142:AU142),ROUND(MIN(AB142:AU142)*(1-$F$9),0),ROUND(MIN(AB142:AU142)*(1-$F$9),0)&"-"&ROUND(MAX(AB142:AU142)*(1-$F$9),0)) -> 174 | AA142: =(G142*AB142+H142*AC142+I142*AD142+J142*AE142+K142*AF142+L142*AG142+M142*AH142+N142*AI142+O142*AJ142+P142*AK142+Q142*AL142+R142*AM142+S142*AN142+T142*AO142+U142*AP142+V142*AQ142+W142*AR142+X142*AS142+Y142*AT142+Z142*AU142)*(1-$F$9) -> 0 | AF142: 198 | AH142: 198 | AJ142: 198 | AL142: 198 | AN142: 198 | AO142: 198 | AZ142: 358095 | BB142: 358096 | BD142: 358097 | BF142: 358098 | BH142: 358099 | BI142: 358100
B143: [493290]Комплект верхний для девочки ДКР054804н | C143: кулир / хлопок 100%, хлопок 92% + лайкра 8% | D143: - / белый+сердечки на фуксии / Принцесса в сердце / - / - / - | E143: 640 | F143: =IF(MIN(AB143:AU143)=MAX(AB143:AU143),ROUND(MIN(AB143:AU143)*(1-$F$9),0),ROUND(MIN(AB143:AU143)*(1-$F$9),0)&"-"&ROUND(MAX(AB143:AU143)*(1-$F$9),0)) -> 563 | AA143: =(G143*AB143+H143*AC143+I143*AD143+J143*AE143+K143*AF143+L143*AG143+M143*AH143+N143*AI143+O143*AJ143+P143*AK143+Q143*AL143+R143*AM143+S143*AN143+T143*AO143+U143*AP143+V143*AQ143+W143*AR143+X143*AS143+Y143*AT143+Z143*AU143)*(1-$F$9) -> 0 | AF143: 640 | AH143: 640 | AJ143: 640 | AL143: 640 | AN143: 640 | AO143: 640 | AZ143: 370240 | BB143: 370241 | BD143: 370242 | BF143: 370243 | BH143: 370244 | BI143: 370245
B144: [493289]Комплект верхний для девочки ДКЮ052001н | C144: кулир / хлопок 100% | D144: - / светло-розовый+сердечки на фуксии / Принцесса сидит / - / - / - | E144: 548 | F144: =IF(MIN(AB144:AU144)=MAX(AB144:AU144),ROUND(MIN(AB144:AU144)*(1-$F$9),0),ROUND(MIN(AB144:AU144)*(1-$F$9),0)&"-"&ROUND(MAX(AB144:AU144)*(1-$F$9),0)) -> 482 | AA144: =(G144*AB144+H144*AC144+I144*AD144+J144*AE144+K144*AF144+L144*AG144+M144*AH144+N144*AI144+O144*AJ144+P144*AK144+Q144*AL144+R144*AM144+S144*AN144+T144*AO144+U144*AP144+V144*AQ144+W144*AR144+X144*AS144+Y144*AT144+Z144*AU144)*(1-$F$9) -> 0 | AF144: 548 | AH144: 548 | AJ144: 548 | AL144: 548 | AN144: 548 | AO144: 548 | AZ144: 370234 | BB144: 370235 | BD144: 370236 | BF144: 370237 | BH144: 370238 | BI144: 370239
B145: [490418]Платье для девочки ДПК067001н | C145: кулир / хлопок 100% | D145: - / белый+сердечки на фуксии / Венок из роз / - / - / - | E145: 550 | F145: =IF(MIN(AB145:AU145)=MAX(AB145:AU145),ROUND(MIN(AB145:AU145)*(1-$F$9),0),ROUND(MIN(AB145:AU145)*(1-$F$9),0)&"-"&ROUND(MAX(AB145:AU145)*(1-$F$9),0)) -> 484 | AA145: =(G145*AB145+H145*AC145+I145*AD145+J145*AE145+K145*AF145+L145*AG145+M145*AH145+N145*AI145+O145*AJ145+P145*AK145+Q145*AL145+R145*AM145+S145*AN145+T145*AO145+U145*AP145+V145*AQ145+W145*AR145+X145*AS145+Y145*AT145+Z145*AU145)*(1-$F$9) -> 0 | AF145: 550 | AH145: 550 | AJ145: 550 | AL145: 550 | AN145: 550 | AO145: 550 | AZ145: 356000 | BB145: 356001 | BD145: 356002 | BF145: 356003 | BH145: 356004 | BI145: 356005
B146: [490419]Сарафан для девочки ДПС069001н | C146: кулир / хлопок 100% | D146: - / сердечки на фуксии / Золотое сердце / - / - / - | E146: 320 | F146: =IF(MIN(AB146:AU146)=MAX(AB146:AU146),ROUND(MIN(AB146:AU146)*(1-$F$9),0),ROUND(MIN(AB146:AU146)*(1-$F$9),0)&"-"&ROUND(MAX(AB146:AU146)*(1-$F$9),0)) -> 282 | AA146: =(G146*AB146+H146*AC146+I146*AD146+J146*AE146+K146*AF146+L146*AG146+M146*AH146+N146*AI146+O146*AJ146+P146*AK146+Q146*AL146+R146*AM146+S146*AN146+T146*AO146+U146*AP146+V146*AQ146+W146*AR146+X146*AS146+Y146*AT146+Z146*AU146)*(1-$F$9) -> 0 | AF146: 320 | AH146: 320 | AJ146: 320 | AL146: 320 | AN146: 320 | AO146: 320 | AZ146: 356006 | BB146: 356007 | BD146: 356008 | BF146: 356009 | BH146: 356010 | BI146: 356011
B147: [490417]Шорты для девочки ДШК066001н | C147: кулир / хлопок 100% | D147: - / сердечки на фуксии / - / - / - / - | E147: 310 | F147: =IF(MIN(AB147:AU147)=MAX(AB147:AU147),ROUND(MIN(AB147:AU147)*(1-$F$9),0),ROUND(MIN(AB147:AU147)*(1-$F$9),0)&"-"&ROUND(MAX(AB147:AU147)*(1-$F$9),0)) -> 273 | AA147: =(G147*AB147+H147*AC147+I147*AD147+J147*AE147+K147*AF147+L147*AG147+M147*AH147+N147*AI147+O147*AJ147+P147*AK147+Q147*AL147+R147*AM147+S147*AN147+T147*AO147+U147*AP147+V147*AQ147+W147*AR147+X147*AS147+Y147*AT147+Z147*AU147)*(1-$F$9) -> 0 | AF147: 310 | AH147: 310 | AJ147: 310 | AL147: 310 | AN147: 310 | AO147: 310 | AZ147: 355994 | BB147: 355995 | BD147: 355996 | BF147: 355997 | BH147: 355998 | BI147: 355999
B148: [490420]Юбка для девочки ДЮК071001н | C148: кулир / хлопок 100% | D148: - / сердечки на фуксии / - / - / - / - | E148: 350 | F148: =IF(MIN(AB148:AU148)=MAX(AB148:AU148),ROUND(MIN(AB148:AU148)*(1-$F$9),0),ROUND(MIN(AB148:AU148)*(1-$F$9),0)&"-"&ROUND(MAX(AB148:AU148)*(1-$F$9),0)) -> 308 | AA148: =(G148*AB148+H148*AC148+I148*AD148+J148*AE148+K148*AF148+L148*AG148+M148*AH148+N148*AI148+O148*AJ148+P148*AK148+Q148*AL148+R148*AM148+S148*AN148+T148*AO148+U148*AP148+V148*AQ148+W148*AR148+X148*AS148+Y148*AT148+Z148*AU148)*(1-$F$9) -> 0 | AF148: 350 | AH148: 350 | AJ148: 350 | AL148: 350 | AN148: 350 | AO148: 350 | AZ148: 356012 | BB148: 356013 | BD148: 356014 | BF148: 356015 | BH148: 356016 | BI148: 356017
B149: Коллекция "Розовый сад"
B150: [490425]Джемпер для девочки ДДБ094804н | C150: кулир с лайкрой / хлопок 92% + лайкра 8% | D150: - / розовые розы на белом / - / - / - / - | E150: 330 | F150: =IF(MIN(AB150:AU150)=MAX(AB150:AU150),ROUND(MIN(AB150:AU150)*(1-$F$9),0),ROUND(MIN(AB150:AU150)*(1-$F$9),0)&"-"&ROUND(MAX(AB150:AU150)*(1-$F$9),0)) -> 290 | AA150: =(G150*AB150+H150*AC150+I150*AD150+J150*AE150+K150*AF150+L150*AG150+M150*AH150+N150*AI150+O150*AJ150+P150*AK150+Q150*AL150+R150*AM150+S150*AN150+T150*AO150+U150*AP150+V150*AQ150+W150*AR150+X150*AS150+Y150*AT150+Z150*AU150)*(1-$F$9) -> 0 | AO150: 330 | AP150: 330 | AQ150: 330 | AR150: 330 | AS150: 330 | AT150: 330 | BI150: 356042 | BJ150: 356043 | BK150: 356044 | BL150: 356045 | BM150: 356046 | BN150: 356047
B151: [490421]Джемпер для девочки ДДБ773804н | C151: кулир с лайкрой / хлопок 92% + лайкра 8% | D151: - / белый+розовые розы на белом / Объятия балерины / - / - / - | E151: 330 | F151: =IF(MIN(AB151:AU151)=MAX(AB151:AU151),ROUND(MIN(AB151:AU151)*(1-$F$9),0),ROUND(MIN(AB151:AU151)*(1-$F$9),0)&"-"&ROUND(MAX(AB151:AU151)*(1-$F$9),0)) -> 290 | AA151: =(G151*AB151+H151*AC151+I151*AD151+J151*AE151+K151*AF151+L151*AG151+M151*AH151+N151*AI151+O151*AJ151+P151*AK151+Q151*AL151+R151*AM151+S151*AN151+T151*AO151+U151*AP151+V151*AQ151+W151*AR151+X151*AS151+Y151*AT151+Z151*AU151)*(1-$F$9) -> 0 | AO151: 330 | AP151: 330 | AQ151: 330 | AR151: 330 | AS151: 330 | AT151: 330 | BI151: 356018 | BJ151: 356019 | BK151: 356020 | BL151: 356021 | BM151: 356022 | BN151: 356023
B152: [490423]Джемпер для девочки ДДК063804 | C152: кулир с лайкрой / хлопок 92% + лайкра 8% | D152: белый / - / Балерина в полоборота / - / - / - | E152: 290 | F152: =IF(MIN(AB152:AU152)=MAX(AB152:AU152),ROUND(MIN(AB152:AU152)*(1-$F$9),0),ROUND(MIN(AB152:AU152)*(1-$F$9),0)&"-"&ROUND(MAX(AB152:AU152)*(1-$F$9),0)) -> 255 | AA152: =(G152*AB152+H152*AC152+I152*AD152+J152*AE152+K152*AF152+L152*AG152+M152*AH152+N152*AI152+O152*AJ152+P152*AK152+Q152*AL152+R152*AM152+S152*AN152+T152*AO152+U152*AP152+V152*AQ152+W152*AR152+X152*AS152+Y152*AT152+Z152*AU152)*(1-$F$9) -> 0 | AO152: 290 | AP152: 290 | AQ152: 290 | AR152: 290 | AS152: 290 | AT152: 290 | BI152: 356030 | BJ152: 356031 | BK152: 356032 | BL152: 356033 | BM152: 356034 | BN152: 356035
B153: [490422]Джемпер для девочки ДДК063804н | C153: кулир с лайкрой / хлопок 92% + лайкра 8% | D153: - / розовые розы на белом / - / - / - / - | E153: 290 | F153: =IF(MIN(AB153:AU153)=MAX(AB153:AU153),ROUND(MIN(AB153:AU153)*(1-$F$9),0),ROUND(MIN(AB153:AU153)*(1-$F$9),0)&"-"&ROUND(MAX(AB153:AU153)*(1-$F$9),0)) -> 255 | AA153: =(G153*AB153+H153*AC153+I153*AD153+J153*AE153+K153*AF153+L153*AG153+M153*AH153+N153*AI153+O153*AJ153+P153*AK153+Q153*AL153+R153*AM153+S153*AN153+T153*AO153+U153*AP153+V153*AQ153+W153*AR153+X153*AS153+Y153*AT153+Z153*AU153)*(1-$F$9) -> 0 | AO153: 290 | AP153: 290 | AQ153: 290 | AR153: 290 | AS153: 290 | AT153: 290 | BI153: 356024 | BJ153: 356025 | BK153: 356026 | BL153: 356027 | BM153: 356028 | BN153: 356029
B154: [493279]Комплект верхний для девочки ДКР040804н | C154: кулир с лайкрой / хлопок 92% + лайкра 8% | D154: - / розовые розы на белом+ярко-розовый / - / - / - / - | E154: 560 | F154: =IF(MIN(AB154:AU154)=MAX(AB154:AU154),ROUND(MIN(AB154:AU154)*(1-$F$9),0),ROUND(MIN(AB154:AU154)*(1-$F$9),0)&"-"&ROUND(MAX(AB154:AU154)*(1-$F$9),0)) -> 493 | AA154: =(G154*AB154+H154*AC154+I154*AD154+J154*AE154+K154*AF154+L154*AG154+M154*AH154+N154*AI154+O154*AJ154+P154*AK154+Q154*AL154+R154*AM154+S154*AN154+T154*AO154+U154*AP154+V154*AQ154+W154*AR154+X154*AS154+Y154*AT154+Z154*AU154)*(1-$F$9) -> 0 | AO154: 560 | AP154: 560 | AQ154: 560 | AR154: 560 | AS154: 560 | AT154: 560 | BI154: 370174 | BJ154: 370175 | BK154: 370176 | BL154: 370177 | BM154: 370178 | BN154: 370179
B155: [493280]Комплект верхний для девочки ДКЮ041804н | C155: кулир с лайкрой / хлопок 92% + лайкра 8% | D155: - / белый+розовые розы на белом / Балерина в полоборота / - / - / - | E155: 765 | F155: =IF(MIN(AB155:AU155)=MAX(AB155:AU155),ROUND(MIN(AB155:AU155)*(1-$F$9),0),ROUND(MIN(AB155:AU155)*(1-$F$9),0)&"-"&ROUND(MAX(AB155:AU155)*(1-$F$9),0)) -> 673 | AA155: =(G155*AB155+H155*AC155+I155*AD155+J155*AE155+K155*AF155+L155*AG155+M155*AH155+N155*AI155+O155*AJ155+P155*AK155+Q155*AL155+R155*AM155+S155*AN155+T155*AO155+U155*AP155+V155*AQ155+W155*AR155+X155*AS155+Y155*AT155+Z155*AU155)*(1-$F$9) -> 0 | AO155: 765 | AP155: 765 | AQ155: 765 | AR155: 765 | AS155: 765 | AT155: 765 | BI155: 370180 | BJ155: 370181 | BK155: 370182 | BL155: 370183 | BM155: 370184 | BN155: 370185
B156: [490429]Платье для девочки ДПБ176804н | C156: кулир с лайкрой / хлопок 92% + лайкра 8% | D156: - / ярко-розовый+розовые розы на белом / - / - / - / - | E156: 610 | F156: =IF(MIN(AB156:AU156)=MAX(AB156:AU156),ROUND(MIN(AB156:AU156)*(1-$F$9),0),ROUND(MIN(AB156:AU156)*(1-$F$9),0)&"-"&ROUND(MAX(AB156:AU156)*(1-$F$9),0)) -> 537 | AA156: =(G156*AB156+H156*AC156+I156*AD156+J156*AE156+K156*AF156+L156*AG156+M156*AH156+N156*AI156+O156*AJ156+P156*AK156+Q156*AL156+R156*AM156+S156*AN156+T156*AO156+U156*AP156+V156*AQ156+W156*AR156+X156*AS156+Y156*AT156+Z156*AU156)*(1-$F$9) -> 0 | AO156: 610 | AP156: 610 | AQ156: 610 | AR156: 610 | AS156: 610 | AT156: 610 | BI156: 356066 | BJ156: 356067 | BK156: 356068 | BL156: 356069 | BM156: 356070 | BN156: 356071
B157: [490424]Платье для девочки ДПК111804н | C157: кулир с лайкрой / хлопок 92% + лайкра 8% | D157: - / белый+розовые розы на белом / Фламенко / - / - / - | E157: 445 | F157: =IF(MIN(AB157:AU157)=MAX(AB157:AU157),ROUND(MIN(AB157:AU157)*(1-$F$9),0),ROUND(MIN(AB157:AU157)*(1-$F$9),0)&"-"&ROUND(MAX(AB157:AU157)*(1-$F$9),0)) -> 392 | AA157: =(G157*AB157+H157*AC157+I157*AD157+J157*AE157+K157*AF157+L157*AG157+M157*AH157+N157*AI157+O157*AJ157+P157*AK157+Q157*AL157+R157*AM157+S157*AN157+T157*AO157+U157*AP157+V157*AQ157+W157*AR157+X157*AS157+Y157*AT157+Z157*AU157)*(1-$F$9) -> 0 | AO157: 445 | AP157: 445 | AQ157: 445 | AR157: 445 | AS157: 445 | AT157: 445 | BI157: 356036 | BJ157: 356037 | BK157: 356038 | BL157: 356039 | BM157: 356040 | BN157: 356041
B158: [490431]Рейтузы для девочки ДРЛ894804 | C158: кулир с лайкрой / хлопок 92% + лайкра 8% | D158: ярко-розовый / - / - / - / - / - | E158: 230 | F158: =IF(MIN(AB158:AU158)=MAX(AB158:AU158),ROUND(MIN(AB158:AU158)*(1-$F$9),0),ROUND(MIN(AB158:AU158)*(1-$F$9),0)&"-"&ROUND(MAX(AB158:AU158)*(1-$F$9),0)) -> 202 | AA158: =(G158*AB158+H158*AC158+I158*AD158+J158*AE158+K158*AF158+L158*AG158+M158*AH158+N158*AI158+O158*AJ158+P158*AK158+Q158*AL158+R158*AM158+S158*AN158+T158*AO158+U158*AP158+V158*AQ158+W158*AR158+X158*AS158+Y158*AT158+Z158*AU158)*(1-$F$9) -> 0 | AO158: 230 | AP158: 230 | AQ158: 230 | AR158: 230 | AS158: 230 | AT158: 230 | BI158: 356078 | BJ158: 356079 | BK158: 356080 | BL158: 356081 | BM158: 356082 | BN158: 356083
B159: [490430]Рейтузы для девочки ДРЛ894804н | C159: кулир с лайкрой / хлопок 92% + лайкра 8% | D159: - / розовые розы на белом / - / - / - / - | E159: 280 | F159: =IF(MIN(AB159:AU159)=MAX(AB159:AU159),ROUND(MIN(AB159:AU159)*(1-$F$9),0),ROUND(MIN(AB159:AU159)*(1-$F$9),0)&"-"&ROUND(MAX(AB159:AU159)*(1-$F$9),0)) -> 246 | AA159: =(G159*AB159+H159*AC159+I159*AD159+J159*AE159+K159*AF159+L159*AG159+M159*AH159+N159*AI159+O159*AJ159+P159*AK159+Q159*AL159+R159*AM159+S159*AN159+T159*AO159+U159*AP159+V159*AQ159+W159*AR159+X159*AS159+Y159*AT159+Z159*AU159)*(1-$F$9) -> 0 | AO159: 280 | AP159: 280 | AQ159: 280 | AR159: 280 | AS159: 280 | AT159: 280 | BI159: 356072 | BJ159: 356073 | BK159: 356074 | BL159: 356075 | BM159: 356076 | BN159: 356077
B160: [490428]Шорты для девочки ДШК778258 | C160: футер / хлопок 95% + лайкра 5% | D160: ярко-розовый / - / - / - / - / - | E160: 340 | F160: =IF(MIN(AB160:AU160)=MAX(AB160:AU160),ROUND(MIN(AB160:AU160)*(1-$F$9),0),ROUND(MIN(AB160:AU160)*(1-$F$9),0)&"-"&ROUND(MAX(AB160:AU160)*(1-$F$9),0)) -> 299 | AA160: =(G160*AB160+H160*AC160+I160*AD160+J160*AE160+K160*AF160+L160*AG160+M160*AH160+N160*AI160+O160*AJ160+P160*AK160+Q160*AL160+R160*AM160+S160*AN160+T160*AO160+U160*AP160+V160*AQ160+W160*AR160+X160*AS160+Y160*AT160+Z160*AU160)*(1-$F$9) -> 0 | AO160: 340 | AP160: 340 | AQ160: 340 | AR160: 340 | AS160: 340 | AT160: 340 | BI160: 356060 | BJ160: 356061 | BK160: 356062 | BL160: 356063 | BM160: 356064 | BN160: 356065
B161: [490426]Юбка для девочки ДЮК175804н | C161: кулир с лайкрой / хлопок 92% + лайкра 8% | D161: - / розовые розы на белом / - / - / - / - | E161: 475 | F161: =IF(MIN(AB161:AU161)=MAX(AB161:AU161),ROUND(MIN(AB161:AU161)*(1-$F$9),0),ROUND(MIN(AB161:AU161)*(1-$F$9),0)&"-"&ROUND(MAX(AB161:AU161)*(1-$F$9),0)) -> 418 | AA161: =(G161*AB161+H161*AC161+I161*AD161+J161*AE161+K161*AF161+L161*AG161+M161*AH161+N161*AI161+O161*AJ161+P161*AK161+Q161*AL161+R161*AM161+S161*AN161+T161*AO161+U161*AP161+V161*AQ161+W161*AR161+X161*AS161+Y161*AT161+Z161*AU161)*(1-$F$9) -> 0 | AO161: 475 | AP161: 475 | AQ161: 475 | AR161: 475 | AS161: 475 | AT161: 475 | BI161: 356048 | BJ161: 356049 | BK161: 356050 | BL161: 356051 | BM161: 356052 | BN161: 356053
B162: [490427]Юбка для девочки ДЮК792804 | C162: кулир с лайкрой / хлопок 92% + лайкра 8% | D162: ярко-розовый / - / - / - / - / - | E162: 280 | F162: =IF(MIN(AB162:AU162)=MAX(AB162:AU162),ROUND(MIN(AB162:AU162)*(1-$F$9),0),ROUND(MIN(AB162:AU162)*(1-$F$9),0)&"-"&ROUND(MAX(AB162:AU162)*(1-$F$9),0)) -> 246 | AA162: =(G162*AB162+H162*AC162+I162*AD162+J162*AE162+K162*AF162+L162*AG162+M162*AH162+N162*AI162+O162*AJ162+P162*AK162+Q162*AL162+R162*AM162+S162*AN162+T162*AO162+U162*AP162+V162*AQ162+W162*AR162+X162*AS162+Y162*AT162+Z162*AU162)*(1-$F$9) -> 0 | AO162: 280 | AP162: 280 | AQ162: 280 | AR162: 280 | AS162: 280 | AT162: 280 | BI162: 356054 | BJ162: 356055 | BK162: 356056 | BL162: 356057 | BM162: 356058 | BN162: 356059
B163: Коллекция "Роскошь"
B164: [322535]Джемпер для девочки ДДБ702804 | C164: кулир с лайкрой / хлопок 92% + лайкра 8% | D164: сливки / - / Восемь бабочек / - / - / - | E164: 320 | F164: =IF(MIN(AB164:AU164)=MAX(AB164:AU164),ROUND(MIN(AB164:AU164)*(1-$F$9),0),ROUND(MIN(AB164:AU164)*(1-$F$9),0)&"-"&ROUND(MAX(AB164:AU164)*(1-$F$9),0)) -> 282 | AA164: =(G164*AB164+H164*AC164+I164*AD164+J164*AE164+K164*AF164+L164*AG164+M164*AH164+N164*AI164+O164*AJ164+P164*AK164+Q164*AL164+R164*AM164+S164*AN164+T164*AO164+U164*AP164+V164*AQ164+W164*AR164+X164*AS164+Y164*AT164+Z164*AU164)*(1-$F$9) -> 0 | AO164: 320 | AP164: 320 | AQ164: 320 | AR164: 320 | AS164: 320 | AT164: 320 | BI164: 322534 | BJ164: 322536 | BK164: 322537 | BL164: 322538 | BM164: 322539 | BN164: 322540
B165: [322542]Джемпер для девочки ДДБ702804 | C165: кулир с лайкрой / хлопок 92% + лайкра 8% | D165: темно-синий / - / Восемь бабочек / - / - / - | E165: 320 | F165: =IF(MIN(AB165:AU165)=MAX(AB165:AU165),ROUND(MIN(AB165:AU165)*(1-$F$9),0),ROUND(MIN(AB165:AU165)*(1-$F$9),0)&"-"&ROUND(MAX(AB165:AU165)*(1-$F$9),0)) -> 282 | AA165: =(G165*AB165+H165*AC165+I165*AD165+J165*AE165+K165*AF165+L165*AG165+M165*AH165+N165*AI165+O165*AJ165+P165*AK165+Q165*AL165+R165*AM165+S165*AN165+T165*AO165+U165*AP165+V165*AQ165+W165*AR165+X165*AS165+Y165*AT165+Z165*AU165)*(1-$F$9) -> 0 | AO165: 320 | AP165: 320 | AQ165: 320 | AR165: 320 | AS165: 320 | AT165: 320 | BI165: 322541 | BJ165: 322543 | BK165: 322544 | BL165: 322545 | BM165: 322546 | BN165: 322547
B166: [488313]Джемпер для девочки ДДБ706804 | C166: кулир с лайкрой / хлопок 92% + лайкра 8% | D166: сливки / - / Семь бабочек серебряные / - / - / - | E166: 450 | F166: =IF(MIN(AB166:AU166)=MAX(AB166:AU166),ROUND(MIN(AB166:AU166)*(1-$F$9),0),ROUND(MIN(AB166:AU166)*(1-$F$9),0)&"-"&ROUND(MAX(AB166:AU166)*(1-$F$9),0)) -> 396 | AA166: =(G166*AB166+H166*AC166+I166*AD166+J166*AE166+K166*AF166+L166*AG166+M166*AH166+N166*AI166+O166*AJ166+P166*AK166+Q166*AL166+R166*AM166+S166*AN166+T166*AO166+U166*AP166+V166*AQ166+W166*AR166+X166*AS166+Y166*AT166+Z166*AU166)*(1-$F$9) -> 0 | AO166: 450 | AP166: 450 | AQ166: 450 | AR166: 450 | AS166: 450 | AT166: 450 | BI166: 346331 | BJ166: 346332 | BK166: 346333 | BL166: 346334 | BM166: 346335 | BN166: 346336
B167: [322577]Джемпер для девочки ДДБ706804 | C167: кулир с лайкрой / хлопок 92% + лайкра 8% | D167: темно-синий / - / Семь бабочек / - / - / - | E167: 450 | F167: =IF(MIN(AB167:AU167)=MAX(AB167:AU167),ROUND(MIN(AB167:AU167)*(1-$F$9),0),ROUND(MIN(AB167:AU167)*(1-$F$9),0)&"-"&ROUND(MAX(AB167:AU167)*(1-$F$9),0)) -> 396 | AA167: =(G167*AB167+H167*AC167+I167*AD167+J167*AE167+K167*AF167+L167*AG167+M167*AH167+N167*AI167+O167*AJ167+P167*AK167+Q167*AL167+R167*AM167+S167*AN167+T167*AO167+U167*AP167+V167*AQ167+W167*AR167+X167*AS167+Y167*AT167+Z167*AU167)*(1-$F$9) -> 0 | AO167: 450 | AP167: 450 | AQ167: 450 | AR167: 450 | AS167: 450 | AT167: 450 | BI167: 322576 | BJ167: 322578 | BK167: 322579 | BL167: 322580 | BM167: 322581 | BN167: 322582
B168: [322626]Джемпер для девочки ДДД712338 | C168: футер / хлопок 100% | D168: бежевый / - / - / - / - / - | E168: 1100 | F168: =IF(MIN(AB168:AU168)=MAX(AB168:AU168),ROUND(MIN(AB168:AU168)*(1-$F$9),0),ROUND(MIN(AB168:AU168)*(1-$F$9),0)&"-"&ROUND(MAX(AB168:AU168)*(1-$F$9),0)) -> 968 | AA168: =(G168*AB168+H168*AC168+I168*AD168+J168*AE168+K168*AF168+L168*AG168+M168*AH168+N168*AI168+O168*AJ168+P168*AK168+Q168*AL168+R168*AM168+S168*AN168+T168*AO168+U168*AP168+V168*AQ168+W168*AR168+X168*AS168+Y168*AT168+Z168*AU168)*(1-$F$9) -> 0 | AO168: 1100 | AP168: 1100 | AQ168: 1100 | AR168: 1100 | AS168: 1100 | AT168: 1100 | BI168: 322625 | BJ168: 322627 | BK168: 322628 | BL168: 322629 | BM168: 322630 | BN168: 322631
B169: [322598]Рейтузы для девочки ДРЛ709804 | C169: кулир с лайкрой / хлопок 92% + лайкра 8% | D169: темно-синий / - / - / - / - / - | E169: 420 | F169: =IF(MIN(AB169:AU169)=MAX(AB169:AU169),ROUND(MIN(AB169:AU169)*(1-$F$9),0),ROUND(MIN(AB169:AU169)*(1-$F$9),0)&"-"&ROUND(MAX(AB169:AU169)*(1-$F$9),0)) -> 370 | AA169: =(G169*AB169+H169*AC169+I169*AD169+J169*AE169+K169*AF169+L169*AG169+M169*AH169+N169*AI169+O169*AJ169+P169*AK169+Q169*AL169+R169*AM169+S169*AN169+T169*AO169+U169*AP169+V169*AQ169+W169*AR169+X169*AS169+Y169*AT169+Z169*AU169)*(1-$F$9) -> 0 | AO169: 420 | AP169: 420 | AQ169: 420 | AR169: 420 | AS169: 420 | AT169: 420 | BI169: 322597 | BJ169: 322599 | BK169: 322600 | BL169: 322601 | BM169: 322602 | BN169: 322603
B170: [484769]Юбка для девочки ДЮК694338 | C170: футер / хлопок 100% | D170: бежевый / - / - / - / - / - | E170: 530 | F170: =IF(MIN(AB170:AU170)=MAX(AB170:AU170),ROUND(MIN(AB170:AU170)*(1-$F$9),0),ROUND(MIN(AB170:AU170)*(1-$F$9),0)&"-"&ROUND(MAX(AB170:AU170)*(1-$F$9),0)) -> 466 | AA170: =(G170*AB170+H170*AC170+I170*AD170+J170*AE170+K170*AF170+L170*AG170+M170*AH170+N170*AI170+O170*AJ170+P170*AK170+Q170*AL170+R170*AM170+S170*AN170+T170*AO170+U170*AP170+V170*AQ170+W170*AR170+X170*AS170+Y170*AT170+Z170*AU170)*(1-$F$9) -> 0 | AO170: 530 | AP170: 530 | AQ170: 530 | AR170: 530 | AS170: 530 | AT170: 530 | BI170: 334431 | BJ170: 334432 | BK170: 334433 | BL170: 334434 | BM170: 334435 | BN170: 334436
B171: [322591]Юбка для девочки ДЮК707804 | C171: кулир с лайкрой / хлопок 92% + лайкра 8% | D171: темно-синий / - / - / - / - / - | E171: 880 | F171: =IF(MIN(AB171:AU171)=MAX(AB171:AU171),ROUND(MIN(AB171:AU171)*(1-$F$9),0),ROUND(MIN(AB171:AU171)*(1-$F$9),0)&"-"&ROUND(MAX(AB171:AU171)*(1-$F$9),0)) -> 774 | AA171: =(G171*AB171+H171*AC171+I171*AD171+J171*AE171+K171*AF171+L171*AG171+M171*AH171+N171*AI171+O171*AJ171+P171*AK171+Q171*AL171+R171*AM171+S171*AN171+T171*AO171+U171*AP171+V171*AQ171+W171*AR171+X171*AS171+Y171*AT171+Z171*AU171)*(1-$F$9) -> 0 | AO171: 880 | AP171: 880 | AQ171: 880 | AR171: 880 | AS171: 880 | AT171: 880 | BI171: 322590 | BJ171: 322592 | BK171: 322593 | BL171: 322594 | BM171: 322595 | BN171: 322596
B172: Коллекция "Сердечки"
B173: [492642]Бриджи для девочки ДБР116804н | C173: кулир / хлопок 92% + лайкра 8% | D173: - / белые сердечки на красном / - / - / - / - | E173: 190 | F173: =IF(MIN(AB173:AU173)=MAX(AB173:AU173),ROUND(MIN(AB173:AU173)*(1-$F$9),0),ROUND(MIN(AB173:AU173)*(1-$F$9),0)&"-"&ROUND(MAX(AB173:AU173)*(1-$F$9),0)) -> 167 | AA173: =(G173*AB173+H173*AC173+I173*AD173+J173*AE173+K173*AF173+L173*AG173+M173*AH173+N173*AI173+O173*AJ173+P173*AK173+Q173*AL173+R173*AM173+S173*AN173+T173*AO173+U173*AP173+V173*AQ173+W173*AR173+X173*AS173+Y173*AT173+Z173*AU173)*(1-$F$9) -> 0 | AH173: 190 | AJ173: 190 | AL173: 190 | AN173: 190 | BB173: 367118 | BD173: 367120 | BF173: 367122 | BH173: 367124
B174: [492643]Бриджи для девочки ДБР116804н | C174: кулир / хлопок 92% + лайкра 8% | D174: - / красные сердечки на белом / - / - / - / - | E174: 190 | F174: =IF(MIN(AB174:AU174)=MAX(AB174:AU174),ROUND(MIN(AB174:AU174)*(1-$F$9),0),ROUND(MIN(AB174:AU174)*(1-$F$9),0)&"-"&ROUND(MAX(AB174:AU174)*(1-$F$9),0)) -> 167 | AA174: =(G174*AB174+H174*AC174+I174*AD174+J174*AE174+K174*AF174+L174*AG174+M174*AH174+N174*AI174+O174*AJ174+P174*AK174+Q174*AL174+R174*AM174+S174*AN174+T174*AO174+U174*AP174+V174*AQ174+W174*AR174+X174*AS174+Y174*AT174+Z174*AU174)*(1-$F$9) -> 0 | AH174: 190 | AJ174: 190 | AL174: 190 | AN174: 190 | BB174: 367119 | BD174: 367121 | BF174: 367123 | BH174: 367125
B175: [492644]Комплект верхний для девочки ДКР449001н | C175: кулир / хлопок 100%, хлопок 92% + лайкра 8% | D175: - / полоска красный+белые сердечки на красном / Три сердечка / - / красный / - | E175: 430 | F175: =IF(MIN(AB175:AU175)=MAX(AB175:AU175),ROUND(MIN(AB175:AU175)*(1-$F$9),0),ROUND(MIN(AB175:AU175)*(1-$F$9),0)&"-"&ROUND(MAX(AB175:AU175)*(1-$F$9),0)) -> 378 | AA175: =(G175*AB175+H175*AC175+I175*AD175+J175*AE175+K175*AF175+L175*AG175+M175*AH175+N175*AI175+O175*AJ175+P175*AK175+Q175*AL175+R175*AM175+S175*AN175+T175*AO175+U175*AP175+V175*AQ175+W175*AR175+X175*AS175+Y175*AT175+Z175*AU175)*(1-$F$9) -> 0 | AH175: 430 | AJ175: 430 | AL175: 430 | AN175: 430 | AO175: 430 | BB175: 367127 | BD175: 367128 | BF175: 367129 | BH175: 367130 | BI175: 367131
B176: [492645]Комплект верхний для девочки ДКР449001н | C176: кулир / хлопок 100%, хлопок 92% + лайкра 8% | D176: - / сердечки на красном+синий / - / - / красный / - | E176: 398 | F176: =IF(MIN(AB176:AU176)=MAX(AB176:AU176),ROUND(MIN(AB176:AU176)*(1-$F$9),0),ROUND(MIN(AB176:AU176)*(1-$F$9),0)&"-"&ROUND(MAX(AB176:AU176)*(1-$F$9),0)) -> 350 | AA176: =(G176*AB176+H176*AC176+I176*AD176+J176*AE176+K176*AF176+L176*AG176+M176*AH176+N176*AI176+O176*AJ176+P176*AK176+Q176*AL176+R176*AM176+S176*AN176+T176*AO176+U176*AP176+V176*AQ176+W176*AR176+X176*AS176+Y176*AT176+Z176*AU176)*(1-$F$9) -> 0 | AH176: 398 | AJ176: 398 | AL176: 398 | AN176: 398 | AO176: 398 | BB176: 367132 | BD176: 367133 | BF176: 367134 | BH176: 367135 | BI176: 367136
B177: [492640]Платье для девочки ДПК111804н | C177: кулир / хлопок 92% + лайкра 8% | D177: - / сердечки на красном+красный / - / - / красный / - | E177: 398 | F177: =IF(MIN(AB177:AU177)=MAX(AB177:AU177),ROUND(MIN(AB177:AU177)*(1-$F$9),0),ROUND(MIN(AB177:AU177)*(1-$F$9),0)&"-"&ROUND(MAX(AB177:AU177)*(1-$F$9),0)) -> 350 | AA177: =(G177*AB177+H177*AC177+I177*AD177+J177*AE177+K177*AF177+L177*AG177+M177*AH177+N177*AI177+O177*AJ177+P177*AK177+Q177*AL177+R177*AM177+S177*AN177+T177*AO177+U177*AP177+V177*AQ177+W177*AR177+X177*AS177+Y177*AT177+Z177*AU177)*(1-$F$9) -> 0 | AJ177: 398 | AL177: 398 | AN177: 398 | AO177: 398 | AP177: 398 | BD177: 367109 | BF177: 367110 | BH177: 367111 | BI177: 367112 | BJ177: 367113
B178: [492637]Платье для девочки ДПК167001н | C178: кулир / хлопок 100% | D178: - / белый+сердечки на красном / Венок из роз / - / белый / - | E178: 320 | F178: =IF(MIN(AB178:AU178)=MAX(AB178:AU178),ROUND(MIN(AB178:AU178)*(1-$F$9),0),ROUND(MIN(AB178:AU178)*(1-$F$9),0)&"-"&ROUND(MAX(AB178:AU178)*(1-$F$9),0)) -> 282 | AA178: =(G178*AB178+H178*AC178+I178*AD178+J178*AE178+K178*AF178+L178*AG178+M178*AH178+N178*AI178+O178*AJ178+P178*AK178+Q178*AL178+R178*AM178+S178*AN178+T178*AO178+U178*AP178+V178*AQ178+W178*AR178+X178*AS178+Y178*AT178+Z178*AU178)*(1-$F$9) -> 0 | AH178: 320 | AJ178: 320 | AL178: 320 | AN178: 320 | AO178: 320 | BB178: 367094 | BD178: 367095 | BF178: 367096 | BH178: 367097 | BI178: 367098
B179: [492638]Платье для девочки ДПК231338н | C179: футер / хлопок 65% + полиэстер 35% | D179: - / белый+белые сердечки на антраците / - / - / - / - | E179: 570 | F179: =IF(MIN(AB179:AU179)=MAX(AB179:AU179),ROUND(MIN(AB179:AU179)*(1-$F$9),0),ROUND(MIN(AB179:AU179)*(1-$F$9),0)&"-"&ROUND(MAX(AB179:AU179)*(1-$F$9),0)) -> 502 | AA179: =(G179*AB179+H179*AC179+I179*AD179+J179*AE179+K179*AF179+L179*AG179+M179*AH179+N179*AI179+O179*AJ179+P179*AK179+Q179*AL179+R179*AM179+S179*AN179+T179*AO179+U179*AP179+V179*AQ179+W179*AR179+X179*AS179+Y179*AT179+Z179*AU179)*(1-$F$9) -> 0 | AN179: 570 | AO179: 570 | AP179: 570 | AQ179: 570 | BH179: 367099 | BI179: 367100 | BJ179: 367101 | BK179: 367102
B180: [492639]Платье для девочки ДПК231804н | C180: кулир / хлопок 92% + лайкра 8% | D180: - / белый+сердечки на красном / - / - / - / - | E180: 445 | F180: =IF(MIN(AB180:AU180)=MAX(AB180:AU180),ROUND(MIN(AB180:AU180)*(1-$F$9),0),ROUND(MIN(AB180:AU180)*(1-$F$9),0)&"-"&ROUND(MAX(AB180:AU180)*(1-$F$9),0)) -> 392 | AA180: =(G180*AB180+H180*AC180+I180*AD180+J180*AE180+K180*AF180+L180*AG180+M180*AH180+N180*AI180+O180*AJ180+P180*AK180+Q180*AL180+R180*AM180+S180*AN180+T180*AO180+U180*AP180+V180*AQ180+W180*AR180+X180*AS180+Y180*AT180+Z180*AU180)*(1-$F$9) -> 0 | AJ180: 445 | AL180: 445 | AN180: 445 | AO180: 445 | AP180: 445 | AQ180: 445 | BD180: 367103 | BF180: 367104 | BH180: 367105 | BI180: 367106 | BJ180: 367107 | BK180: 367108
B181: [321989]Платье для девочки ДПК315001 | C181: кулир / хлопок 100% | D181: красный / - / Белая собачка / - / - / - | E181: 380 | F181: =IF(MIN(AB181:AU181)=MAX(AB181:AU181),ROUND(MIN(AB181:AU181)*(1-$F$9),0),ROUND(MIN(AB181:AU181)*(1-$F$9),0)&"-"&ROUND(MAX(AB181:AU181)*(1-$F$9),0)) -> 334 | AA181: =(G181*AB181+H181*AC181+I181*AD181+J181*AE181+K181*AF181+L181*AG181+M181*AH181+N181*AI181+O181*AJ181+P181*AK181+Q181*AL181+R181*AM181+S181*AN181+T181*AO181+U181*AP181+V181*AQ181+W181*AR181+X181*AS181+Y181*AT181+Z181*AU181)*(1-$F$9) -> 0 | AF181: 380 | AH181: 380 | AJ181: 380 | AL181: 380 | AN181: 380 | AO181: 380 | AZ181: 321988 | BB181: 321990 | BD181: 321991 | BF181: 321992 | BH181: 321993 | BI181: 321994
B182: [321996]Платье для девочки ДПК315001н | C182: кулир / хлопок 100% | D182: - / сердечки на красном / Белая собачка / - / - / - | E182: 380 | F182: =IF(MIN(AB182:AU182)=MAX(AB182:AU182),ROUND(MIN(AB182:AU182)*(1-$F$9),0),ROUND(MIN(AB182:AU182)*(1-$F$9),0)&"-"&ROUND(MAX(AB182:AU182)*(1-$F$9),0)) -> 334 | AA182: =(G182*AB182+H182*AC182+I182*AD182+J182*AE182+K182*AF182+L182*AG182+M182*AH182+N182*AI182+O182*AJ182+P182*AK182+Q182*AL182+R182*AM182+S182*AN182+T182*AO182+U182*AP182+V182*AQ182+W182*AR182+X182*AS182+Y182*AT182+Z182*AU182)*(1-$F$9) -> 0 | AF182: 380 | AH182: 380 | AJ182: 380 | AL182: 380 | AN182: 380 | AO182: 380 | AZ182: 321995 | BB182: 321997 | BD182: 321998 | BF182: 321999 | BH182: 322000 | BI182: 322001
B183: [492673]Платье ясельн. ДПК261001н | C183: кулир / хлопок 100% | D183: - / сердечки на красном / - / - / - / - | E183: 240 | F183: =IF(MIN(AB183:AU183)=MAX(AB183:AU183),ROUND(MIN(AB183:AU183)*(1-$F$9),0),ROUND(MIN(AB183:AU183)*(1-$F$9),0)&"-"&ROUND(MAX(AB183:AU183)*(1-$F$9),0)) -> 211 | AA183: =(G183*AB183+H183*AC183+I183*AD183+J183*AE183+K183*AF183+L183*AG183+M183*AH183+N183*AI183+O183*AJ183+P183*AK183+Q183*AL183+R183*AM183+S183*AN183+T183*AO183+U183*AP183+V183*AQ183+W183*AR183+X183*AS183+Y183*AT183+Z183*AU183)*(1-$F$9) -> 0 | AG183: 240 | AI183: 240 | AK183: 240 | AM183: 240 | BA183: 367197 | BC183: 367198 | BE183: 367199 | BG183: 367200
B184: [492672]Платье ясельн. ДПК505001н | C184: кулир / хлопок 100% | D184: - / красный+сердечки на красном / - / - / - / - | E184: 280 | F184: =IF(MIN(AB184:AU184)=MAX(AB184:AU184),ROUND(MIN(AB184:AU184)*(1-$F$9),0),ROUND(MIN(AB184:AU184)*(1-$F$9),0)&"-"&ROUND(MAX(AB184:AU184)*(1-$F$9),0)) -> 246 | AA184: =(G184*AB184+H184*AC184+I184*AD184+J184*AE184+K184*AF184+L184*AG184+M184*AH184+N184*AI184+O184*AJ184+P184*AK184+Q184*AL184+R184*AM184+S184*AN184+T184*AO184+U184*AP184+V184*AQ184+W184*AR184+X184*AS184+Y184*AT184+Z184*AU184)*(1-$F$9) -> 0 | AG184: 280 | AI184: 280 | AK184: 280 | AM184: 280 | BA184: 367193 | BC184: 367194 | BE184: 367195 | BG184: 367196
B185: [492671]Платье ясельн. ДПК880001н | C185: кулир / хлопок 100% | D185: - / белый+сердечки на красном / Три белых зверя / - / сердечки на красном / - | E185: 298 | F185: =IF(MIN(AB185:AU185)=MAX(AB185:AU185),ROUND(MIN(AB185:AU185)*(1-$F$9),0),ROUND(MIN(AB185:AU185)*(1-$F$9),0)&"-"&ROUND(MAX(AB185:AU185)*(1-$F$9),0)) -> 262 | AA185: =(G185*AB185+H185*AC185+I185*AD185+J185*AE185+K185*AF185+L185*AG185+M185*AH185+N185*AI185+O185*AJ185+P185*AK185+Q185*AL185+R185*AM185+S185*AN185+T185*AO185+U185*AP185+V185*AQ185+W185*AR185+X185*AS185+Y185*AT185+Z185*AU185)*(1-$F$9) -> 0 | AG185: 298 | AI185: 298 | AK185: 298 | AM185: 298 | BA185: 367189 | BC185: 367190 | BE185: 367191 | BG185: 367192
B186: [321961]Рейтузы для девочки ДРЛ894804 | C186: кулир / хлопок 92% + лайкра 8% | D186: красный / - / Мышка с шариком / - / - / - | E186: 250 | F186: =IF(MIN(AB186:AU186)=MAX(AB186:AU186),ROUND(MIN(AB186:AU186)*(1-$F$9),0),ROUND(MIN(AB186:AU186)*(1-$F$9),0)&"-"&ROUND(MAX(AB186:AU186)*(1-$F$9),0)) -> 220 | AA186: =(G186*AB186+H186*AC186+I186*AD186+J186*AE186+K186*AF186+L186*AG186+M186*AH186+N186*AI186+O186*AJ186+P186*AK186+Q186*AL186+R186*AM186+S186*AN186+T186*AO186+U186*AP186+V186*AQ186+W186*AR186+X186*AS186+Y186*AT186+Z186*AU186)*(1-$F$9) -> 0 | AF186: 250 | AH186: 250 | AJ186: 250 | AL186: 250 | AN186: 250 | AO186: 250 | AZ186: 321960 | BB186: 321962 | BD186: 321963 | BF186: 321964 | BH186: 321965 | BI186: 321966
B187: [492651]Рейтузы для девочки ДРЛ894804н | C187: кулир с лайкрой / хлопок 92% + лайкра 8% | D187: - / белые сердечки на красном / - / - / - / - | E187: 230 | F187: =IF(MIN(AB187:AU187)=MAX(AB187:AU187),ROUND(MIN(AB187:AU187)*(1-$F$9),0),ROUND(MIN(AB187:AU187)*(1-$F$9),0)&"-"&ROUND(MAX(AB187:AU187)*(1-$F$9),0)) -> 202 | AA187: =(G187*AB187+H187*AC187+I187*AD187+J187*AE187+K187*AF187+L187*AG187+M187*AH187+N187*AI187+O187*AJ187+P187*AK187+Q187*AL187+R187*AM187+S187*AN187+T187*AO187+U187*AP187+V187*AQ187+W187*AR187+X187*AS187+Y187*AT187+Z187*AU187)*(1-$F$9) -> 0 | AH187: 230 | AJ187: 230 | AL187: 230 | AN187: 230 | AO187: 230 | BB187: 367162 | BD187: 367163 | BF187: 367164 | BH187: 367165 | BI187: 367166
B188: [321968]Рейтузы для девочки ДРЛ894804н | C188: кулир / хлопок 92% + лайкра 8% | D188: - / сердечки на красном / - / - / - / - | E188: 280 | F188: =IF(MIN(AB188:AU188)=MAX(AB188:AU188),ROUND(MIN(AB188:AU188)*(1-$F$9),0),ROUND(MIN(AB188:AU188)*(1-$F$9),0)&"-"&ROUND(MAX(AB188:AU188)*(1-$F$9),0)) -> 246 | AA188: =(G188*AB188+H188*AC188+I188*AD188+J188*AE188+K188*AF188+L188*AG188+M188*AH188+N188*AI188+O188*AJ188+P188*AK188+Q188*AL188+R188*AM188+S188*AN188+T188*AO188+U188*AP188+V188*AQ188+W188*AR188+X188*AS188+Y188*AT188+Z188*AU188)*(1-$F$9) -> 0 | AF188: 280 | AH188: 280 | AJ188: 280 | AL188: 280 | AN188: 280 | AO188: 280 | AZ188: 321967 | BB188: 321969 | BD188: 321970 | BF188: 321971 | BH188: 321972 | BI188: 321973
B189: [492641]Сарафан для девочки ДПС069001н | C189: кулир / хлопок 100% | D189: - / сердечки на красном / - / - / сердечки на красном / - | E189: 310 | F189: =IF(MIN(AB189:AU189)=MAX(AB189:AU189),ROUND(MIN(AB189:AU189)*(1-$F$9),0),ROUND(MIN(AB189:AU189)*(1-$F$9),0)&"-"&ROUND(MAX(AB189:AU189)*(1-$F$9),0)) -> 273 | AA189: =(G189*AB189+H189*AC189+I189*AD189+J189*AE189+K189*AF189+L189*AG189+M189*AH189+N189*AI189+O189*AJ189+P189*AK189+Q189*AL189+R189*AM189+S189*AN189+T189*AO189+U189*AP189+V189*AQ189+W189*AR189+X189*AS189+Y189*AT189+Z189*AU189)*(1-$F$9) -> 0 | AH189: 310 | AJ189: 310 | AL189: 310 | AN189: 310 | BB189: 367114 | BD189: 367115 | BF189: 367116 | BH189: 367117
B190: [321982]Юбка для девочки ДЮК351001н | C190: кулир / хлопок 100% | D190: - / сердечки на красном / - / - / - / - | E190: 598 | F190: =IF(MIN(AB190:AU190)=MAX(AB190:AU190),ROUND(MIN(AB190:AU190)*(1-$F$9),0),ROUND(MIN(AB190:AU190)*(1-$F$9),0)&"-"&ROUND(MAX(AB190:AU190)*(1-$F$9),0)) -> 526 | AA190: =(G190*AB190+H190*AC190+I190*AD190+J190*AE190+K190*AF190+L190*AG190+M190*AH190+N190*AI190+O190*AJ190+P190*AK190+Q190*AL190+R190*AM190+S190*AN190+T190*AO190+U190*AP190+V190*AQ190+W190*AR190+X190*AS190+Y190*AT190+Z190*AU190)*(1-$F$9) -> 0 | AF190: 598 | AH190: 598 | AJ190: 598 | AL190: 598 | AN190: 598 | AO190: 598 | AZ190: 321981 | BB190: 321983 | BD190: 321984 | BF190: 321985 | BH190: 321986 | BI190: 321987
B191: Коллекция "Фантазии"
B192: [493139]Комплект верхний для девочки ДКР327001н | C192: кулир / хлопок 100%, хлопок 92% + лайкра 8% | D192: - / белый горох на темно-синем 35+ярко-красный / - / - / - / - | E192: 470 | F192: =IF(MIN(AB192:AU192)=MAX(AB192:AU192),ROUND(MIN(AB192:AU192)*(1-$F$9),0),ROUND(MIN(AB192:AU192)*(1-$F$9),0)&"-"&ROUND(MAX(AB192:AU192)*(1-$F$9),0)) -> 414 | AA192: =(G192*AB192+H192*AC192+I192*AD192+J192*AE192+K192*AF192+L192*AG192+M192*AH192+N192*AI192+O192*AJ192+P192*AK192+Q192*AL192+R192*AM192+S192*AN192+T192*AO192+U192*AP192+V192*AQ192+W192*AR192+X192*AS192+Y192*AT192+Z192*AU192)*(1-$F$9) -> 0 | AL192: 470 | AN192: 470 | AO192: 470 | AP192: 470 | AQ192: 470 | BF192: 369591 | BH192: 369592 | BI192: 369593 | BJ192: 369594 | BK192: 369595
B193: [493141]Комплект верхний для девочки ДКР327001н | C193: кулир / хлопок 100%, хлопок 92% + лайкра 8% | D193: - / подсолнухи+бирюза / - / - / - / - | E193: 470 | F193: =IF(MIN(AB193:AU193)=MAX(AB193:AU193),ROUND(MIN(AB193:AU193)*(1-$F$9),0),ROUND(MIN(AB193:AU193)*(1-$F$9),0)&"-"&ROUND(MAX(AB193:AU193)*(1-$F$9),0)) -> 414 | AA193: =(G193*AB193+H193*AC193+I193*AD193+J193*AE193+K193*AF193+L193*AG193+M193*AH193+N193*AI193+O193*AJ193+P193*AK193+Q193*AL193+R193*AM193+S193*AN193+T193*AO193+U193*AP193+V193*AQ193+W193*AR193+X193*AS193+Y193*AT193+Z193*AU193)*(1-$F$9) -> 0 | AJ193: 470 | AL193: 470 | AN193: 470 | AO193: 470 | AP193: 470 | AQ193: 470 | BD193: 369602 | BF193: 369603 | BH193: 369604 | BI193: 369605 | BJ193: 369606 | BK193: 369607
B194: [493142]Комплект верхний для девочки ДКР327001н | C194: кулир / хлопок 100%, хлопок 92% + лайкра 8% | D194: - / полевые цветы+василек / - / - / - / - | E194: 470 | F194: =IF(MIN(AB194:AU194)=MAX(AB194:AU194),ROUND(MIN(AB194:AU194)*(1-$F$9),0),ROUND(MIN(AB194:AU194)*(1-$F$9),0)&"-"&ROUND(MAX(AB194:AU194)*(1-$F$9),0)) -> 414 | AA194: =(G194*AB194+H194*AC194+I194*AD194+J194*AE194+K194*AF194+L194*AG194+M194*AH194+N194*AI194+O194*AJ194+P194*AK194+Q194*AL194+R194*AM194+S194*AN194+T194*AO194+U194*AP194+V194*AQ194+W194*AR194+X194*AS194+Y194*AT194+Z194*AU194)*(1-$F$9) -> 0 | AJ194: 470 | AL194: 470 | AN194: 470 | AO194: 470 | AP194: 470 | AQ194: 470 | BD194: 369608 | BF194: 369609 | BH194: 369610 | BI194: 369611 | BJ194: 369612 | BK194: 369613
B195: [493143]Комплект верхний для девочки ДКР327001н | C195: кулир / хлопок 100%, хлопок 92% + лайкра 8% | D195: - / ромашки и горошки на темно-синем+оранжевый / - / - / - / - | E195: 470 | F195: =IF(MIN(AB195:AU195)=MAX(AB195:AU195),ROUND(MIN(AB195:AU195)*(1-$F$9),0),ROUND(MIN(AB195:AU195)*(1-$F$9),0)&"-"&ROUND(MAX(AB195:AU195)*(1-$F$9),0)) -> 414 | AA195: =(G195*AB195+H195*AC195+I195*AD195+J195*AE195+K195*AF195+L195*AG195+M195*AH195+N195*AI195+O195*AJ195+P195*AK195+Q195*AL195+R195*AM195+S195*AN195+T195*AO195+U195*AP195+V195*AQ195+W195*AR195+X195*AS195+Y195*AT195+Z195*AU195)*(1-$F$9) -> 0 | AL195: 470 | AN195: 470 | AO195: 470 | AP195: 470 | AQ195: 470 | BF195: 369614 | BH195: 369615 | BI195: 369616 | BJ195: 369617 | BK195: 369618
B196: [493144]Комплект верхний для девочки ДКР327001н | C196: кулир / хлопок 100%, хлопок 92% + лайкра 8% | D196: - / ромашки на малине+темно-синий / - / - / - / - | E196: 470 | F196: =IF(MIN(AB196:AU196)=MAX(AB196:AU196),ROUND(MIN(AB196:AU196)*(1-$F$9),0),ROUND(MIN(AB196:AU196)*(1-$F$9),0)&"-"&ROUND(MAX(AB196:AU196)*(1-$F$9),0)) -> 414 | AA196: =(G196*AB196+H196*AC196+I196*AD196+J196*AE196+K196*AF196+L196*AG196+M196*AH196+N196*AI196+O196*AJ196+P196*AK196+Q196*AL196+R196*AM196+S196*AN196+T196*AO196+U196*AP196+V196*AQ196+W196*AR196+X196*AS196+Y196*AT196+Z196*AU196)*(1-$F$9) -> 0 | AL196: 470 | AN196: 470 | AO196: 470 | AP196: 470 | AQ196: 470 | BF196: 369619 | BH196: 369620 | BI196: 369621 | BJ196: 369622 | BK196: 369623
B197: [493146]Комплект верхний для девочки ДКР327001н | C197: кулир / хлопок 100%, хлопок 92% + лайкра 8% | D197: - / ромашки на темно-синем+красный / - / - / - / - | E197: 470 | F197: =IF(MIN(AB197:AU197)=MAX(AB197:AU197),ROUND(MIN(AB197:AU197)*(1-$F$9),0),ROUND(MIN(AB197:AU197)*(1-$F$9),0)&"-"&ROUND(MAX(AB197:AU197)*(1-$F$9),0)) -> 414 | AA197: =(G197*AB197+H197*AC197+I197*AD197+J197*AE197+K197*AF197+L197*AG197+M197*AH197+N197*AI197+O197*AJ197+P197*AK197+Q197*AL197+R197*AM197+S197*AN197+T197*AO197+U197*AP197+V197*AQ197+W197*AR197+X197*AS197+Y197*AT197+Z197*AU197)*(1-$F$9) -> 0 | AL197: 470 | AN197: 470 | AO197: 470 | AP197: 470 | AQ197: 470 | BF197: 369629 | BH197: 369630 | BI197: 369631 | BJ197: 369632 | BK197: 369633
B198: [493147]Комплект верхний для девочки ДКР327001н | C198: кулир / хлопок 100%, хлопок 92% + лайкра 8% | D198: - / черный горох на белом 15+ярко-красный / - / - / - / - | E198: 470 | F198: =IF(MIN(AB198:AU198)=MAX(AB198:AU198),ROUND(MIN(AB198:AU198)*(1-$F$9),0),ROUND(MIN(AB198:AU198)*(1-$F$9),0)&"-"&ROUND(MAX(AB198:AU198)*(1-$F$9),0)) -> 414 | AA198: =(G198*AB198+H198*AC198+I198*AD198+J198*AE198+K198*AF198+L198*AG198+M198*AH198+N198*AI198+O198*AJ198+P198*AK198+Q198*AL198+R198*AM198+S198*AN198+T198*AO198+U198*AP198+V198*AQ198+W198*AR198+X198*AS198+Y198*AT198+Z198*AU198)*(1-$F$9) -> 0 | AJ198: 470 | AL198: 470 | AN198: 470 | AO198: 470 | AP198: 470 | AQ198: 470 | BD198: 369871 | BF198: 369634 | BH198: 369635 | BI198: 369636 | BJ198: 369637 | BK198: 369638
B199: [493189]Комплект верхний для девочки ДКР327804н | C199: кулир с лайкрой / хлопок 92% + лайкра 8% | D199: - / белый горох на темно-синем 15+ярко-красный / - / - / - / - | E199: 470 | F199: =IF(MIN(AB199:AU199)=MAX(AB199:AU199),ROUND(MIN(AB199:AU199)*(1-$F$9),0),ROUND(MIN(AB199:AU199)*(1-$F$9),0)&"-"&ROUND(MAX(AB199:AU199)*(1-$F$9),0)) -> 414 | AA199: =(G199*AB199+H199*AC199+I199*AD199+J199*AE199+K199*AF199+L199*AG199+M199*AH199+N199*AI199+O199*AJ199+P199*AK199+Q199*AL199+R199*AM199+S199*AN199+T199*AO199+U199*AP199+V199*AQ199+W199*AR199+X199*AS199+Y199*AT199+Z199*AU199)*(1-$F$9) -> 0 | AJ199: 470 | AL199: 470 | AN199: 470 | AO199: 470 | AP199: 470 | AQ199: 470 | BD199: 369831 | BF199: 369832 | BH199: 369833 | BI199: 369834 | BJ199: 369835 | BK199: 369836
B200: Коллекция "Фестиваль цветов"
B201: [490472]Джемпер для девочки ДДБ476804н | C201: кулир с лайкрой / хлопок 92% + лайкра 8% | D201: - / маки на полосе+полоска темно-синий 18 / - / - / - / - | E201: 350 | F201: =IF(MIN(AB201:AU201)=MAX(AB201:AU201),ROUND(MIN(AB201:AU201)*(1-$F$9),0),ROUND(MIN(AB201:AU201)*(1-$F$9),0)&"-"&ROUND(MAX(AB201:AU201)*(1-$F$9),0)) -> 308 | AA201: =(G201*AB201+H201*AC201+I201*AD201+J201*AE201+K201*AF201+L201*AG201+M201*AH201+N201*AI201+O201*AJ201+P201*AK201+Q201*AL201+R201*AM201+S201*AN201+T201*AO201+U201*AP201+V201*AQ201+W201*AR201+X201*AS201+Y201*AT201+Z201*AU201)*(1-$F$9) -> 0 | AJ201: 350 | AL201: 350 | AN201: 350 | AO201: 350 | AP201: 350 | AQ201: 350 | BD201: 356307 | BF201: 356308 | BH201: 356309 | BI201: 356310 | BJ201: 356311 | BK201: 356312
B202: [490473]Джемпер для девочки ДДК481804 | C202: кулир с лайкрой / хлопок 92% + лайкра 8% | D202: белый / - / Француженка / - / - / - | E202: 220 | F202: =IF(MIN(AB202:AU202)=MAX(AB202:AU202),ROUND(MIN(AB202:AU202)*(1-$F$9),0),ROUND(MIN(AB202:AU202)*(1-$F$9),0)&"-"&ROUND(MAX(AB202:AU202)*(1-$F$9),0)) -> 194 | AA202: =(G202*AB202+H202*AC202+I202*AD202+J202*AE202+K202*AF202+L202*AG202+M202*AH202+N202*AI202+O202*AJ202+P202*AK202+Q202*AL202+R202*AM202+S202*AN202+T202*AO202+U202*AP202+V202*AQ202+W202*AR202+X202*AS202+Y202*AT202+Z202*AU202)*(1-$F$9) -> 0 | AJ202: 220 | AL202: 220 | AN202: 220 | AO202: 220 | AP202: 220 | AQ202: 220 | BD202: 356313 | BF202: 356314 | BH202: 356315 | BI202: 356316 | BJ202: 356317 | BK202: 356318
... 50 more rows
